account_party,address,code,date,document_number,expense_code_name,expense_code_name_short,id,party_cell,party_cell_code,party_cell_geoobject,purpose,source_bank_account_number,source_bank_account_type,sum,target_legal_personality,target_legal_personality_code,target_type
ГРОМАДЯНСЬКА ПОЗИЦІЯ,"Київ, вулиця Михайла Грушевського, 1Д",70,2018-12-29,94,Банківські послуги,Інші витрати,140643,Київська обласна організація,37236193,Київська область,Комiсiя РКО вiд зарплати за грудень 2018р.,26001053022803,current,8.60,"ПАТ КБ ""Приватбанк""",14360570,юридична особа
ГРОМАДЯНСЬКА ПОЗИЦІЯ,,84,2018-12-29,95,"Заробітна плата, премії","Заробітна плата, лікарняні, вагітності, відрядження, компенсації",140577,Київська обласна організація,37236193,Київська область,Зарплата за грудень 2018р.,26001053022803,current,1720.00,Побідаш Ірина Миколаївна,,фізична особа
ГРОМАДЯНСЬКА ПОЗИЦІЯ,,84,2018-12-29,95,"Заробітна плата, премії","Заробітна плата, лікарняні, вагітності, відрядження, компенсації",140576,Київська обласна організація,37236193,Київська область,Зарплата за грудень 2018р.,26001053022803,current,1720.00,Присяжнюк Юлія Ігорівна,,фізична особа
ГРОМАДЯНСЬКА ПОЗИЦІЯ,"Волинська область, Старовижівський район, Стара Вижівка",49,2018-12-28,176,Публікування матеріалів у друкованих ЗМІ,Реклама в друкованих ЗМІ,140686,Волинська обласна організація,37204512,Волинська область,Рахунок 854. За публiкацию оголошення,2600805509013,current,2675.40,Редакція газети 'Сільські новини',02471755,юридична особа
ГРОМАДЯНСЬКА ПОЗИЦІЯ,"Київ, вулиця Михайла Грушевського, 1Д",70,2018-12-28,CSO1OEKNDY,Банківські послуги,Інші витрати,140642,Київська обласна організація,37236193,Київська область,"Комiсiя за виконання платежiв в нацiональнiй валютi, згiдно з вiдкритою офертою банку N б/н вiд 13.03.2018 та тарифiв банку, без ПДВ.",26001053022803,current,3.00,"ПАТ КБ ""Приватбанк""",14360570,юридична особа
ГРОМАДЯНСЬКА ПОЗИЦІЯ,"Київська обл., Обухівський район, Обухів, вулиця Каштанова, 23",53,2018-12-28,92,Витрати на розміщення зовнішньої реклами,Зовнішня реклама,140641,Київська обласна організація,37236193,Київська область,"Оплата за оренду рекламної конструкцiї згiдно рахунку NСФ-000127 вiд 1.12.2018 р. за 2/3 мiсяця. У сумi 11111.67 грн., ПДВ - 20 % 2222.33 грн.",26001053022803,current,13334.00,"ТОВ ""АІСТ""",19403261,юридична особа
ГРОМАДЯНСЬКА ПОЗИЦІЯ,"Київ, вулиця Михайла Грушевського, 1Д",70,2018-12-28,CSO1OEKNTY,Банківські послуги,Інші витрати,140640,Київська обласна організація,37236193,Київська область,"Комiсiя за виконання платежiв в нацiональнiй валютi, згiдно з вiдкритою офертою банку N б/н вiд 13.03.2018 та тарифiв банку, без ПДВ.",26001053022803,current,3.00,"ПАТ КБ ""Приватбанк""",14360570,юридична особа
ГРОМАДЯНСЬКА ПОЗИЦІЯ,,52,2018-12-28,93,Інша реклама (без класифікації),Реклама (без класифікації),140575,Київська обласна організація,37236193,Київська область,"Оплата за розмiщення реклами в сiчнi та рекламнi послуги згiдно рахунку N 122 вiд 19.12.2018 р. Без ПДВ, за 2/3 мiсяця",26001053022803,current,41800.00,Осика В В,,фізична особа
ГРОМАДЯНСЬКА ПОЗИЦІЯ,,53,2018-12-28,91,Витрати на розміщення зовнішньої реклами,Зовнішня реклама,140574,Київська обласна організація,37236193,Київська область,Оплта за послуги оренди рекламної площини по розмiщенню реклами в сiчнi згiдно з рахунком на оплату N81 вiд 21.12.2018 р. за 2/3 мiсяця. Без ПДВ,26001053022803,current,4800.00,Чабур Валерій Іванович,,фізична особа
ГРОМАДЯНСЬКА ПОЗИЦІЯ,"Івано-Франківська область, Яремче, вулиця Свободи, 266",49,2018-12-28,112,Публікування матеріалів у друкованих ЗМІ,Реклама в друкованих ЗМІ,140530,Івано-Франківська обласна організація,36733960,Івано-Франківська область,розміщення вітання до Нового року,26000052516833,current,2550.00,"РРЧ ""Яремчанський вісник""",30809960,юридична особа
ГРОМАДЯНСЬКА ПОЗИЦІЯ,"Київ, вулиця Миколи Лєскова, 9",70,2018-12-28,bn,Банківські послуги,Інші витрати,140463,Львівська обласна організація,37277596,Львівська область,Комісія за користування пакетом,26005314012,current,100.00,"АТ ""Райффайзен банк Аваль""",14305909,юридична особа
ГРОМАДЯНСЬКА ПОЗИЦІЯ,"Київ, вулиця Миколи Лєскова, 9",70,2018-12-28,bn,Банківські послуги,Інші витрати,140462,Львівська обласна організація,37277596,Львівська область,Комісія за надання виписки,26005314012,current,50.00,"АТ ""Райффайзен банк Аваль""",14305909,юридична особа
ГРОМАДЯНСЬКА ПОЗИЦІЯ,"Київ, вулиця Михайла Грушевського, 1Д",70,2018-12-28,CSO1OJ3EIY,Банківські послуги,Інші витрати,140454,Черкаська обласна організація,37239608,Черкаська область,"КОМIСIЯ ЗА ВИКОНАННЯ ПЛАТЕЖIВ В НАЦIОНАЛЬНIЙ ВАЛЮТI, ЗГIДНО З ВIДКРИТОЮ ОФЕРТОЮ БАНКУ N Б/Н ВIД 27.03.2017 ТА ТАРИФIВ БАНКУ, БЕЗ ПДВ.",26001051537726,current,3.00,"ПАТ КБ ""Приватбанк""",14360570,юридична особа
ГРОМАДЯНСЬКА ПОЗИЦІЯ,"Черкаська область, Сміла, вулиця Соборна, 91",53,2018-12-28,31,Витрати на розміщення зовнішньої реклами,Зовнішня реклама,140453,Черкаська обласна організація,37239608,Черкаська область,ЗА РОЗМIЩЕННЯ ЗОВНIШНЬОЇ РЕКЛАМИ В ЛИСТОПАДI 2018 РОКУ НА БУДIВЛI ГОТЕЛЮ ?СМIЛА? ЗГIДНО РАХУНКУ ? ФАКТУРИ № ТМ-0001694 ВIД 30 ЛИСТОПАДА 2018 Р. БЕЗ ПДВ.,26001051537726,current,517.50,"КП ""Муніципальна інвестиційно-фондова компанія""",35686412,юридична особа
ГРОМАДЯНСЬКА ПОЗИЦІЯ,"Київ, вулиця Михайла Грушевського, 1Д",70,2018-12-28,CSO1OH77WY,Банківські послуги,Інші витрати,140452,Черкаська обласна організація,37239608,Черкаська область,"КОМIСIЯ ЗА ВИКОНАННЯ ПЛАТЕЖIВ В НАЦIОНАЛЬНIЙ ВАЛЮТI, ЗГIДНО З ВIДКРИТОЮ ОФЕРТОЮ БАНКУ N Б/Н ВIД 27.03.2017 ТА ТАРИФIВ БАНКУ, БЕЗ ПДВ.",26001051537726,current,3.00,"ПАТ КБ ""Приватбанк""",14360570,юридична особа
ГРОМАДЯНСЬКА ПОЗИЦІЯ,"Черкаська область, Сміла, вулиця Соборна, 91",79,2018-12-28,30,"Оренда будинків і приміщень та експлуатаційні витрати (прибирання, страхування орендованих будинків, охорона, сигналізація, ремонт, вивіз сміття, тощо)",Оренда нерухомості,140451,Черкаська обласна організація,37239608,Черкаська область,КОМПЕНСАЦIЯ ВИТРАТ ЗА ЛИСТОПАД 2018 РОКУ ПО ОБСЛУГОВУВАННЮ ПРИМIЩЕННЯ ОФIСУ В ГОТЕЛI ?СМIЛА? ЗГIДНО РАХУНКУ ? ФАКТУРI № ТМ-0001692 ВIД 30 ЛИСТОПАДА 2018,26001051537726,current,248.32,"КП ""Муніципальна інвестиційно-фондова компанія""",35686412,юридична особа
ГРОМАДЯНСЬКА ПОЗИЦІЯ,"Київ, вулиця Михайла Грушевського, 1Д",70,2018-12-28,CSO1OH4RRY,Банківські послуги,Інші витрати,140450,Черкаська обласна організація,37239608,Черкаська область,"КОМIСIЯ ЗА ВИКОНАННЯ ПЛАТЕЖIВ В НАЦIОНАЛЬНIЙ ВАЛЮТI, ЗГIДНО З ВIДКРИТОЮ ОФЕРТОЮ БАНКУ N Б/Н ВIД 27.03.2017 ТА ТАРИФIВ БАНКУ, БЕЗ ПДВ.",26001051537726,current,3.00,"ПАТ КБ ""Приватбанк""",14360570,юридична особа
ГРОМАДЯНСЬКА ПОЗИЦІЯ,"Київ, вулиця Михайла Грушевського, 1Д",70,2018-12-28,CSO1OH363Y,Банківські послуги,Інші витрати,140449,Черкаська обласна організація,37239608,Черкаська область,"КОМIСIЯ ЗА ВИКОНАННЯ ПЛАТЕЖIВ В НАЦIОНАЛЬНIЙ ВАЛЮТI, ЗГIДНО З ВIДКРИТОЮ ОФЕРТОЮ БАНКУ N Б/Н ВIД 27.03.2017 ТА ТАРИФIВ БАНКУ, БЕЗ ПДВ.",26001051537726,current,3.00,"ПАТ КБ ""Приватбанк""",14360570,юридична особа
ГРОМАДЯНСЬКА ПОЗИЦІЯ,"Черкаська область, Сміла, вулиця Соборна, 91",79,2018-12-28,29,"Оренда будинків і приміщень та експлуатаційні витрати (прибирання, страхування орендованих будинків, охорона, сигналізація, ремонт, вивіз сміття, тощо)",Оренда нерухомості,140448,Черкаська обласна організація,37239608,Черкаська область,ОРЕНДНА ПЛАТА ЗА ЛИСТОПАД 2018 РОКУ ПО ПРИМIЩЕННЯ ОФIСУ В ГОТЕЛI ?СМIЛА? ЗГIДНО РАХУНКУ ? ФАКТУРI № ТМ-0001708 ВIД 31 ЛИСТОПАДА 2018 Р. БЕЗ ПДВ.,26001051537726,current,195.97,"КП ""Муніципальна інвестиційно-фондова компанія""",35686412,юридична особа
ГРОМАДЯНСЬКА ПОЗИЦІЯ,"Київ, вулиця Михайла Грушевського, 1Д",70,2018-12-28,CSO1OH0MFY,Банківські послуги,Інші витрати,140447,Черкаська обласна організація,37239608,Черкаська область,"КОМIСIЯ ЗА ВИКОНАННЯ ПЛАТЕЖIВ В НАЦIОНАЛЬНIЙ ВАЛЮТI, ЗГIДНО З ВIДКРИТОЮ ОФЕРТОЮ БАНКУ N Б/Н ВIД 27.03.2017 ТА ТАРИФIВ БАНКУ, БЕЗ ПДВ.",26001051537726,current,3.00,"ПАТ КБ ""Приватбанк""",14360570,юридична особа
ГРОМАДЯНСЬКА ПОЗИЦІЯ,"Черкаська область, Сміла, вулиця Соборна, 91",53,2018-12-28,28,Витрати на розміщення зовнішньої реклами,Зовнішня реклама,140446,Черкаська обласна організація,37239608,Черкаська область,ЗА РОЗМIЩЕННЯ ЗОВНIШНЬОЇ РЕКЛАМИ В ЖОВТНI 2018 РОКУ НА БУДIВЛI ГОТЕЛЮ ?СМIЛА? ЗГIДНО РАХУНКУ ? ФАКТУРИ № ТМ-0001667 ВIД 31 ЖОВТНЯ 2018 Р. БЕЗ ПДВ.,26001051537726,current,517.50,"КП ""Муніципальна інвестиційно-фондова компанія""",35686412,юридична особа
ГРОМАДЯНСЬКА ПОЗИЦІЯ,"Київ, вулиця Михайла Грушевського, 1Д",70,2018-12-28,CSO1OGQTQY,Банківські послуги,Інші витрати,140445,Черкаська обласна організація,37239608,Черкаська область,"КОМIСIЯ ЗА ВИКОНАННЯ ПЛАТЕЖIВ В НАЦIОНАЛЬНIЙ ВАЛЮТI, ЗГIДНО З ВIДКРИТОЮ ОФЕРТОЮ БАНКУ N Б/Н ВIД 27.03.2017 ТА ТАРИФIВ БАНКУ, БЕЗ ПДВ.",26001051537726,current,3.00,"ПАТ КБ ""Приватбанк""",14360570,юридична особа
ГРОМАДЯНСЬКА ПОЗИЦІЯ,"Черкаська область, Сміла, вулиця Соборна, 91",79,2018-12-28,27,"Оренда будинків і приміщень та експлуатаційні витрати (прибирання, страхування орендованих будинків, охорона, сигналізація, ремонт, вивіз сміття, тощо)",Оренда нерухомості,140444,Черкаська обласна організація,37239608,Черкаська область,КОМПЕНСАЦIЯ ВИТРАТ ЗА ЖОВТЕНЬ 2018 РОКУ ПО ОБСЛУГОВУВАННЮ ПРИМIЩЕННЯ ОФIСУ В ГОТЕЛI ?СМIЛА? ЗГIДНО РАХУНКУ ? ФАКТУРI № ТМ-0001666 ВIД 31 ЖОВТНЯ 2018Р. БЕЗ ПДВ.,26001051537726,current,340.57,"КП ""Муніципальна інвестиційно-фондова компанія""",35686412,юридична особа
ГРОМАДЯНСЬКА ПОЗИЦІЯ,"Черкаська область, Сміла, вулиця Соборна, 91",79,2018-12-28,26,"Оренда будинків і приміщень та експлуатаційні витрати (прибирання, страхування орендованих будинків, охорона, сигналізація, ремонт, вивіз сміття, тощо)",Оренда нерухомості,140443,Черкаська обласна організація,37239608,Черкаська область,ОРЕНДНА ПЛАТА ЗА ЖОВТЕНЬ 2018 РОКУ ПО ПРИМIЩЕННЮ ОФIСУ В ГОТЕЛI ?СМIЛА? ЗГIДНО РАХУНКУ ? ФАКТУРI № ТМ-0001686 ВIД 31 ЖОВТНЯ 2018Р. БЕЗ ПДВ.,26001051537726,current,193.26,"КП ""Муніципальна інвестиційно-фондова компанія""",35686412,юридична особа
ГРОМАДЯНСЬКА ПОЗИЦІЯ,"Київ, вулиця Михайла Грушевського, 1Д",70,2018-12-28,CSO1OGN93Y ,Банківські послуги,Інші витрати,140442,Черкаська обласна організація,37239608,Черкаська область,"КОМIСIЯ ЗА ВИКОНАННЯ ПЛАТЕЖIВ В НАЦIОНАЛЬНIЙ ВАЛЮТI, ЗГIДНО З ВIДКРИТОЮ ОФЕРТОЮ БАНКУ N Б/Н ВIД 27.03.2017 ТА ТАРИФIВ БАНКУ, БЕЗ ПДВ.",26001051537726,current,3.00,"ПАТ КБ ""Приватбанк""",14360570,юридична особа
ГРОМАДЯНСЬКА ПОЗИЦІЯ,,66,2018-12-28,32,Повернення внесків приватних внесків (донорам),Повернення приватних внесків (донорам),140420,Черкаська обласна організація,37239608,Черкаська область,"ПОВЕРНЕННЯ ПОМИЛКОВО ПЕРЕРАХОВАНИХ КОШТIВ ПЛ.ДОК№ 23814432 ВIД 10.12.2018, ЧЛЕНСЬКI ВНЕСКИ ДЯЧУК Л.М. КОД 2860704566, БЕЗ ПДВ",26001051537726,current,160.00,Дячук Ліана Миколаївна,,фізична особа
ГРОМАДЯНСЬКА ПОЗИЦІЯ,,66,2018-12-28,33,Повернення внесків приватних внесків (донорам),Повернення приватних внесків (донорам),140419,Черкаська обласна організація,37239608,Черкаська область,"ПОВЕРНЕННЯ ПОМИЛКОВО ПЕРЕРАХОВАНИХ КОШТIВ ПЛ.ДОК№ @2PL277720 ВIД 24.10.2018, ЧЛЕНСЬКI ВНЕСКИ, АКОПЯН АРТУР АКОПОВИЧ, БЕЗ ПДВ.",26001051537726,current,160.00,Акопян Артур Акопович,,фізична особа
ГРОМАДЯНСЬКА ПОЗИЦІЯ,"Миколаївська область, Миколаїв, Богоявленський проспект, 27, 24",52,2018-12-28,3,Інша реклама (без класифікації),Реклама (без класифікації),140407,Миколаївська обласна організація,40894701,Миколаївська область,Оплата за розміщення інформаційного матеріалу,26000300805234,current,44334.00,Єнтін Олег Якович,,фізична особа
ГРОМАДЯНСЬКА ПОЗИЦІЯ,"Київ, вулиця Михайла Грушевського, 1Д",70,2018-12-28,_1,Банківські послуги,Інші витрати,140404,Хмельницька обласна організація,37263887,Хмельницька область,Комісія за обслуговування рахунку,26001052317039,current,3.00,"ПАТ КБ ""Приватбанк""",14360570,юридична особа
ГРОМАДЯНСЬКА ПОЗИЦІЯ,"Київ, вулиця Михайла Грушевського, 1Д",70,2018-12-28,,Банківські послуги,Інші витрати,140403,Хмельницька обласна організація,37263887,Хмельницька область,Комісія за обслуговування рахунку,26001052317039,current,3.00,"ПАТ КБ ""Приватбанк""",14360570,юридична особа
ГРОМАДЯНСЬКА ПОЗИЦІЯ,,53,2018-12-28,9,Витрати на розміщення зовнішньої реклами,Зовнішня реклама,140400,Хмельницька обласна організація,37263887,Хмельницька область,За оренду рекламної конструкції,26001052317039,current,1400.00,Сидоренко Олег Станіславович,,фізична особа
ГРОМАДЯНСЬКА ПОЗИЦІЯ,,58,2018-12-28,8,"Виготовлення друкованих матеріалів (плакатів, листівок, буклетів та інших агітаційних матеріалів)",Друкована агітація,140399,Хмельницька обласна організація,37263887,Хмельницька область,За рукламу та друк,26001052317039,current,112590.00,Пашинська Валентина Миколаївна,,фізична особа
ГРОМАДЯНСЬКА ПОЗИЦІЯ,,52,2018-12-28,7,Інша реклама (без класифікації),Реклама (без класифікації),140398,Хмельницька обласна організація,37263887,Хмельницька область,Реклама і друк,26001052317039,current,53400.00,Боброва Ніна Андріївна,,фізична особа
ГРОМАДЯНСЬКА ПОЗИЦІЯ,,53,2018-12-28,6,Витрати на розміщення зовнішньої реклами,Зовнішня реклама,140397,Хмельницька обласна організація,37263887,Хмельницька область,За корестування рекламною конструкцією та розміщення постеру,26001052317039,current,3364.90,Поліщук Світлана Олександрівна,,фізична особа
ГРОМАДЯНСЬКА ПОЗИЦІЯ,"Київ, вулиця Антоновича, 127",70,2018-12-28,844587,Банківські послуги,Інші витрати,140353,Центральний офіс,33492420,Україна,Комісія банку,26009000000569,current,2.50,"АТ ""Укрексімбанк""",00032112,юридична особа
ГРОМАДЯНСЬКА ПОЗИЦІЯ,"Київ, вулиця Антоновича, 127",70,2018-12-28,844419,Банківські послуги,Інші витрати,140352,Центральний офіс,33492420,Україна,Комісія банку,26009000000569,current,2.50,"АТ ""Укрексімбанк""",00032112,юридична особа
ГРОМАДЯНСЬКА ПОЗИЦІЯ,"Київ, вулиця Антоновича, 127",70,2018-12-28,844000,Банківські послуги,Інші витрати,140351,Центральний офіс,33492420,Україна,Комісія банку,26009000000569,current,2.50,"АТ ""Укрексімбанк""",00032112,юридична особа
ГРОМАДЯНСЬКА ПОЗИЦІЯ,,52,2018-12-28,61,Інша реклама (без класифікації),Реклама (без класифікації),140186,Центральний офіс,33492420,Україна,Сплата за рекламні послуги,26009000000569,current,36400.00,Челембій А М,,фізична особа
ГРОМАДЯНСЬКА ПОЗИЦІЯ,,53,2018-12-28,62,Витрати на розміщення зовнішньої реклами,Зовнішня реклама,140185,Центральний офіс,33492420,Україна,Сплата за розміщення зовні,26009000000569,current,20067.00,Семак З М,,фізична особа
ГРОМАДЯНСЬКА ПОЗИЦІЯ,,52,2018-12-28,63,Інша реклама (без класифікації),Реклама (без класифікації),140184,Центральний офіс,33492420,Україна,Сплата за розміщення рекла,26009000000569,current,6700.00,Грідіна Н Г,,фізична особа
ГРОМАДЯНСЬКА ПОЗИЦІЯ,"Київ, вулиця Михайла Грушевського, 1Д",70,2018-12-27,I1227912MT,Банківські послуги,Інші витрати,140639,Київська обласна організація,37236193,Київська область,Абонплата за 3208000122228120 0459633415,26001053022803,current,200.00,"ПАТ КБ ""Приватбанк""",14360570,юридична особа
ГРОМАДЯНСЬКА ПОЗИЦІЯ,"Київ, вулиця Михайла Грушевського, 1Д",70,2018-12-27,CRO1OE3COX,Банківські послуги,Інші витрати,140529,Івано-Франківська обласна організація,36733960,Івано-Франківська область,Комісія банку,26000052516833,current,3.80,"ПАТ КБ ""Приватбанк""",14360570,юридична особа
ГРОМАДЯНСЬКА ПОЗИЦІЯ,"Київ, вулиця Михайла Грушевського, 1Д",70,2018-12-27,CRO1OE3COY,Банківські послуги,Інші витрати,140528,Івано-Франківська обласна організація,36733960,Івано-Франківська область,Комісія банку,26000052516833,current,3.00,"ПАТ КБ ""Приватбанк""",14360570,юридична особа
ГРОМАДЯНСЬКА ПОЗИЦІЯ,"Івано-Франківська область, Косівський район, Косів, вулиця Незалежності, 32",49,2018-12-27,111,Публікування матеріалів у друкованих ЗМІ,Реклама в друкованих ЗМІ,140527,Івано-Франківська обласна організація,36733960,Івано-Франківська область,оголошення в газеті,26000052516833,current,1900.00,"ТОВ Редакція газети ""Гуцульський край""",02472909,юридична особа
ГРОМАДЯНСЬКА ПОЗИЦІЯ,"Київ, вулиця Михайла Грушевського, 1Д",70,2018-12-27,CRO1OE21EX,Банківські послуги,Інші витрати,140526,Івано-Франківська обласна організація,36733960,Івано-Франківська область,Комісія банку,26000052516833,current,6.00,"ПАТ КБ ""Приватбанк""",14360570,юридична особа
ГРОМАДЯНСЬКА ПОЗИЦІЯ,"Київ, вулиця Михайла Грушевського, 1Д",70,2018-12-27,CRO1OE21EY,Банківські послуги,Інші витрати,140525,Івано-Франківська обласна організація,36733960,Івано-Франківська область,Комісія банку,26000052516833,current,3.00,"ПАТ КБ ""Приватбанк""",14360570,юридична особа
ГРОМАДЯНСЬКА ПОЗИЦІЯ,"Івано-Франківська область, Городенківський район, Городенка, вулиця Володимира Великого, 4",49,2018-12-27,110,Публікування матеріалів у друкованих ЗМІ,Реклама в друкованих ЗМІ,140524,Івано-Франківська обласна організація,36733960,Івано-Франківська область,політична реклама,26000052516833,current,3000.00,"ПП ""Медіацентр ""Край""",20553758,юридична особа
ГРОМАДЯНСЬКА ПОЗИЦІЯ,"Київ, вулиця Михайла Грушевського, 1Д",70,2018-12-27,CRO1OE216X,Банківські послуги,Інші витрати,140523,Івано-Франківська обласна організація,36733960,Івано-Франківська область,Комісія банку,26000052516833,current,7.20,"ПАТ КБ ""Приватбанк""",14360570,юридична особа
ГРОМАДЯНСЬКА ПОЗИЦІЯ,"Київ, вулиця Михайла Грушевського, 1Д",70,2018-12-27,CRO1OE216Y,Банківські послуги,Інші витрати,140522,Івано-Франківська обласна організація,36733960,Івано-Франківська область,Комісія банку,26000052516833,current,3.00,"ПАТ КБ ""Приватбанк""",14360570,юридична особа
ГРОМАДЯНСЬКА ПОЗИЦІЯ,"Івано-Франківська область, Івано-Франківськ, вулиця Січових стрільців, 2",49,2018-12-27,109,Публікування матеріалів у друкованих ЗМІ,Реклама в друкованих ЗМІ,140521,Івано-Франківська обласна організація,36733960,Івано-Франківська область,опублікування статті,26000052516833,current,3600.00,"РГ ""Галичина’",13644704,юридична особа
ГРОМАДЯНСЬКА ПОЗИЦІЯ,"Київ, вулиця Михайла Грушевського, 1Д",70,2018-12-27,CRO1OE1M7X,Банківські послуги,Інші витрати,140520,Івано-Франківська обласна організація,36733960,Івано-Франківська область,Комісія банку,26000052516833,current,0.43,"ПАТ КБ ""Приватбанк""",14360570,юридична особа
ГРОМАДЯНСЬКА ПОЗИЦІЯ,"Київ, вулиця Михайла Грушевського, 1Д",70,2018-12-27,CRO1OE1M7Y,Банківські послуги,Інші витрати,140519,Івано-Франківська обласна організація,36733960,Івано-Франківська область,Комісія банку,26000052516833,current,3.00,"ПАТ КБ ""Приватбанк""",14360570,юридична особа
ГРОМАДЯНСЬКА ПОЗИЦІЯ,"Івано-Франківська область, Рогатинський район, Рогатин, вулиця Галицька, 67",49,2018-12-27,108,Публікування матеріалів у друкованих ЗМІ,Реклама в друкованих ЗМІ,140518,Івано-Франківська обласна організація,36733960,Івано-Франківська область,опублікування оголошення,26000052516833,current,217.00,"ТОВ ""Голос Опілля""-медіа+""",20553505,юридична особа
ГРОМАДЯНСЬКА ПОЗИЦІЯ,"Київ, вулиця Єреванська, 1",70,2018-12-27,865585809,Банківські послуги,Інші витрати,140481,Херсонська обласна організація,33930536,Херсонська область,коміся банку,26009924418287,current,20.00,"АБ ""Укргазбанк""",23697280,юридична особа
ГРОМАДЯНСЬКА ПОЗИЦІЯ,"Київ, вулиця Єреванська, 1",70,2018-12-27,699443380,Банківські послуги,Інші витрати,140480,Херсонська обласна організація,33930536,Херсонська область,коміся банку,26009924418287,current,20.00,"АБ ""Укргазбанк""",23697280,юридична особа
ГРОМАДЯНСЬКА ПОЗИЦІЯ,"Київ, вулиця Єреванська, 1",70,2018-12-27,353631967,Банківські послуги,Інші витрати,140479,Херсонська обласна організація,33930536,Херсонська область,коміся банку,26009924418287,current,20.00,"АБ ""Укргазбанк""",23697280,юридична особа
ГРОМАДЯНСЬКА ПОЗИЦІЯ,"Київ, вулиця Єреванська, 1",70,2018-12-27,963676751,Банківські послуги,Інші витрати,140478,Херсонська обласна організація,33930536,Херсонська область,коміся банку,26009924418287,current,20.00,"АБ ""Укргазбанк""",23697280,юридична особа
ГРОМАДЯНСЬКА ПОЗИЦІЯ,,53,2018-12-27,8,Витрати на розміщення зовнішньої реклами,Зовнішня реклама,140472,Херсонська обласна організація,33930536,Херсонська область,розміщення зовнішньої реклами,26009924418287,current,93554.00,Невідоме Імʼя,,фізична особа
ГРОМАДЯНСЬКА ПОЗИЦІЯ,,53,2018-12-27,7,Витрати на розміщення зовнішньої реклами,Зовнішня реклама,140471,Херсонська обласна організація,33930536,Херсонська область,розміщення зовнішньої реклами,26009924418287,current,9220.00,Костенюк І М,,фізична особа
ГРОМАДЯНСЬКА ПОЗИЦІЯ,,53,2018-12-27,6,Витрати на розміщення зовнішньої реклами,Зовнішня реклама,140470,Херсонська обласна організація,33930536,Херсонська область,розміщення зовнішньої реклами,26009924418287,current,3332.10,Мошенський О О,,фізична особа
ГРОМАДЯНСЬКА ПОЗИЦІЯ,,53,2018-12-27,5,Витрати на розміщення зовнішньої реклами,Зовнішня реклама,140469,Херсонська обласна організація,33930536,Херсонська область,розміщення зовнішньої реклами,26009924418287,current,1320.00,Бондаренко А А,,фізична особа
ГРОМАДЯНСЬКА ПОЗИЦІЯ,"Київ, вулиця Олега Кошового",52,2018-12-27,50,Інша реклама (без класифікації),Реклама (без класифікації),140350,Центральний офіс,33492420,Україна,Сплата за послуги згідно ра,26009000000569,current,782136.00,"ТОВ ""РТМ-Україна""",31282375,юридична особа
ГРОМАДЯНСЬКА ПОЗИЦІЯ,Київ,52,2018-12-27,41,Інша реклама (без класифікації),Реклама (без класифікації),140349,Центральний офіс,33492420,Україна,Сплата за послуги з розміщення,26009000000569,current,727920.00,"ТОВ ""Біг медіа""",25281224,юридична особа
ГРОМАДЯНСЬКА ПОЗИЦІЯ,"Київ, проспект Перемоги",69,2018-12-27,42,Організація заходів та інші організаційні послуги,Організація заходів та інші організаційні послуги,140348,Центральний офіс,33492420,Україна,Сплата за оренду згідно рах,26009000000569,current,110600.00,"ТОВ ""АККО Інтернешнл""",19257351,юридична особа
ГРОМАДЯНСЬКА ПОЗИЦІЯ,"Волинська область, Луцьк",58,2018-12-27,53,"Виготовлення друкованих матеріалів (плакатів, листівок, буклетів та інших агітаційних матеріалів)",Друкована агітація,140347,Центральний офіс,33492420,Україна,Сплата за друк постера згід,26009000000569,current,110400.00,"ТОВ ""БРЕНДБОРД""",37572766,юридична особа
ГРОМАДЯНСЬКА ПОЗИЦІЯ,Дніпропетровська область,52,2018-12-27,54,Інша реклама (без класифікації),Реклама (без класифікації),140346,Центральний офіс,33492420,Україна,Сплата за розміщення рекла,26009000000569,current,36000.00,"ТОВ ""БІО-ФОРС""",41807672,юридична особа
ГРОМАДЯНСЬКА ПОЗИЦІЯ,"Одеська область, Одеса",52,2018-12-27,56,Інша реклама (без класифікації),Реклама (без класифікації),140345,Центральний офіс,33492420,Україна,Сплата за експонування рек,26009000000569,current,32320.00,"ТОВ ""Неонрекламсервіс""",32901745,юридична особа
ГРОМАДЯНСЬКА ПОЗИЦІЯ,"Київ, вулиця Звіринецька",51,2018-12-27,58,Оплата ефірного часу на ТБ,Телереклама,140344,Центральний офіс,33492420,Україна,Розміщення рекламного сюж,26009000000569,current,20299.71,"ТОВ ""Ті.Ді.-Марк""",40735487,юридична особа
ГРОМАДЯНСЬКА ПОЗИЦІЯ,Тернопільська область,52,2018-12-27,59,Інша реклама (без класифікації),Реклама (без класифікації),140343,Центральний офіс,33492420,Україна,Сплата за розміщення рекла,26009000000569,current,7200.00,"ТОВ ""АРНІКА Лтд""",21158805,юридична особа
ГРОМАДЯНСЬКА ПОЗИЦІЯ,Київ,60,2018-12-27,49,Інші податки,Податкові платежі,140342,Центральний офіс,33492420,Україна,Податки,26009000000569,current,4900.00,ДПІ у Шевченківському районі у м. Києві,39561761,юридична особа
ГРОМАДЯНСЬКА ПОЗИЦІЯ,Київ,63,2018-12-27,43,Податок на доходи,Податкові платежі,140341,Центральний офіс,33492420,Україна,Податки,26009000000569,current,4000.00,УДКСУ у Шевченківському районі м. Києва,37995466,юридична особа
ГРОМАДЯНСЬКА ПОЗИЦІЯ,"Одеська область, Одеса",52,2018-12-27,57,Інша реклама (без класифікації),Реклама (без класифікації),140340,Центральний офіс,33492420,Україна,Сплата за експонування рек,26009000000569,current,3150.00,"ТОВ ""Неонрекламсервіс""",32901745,юридична особа
ГРОМАДЯНСЬКА ПОЗИЦІЯ,Київ,48,2018-12-27,44,Публікування матеріалів у мережі Інтернет,Реклама в інтернеті,140339,Центральний офіс,33492420,Україна,Сплата за послугт згідно до,26009000000569,current,1200.00,"ТОВ ""Гігацентр Україна""",39961308,юридична особа
ГРОМАДЯНСЬКА ПОЗИЦІЯ,Київ,48,2018-12-27,45,Публікування матеріалів у мережі Інтернет,Реклама в інтернеті,140338,Центральний офіс,33492420,Україна,Сплата за послугт згідно до,26009000000569,current,800.00,"ТОВ ""ГІГАТРАНС Україна""",39961313,юридична особа
ГРОМАДЯНСЬКА ПОЗИЦІЯ,Київ,63,2018-12-27,46,Податок на доходи,Податкові платежі,140337,Центральний офіс,33492420,Україна,Податки,26009000000569,current,330.00,УДКСУ у Шевченківському районі м. Києва,37995466,юридична особа
ГРОМАДЯНСЬКА ПОЗИЦІЯ,Київ,76,2018-12-27,47,Послуги зв’язку,Послуги зв’язку,140336,Центральний офіс,33492420,Україна,Сплата за послуги згідно до,26009000000569,current,243.00,"ТОВ ""Воля-кабель""",30777913,юридична особа
ГРОМАДЯНСЬКА ПОЗИЦІЯ,"Київ, вулиця Антоновича, 127",70,2018-12-27,797330,Банківські послуги,Інші витрати,140335,Центральний офіс,33492420,Україна,Комісія банку,26009000000569,current,2.50,"АТ ""Укрексімбанк""",00032112,юридична особа
ГРОМАДЯНСЬКА ПОЗИЦІЯ,"Київ, вулиця Антоновича, 127",70,2018-12-27,796944,Банківські послуги,Інші витрати,140334,Центральний офіс,33492420,Україна,Комісія банку,26009000000569,current,2.50,"АТ ""Укрексімбанк""",00032112,юридична особа
ГРОМАДЯНСЬКА ПОЗИЦІЯ,"Київ, вулиця Антоновича, 127",70,2018-12-27,796848,Банківські послуги,Інші витрати,140333,Центральний офіс,33492420,Україна,Комісія банку,26009000000569,current,2.50,"АТ ""Укрексімбанк""",00032112,юридична особа
ГРОМАДЯНСЬКА ПОЗИЦІЯ,"Київ, вулиця Антоновича, 127",70,2018-12-27,796769,Банківські послуги,Інші витрати,140332,Центральний офіс,33492420,Україна,Комісія банку,26009000000569,current,2.50,"АТ ""Укрексімбанк""",00032112,юридична особа
ГРОМАДЯНСЬКА ПОЗИЦІЯ,"Київ, вулиця Антоновича, 127",70,2018-12-27,796662,Банківські послуги,Інші витрати,140331,Центральний офіс,33492420,Україна,Комісія банку,26009000000569,current,2.50,"АТ ""Укрексімбанк""",00032112,юридична особа
ГРОМАДЯНСЬКА ПОЗИЦІЯ,"Київ, вулиця Антоновича, 127",70,2018-12-27,796528,Банківські послуги,Інші витрати,140330,Центральний офіс,33492420,Україна,Комісія банку,26009000000569,current,2.50,"АТ ""Укрексімбанк""",00032112,юридична особа
ГРОМАДЯНСЬКА ПОЗИЦІЯ,"Київ, вулиця Антоновича, 127",70,2018-12-27,796381,Банківські послуги,Інші витрати,140329,Центральний офіс,33492420,Україна,Комісія банку,26009000000569,current,2.50,"АТ ""Укрексімбанк""",00032112,юридична особа
ГРОМАДЯНСЬКА ПОЗИЦІЯ,"Київ, вулиця Антоновича, 127",70,2018-12-27,796313,Банківські послуги,Інші витрати,140328,Центральний офіс,33492420,Україна,Комісія банку,26009000000569,current,2.50,"АТ ""Укрексімбанк""",00032112,юридична особа
ГРОМАДЯНСЬКА ПОЗИЦІЯ,"Київ, вулиця Антоновича, 127",70,2018-12-27,796150,Банківські послуги,Інші витрати,140327,Центральний офіс,33492420,Україна,Комісія банку,26009000000569,current,2.50,"АТ ""Укрексімбанк""",00032112,юридична особа
ГРОМАДЯНСЬКА ПОЗИЦІЯ,"Київ, вулиця Антоновича, 127",70,2018-12-27,795784,Банківські послуги,Інші витрати,140326,Центральний офіс,33492420,Україна,Комісія банку,26009000000569,current,2.50,"АТ ""Укрексімбанк""",00032112,юридична особа
ГРОМАДЯНСЬКА ПОЗИЦІЯ,"Київ, вулиця Антоновича, 127",70,2018-12-27,795629,Банківські послуги,Інші витрати,140325,Центральний офіс,33492420,Україна,Комісія банку,26009000000569,current,2.50,"АТ ""Укрексімбанк""",00032112,юридична особа
ГРОМАДЯНСЬКА ПОЗИЦІЯ,"Київ, вулиця Антоновича, 127",70,2018-12-27,795428,Банківські послуги,Інші витрати,140324,Центральний офіс,33492420,Україна,Комісія банку,26009000000569,current,2.50,"АТ ""Укрексімбанк""",00032112,юридична особа
ГРОМАДЯНСЬКА ПОЗИЦІЯ,"Київ, вулиця Антоновича, 127",70,2018-12-27,795346,Банківські послуги,Інші витрати,140323,Центральний офіс,33492420,Україна,Комісія банку,26009000000569,current,2.50,"АТ ""Укрексімбанк""",00032112,юридична особа
ГРОМАДЯНСЬКА ПОЗИЦІЯ,"Київ, вулиця Антоновича, 127",70,2018-12-27,795262,Банківські послуги,Інші витрати,140322,Центральний офіс,33492420,Україна,Комісія банку,26009000000569,current,2.50,"АТ ""Укрексімбанк""",00032112,юридична особа
ГРОМАДЯНСЬКА ПОЗИЦІЯ,"Київ, вулиця Антоновича, 127",70,2018-12-27,795256,Банківські послуги,Інші витрати,140321,Центральний офіс,33492420,Україна,Комісія банку,26009000000569,current,2.50,"АТ ""Укрексімбанк""",00032112,юридична особа
ГРОМАДЯНСЬКА ПОЗИЦІЯ,"Київ, вулиця Антоновича, 127",70,2018-12-27,795254,Банківські послуги,Інші витрати,140320,Центральний офіс,33492420,Україна,Комісія банку,26009000000569,current,2.50,"АТ ""Укрексімбанк""",00032112,юридична особа
ГРОМАДЯНСЬКА ПОЗИЦІЯ,"Київ, вулиця Антоновича, 127",70,2018-12-27,795252,Банківські послуги,Інші витрати,140319,Центральний офіс,33492420,Україна,Комісія банку,26009000000569,current,2.50,"АТ ""Укрексімбанк""",00032112,юридична особа
ГРОМАДЯНСЬКА ПОЗИЦІЯ,"Київ, вулиця Антоновича, 127",70,2018-12-27,795250,Банківські послуги,Інші витрати,140318,Центральний офіс,33492420,Україна,Комісія банку,26009000000569,current,2.50,"АТ ""Укрексімбанк""",00032112,юридична особа
ГРОМАДЯНСЬКА ПОЗИЦІЯ,,52,2018-12-27,51,Інша реклама (без класифікації),Реклама (без класифікації),140183,Центральний офіс,33492420,Україна,Сплата за розміщення рекла,26009000000569,current,31640.00,Любченко Ю Б,,фізична особа
ГРОМАДЯНСЬКА ПОЗИЦІЯ,,84,2018-12-27,48,"Заробітна плата, премії","Заробітна плата, лікарняні, вагітності, відрядження, компенсації",140182,Центральний офіс,33492420,Україна,ЗП за 2018р.,26009000000569,current,16100.00,Бондаренко Христина Павлівна,,фізична особа
ГРОМАДЯНСЬКА ПОЗИЦІЯ,,84,2018-12-27,48,"Заробітна плата, премії","Заробітна плата, лікарняні, вагітності, відрядження, компенсації",140181,Центральний офіс,33492420,Україна,ЗП за 2018р.,26009000000569,current,764.75,Комарова Ганна Георгіївна,,фізична особа
ГРОМАДЯНСЬКА ПОЗИЦІЯ,,84,2018-12-27,48,"Заробітна плата, премії","Заробітна плата, лікарняні, вагітності, відрядження, компенсації",140180,Центральний офіс,33492420,Україна,ЗП за 2018р.,26009000000569,current,764.75,Павлик Зоя Борисівна,,фізична особа
ГРОМАДЯНСЬКА ПОЗИЦІЯ,,52,2018-12-27,60,Інша реклама (без класифікації),Реклама (без класифікації),140179,Центральний офіс,33492420,Україна,Сплата за розміщення рекла,26009000000569,current,15000.00,Бучинський В М,,фізична особа
ГРОМАДЯНСЬКА ПОЗИЦІЯ,,52,2018-12-27,55,Інша реклама (без класифікації),Реклама (без класифікації),140178,Центральний офіс,33492420,Україна,Сплата за розміщення рекла,26009000000569,current,10960.00,Григоров А М,,фізична особа
ГРОМАДЯНСЬКА ПОЗИЦІЯ,,52,2018-12-27,52,Інша реклама (без класифікації),Реклама (без класифікації),140177,Центральний офіс,33492420,Україна,Сплата за рекламні послуги,26009000000569,current,3533.00,Дзьобан О В,,фізична особа
ГРОМАДЯНСЬКА ПОЗИЦІЯ,,66,2018-12-26,28,Повернення внесків приватних внесків (донорам),Повернення приватних внесків (донорам),140538,Дніпропетровська обласна організація,37006888,Дніпропетровська область,Повернення помилково перерахованих коштів,26005050226940,current,100.00,Губар Вадим Іванович,,фізична особа
ГРОМАДЯНСЬКА ПОЗИЦІЯ,"Київ, вулиця Генерала Алмазова, 8",58,2018-12-26,29,"Виготовлення друкованих матеріалів (плакатів, листівок, буклетів та інших агітаційних матеріалів)",Друкована агітація,140317,Центральний офіс,33492420,Україна,Сплата за паперовий постер,26009000000569,current,54520.28,"ТОВ ""Гранд Афіш""",36678347,юридична особа
ГРОМАДЯНСЬКА ПОЗИЦІЯ,Київ,58,2018-12-26,30,"Виготовлення друкованих матеріалів (плакатів, листівок, буклетів та інших агітаційних матеріалів)",Друкована агітація,140316,Центральний офіс,33492420,Україна,Сплата за паперовий постер,26009000000569,current,34290.10,"ТОВ ""Гранд Афіш""",36678347,юридична особа
ГРОМАДЯНСЬКА ПОЗИЦІЯ,"Київ, проспект Перемоги",69,2018-12-26,19,Організація заходів та інші організаційні послуги,Організація заходів та інші організаційні послуги,140315,Центральний офіс,33492420,Україна,Сплата за оренду згідно рах,26009000000569,current,25400.00,"ТОВ ""АККО Інтернешнл""",19257351,юридична особа
ГРОМАДЯНСЬКА ПОЗИЦІЯ,Тернопільська область,52,2018-12-26,39,Інша реклама (без класифікації),Реклама (без класифікації),140314,Центральний офіс,33492420,Україна,Сплата за рекламні послуги,26009000000569,current,25200.00,"ПП ""КВВ-Д""",37681442,юридична особа
ГРОМАДЯНСЬКА ПОЗИЦІЯ,Київ,58,2018-12-26,31,"Виготовлення друкованих матеріалів (плакатів, листівок, буклетів та інших агітаційних матеріалів)",Друкована агітація,140313,Центральний офіс,33492420,Україна,Сплата за паперовий постер,26009000000569,current,16390.00,"ТОВ ""Гранд Афіш""",36678347,юридична особа
ГРОМАДЯНСЬКА ПОЗИЦІЯ,"Черкаська область, Черкаси",52,2018-12-26,35,Інша реклама (без класифікації),Реклама (без класифікації),140312,Центральний офіс,33492420,Україна,Сплата за розміщення реклг,26009000000569,current,10000.00,"ТОВ ""Коломі груп""",42038728,юридична особа
ГРОМАДЯНСЬКА ПОЗИЦІЯ,,52,2018-12-26,32,Інша реклама (без класифікації),Реклама (без класифікації),140176,Центральний офіс,33492420,Україна,Сплата за ТМЦ з логотипом,26009000000569,current,216800.00,Черненко Оксана Володимирівна,,фізична особа
ГРОМАДЯНСЬКА ПОЗИЦІЯ,,43,2018-12-26,33,Інші витрати,Інші витрати,140175,Центральний офіс,33492420,Україна,Сплата за ТМЦ згідно рах.№,26009000000569,current,136350.00,Саковцев А О,,фізична особа
ГРОМАДЯНСЬКА ПОЗИЦІЯ,,53,2018-12-26,38,Витрати на розміщення зовнішньої реклами,Зовнішня реклама,140174,Центральний офіс,33492420,Україна,Сплата за оренду бордів згід,26009000000569,current,41720.00,Салій Н Б,,фізична особа
ГРОМАДЯНСЬКА ПОЗИЦІЯ,,52,2018-12-26,37,Інша реклама (без класифікації),Реклама (без класифікації),140173,Центральний офіс,33492420,Україна,Сплата за розміщення рекла,26009000000569,current,36200.00,Сіроштан І О,,фізична особа
ГРОМАДЯНСЬКА ПОЗИЦІЯ,,52,2018-12-26,40,Інша реклама (без класифікації),Реклама (без класифікації),140172,Центральний офіс,33492420,Україна,Сплата за рекламні послуги,26009000000569,current,21000.00,Степанець Р В,,фізична особа
ГРОМАДЯНСЬКА ПОЗИЦІЯ,,58,2018-12-26,34,"Виготовлення друкованих матеріалів (плакатів, листівок, буклетів та інших агітаційних матеріалів)",Друкована агітація,140171,Центральний офіс,33492420,Україна,Сплата за розміщення посте,26009000000569,current,12000.00,Савойко М В,,фізична особа
ГРОМАДЯНСЬКА ПОЗИЦІЯ,,52,2018-12-26,36,Інша реклама (без класифікації),Реклама (без класифікації),140170,Центральний офіс,33492420,Україна,Сплата за рекламні послуги,26009000000569,current,7300.00,Шаблєвський О В,,фізична особа
ГРОМАДЯНСЬКА ПОЗИЦІЯ,"Київ, вулиця Михайла Грушевського, 1Д",70,2018-12-22,CMO1NW903Y,Банківські послуги,Інші витрати,140637,Київська обласна організація,37236193,Київська область,"Комiсiя за виконання платежiв в нацiональнiй валютi, згiдно з вiдкритою офертою банку N б/н вiд 13.03.2018 та тарифiв банку, без ПДВ.",26001053022803,current,3.00,"ПАТ КБ ""Приватбанк""",14360570,юридична особа
ГРОМАДЯНСЬКА ПОЗИЦІЯ,"Київ, вулиця Михайла Грушевського, 1Д",70,2018-12-22,87,Банківські послуги,Інші витрати,140636,Київська обласна організація,37236193,Київська область,Комiсiя РКО вiд зарплати за грудень 2018р.,26001053022803,current,7.50,"ПАТ КБ ""Приватбанк""",14360570,юридична особа
ГРОМАДЯНСЬКА ПОЗИЦІЯ,"Київська обл., Вишгородський район, Вишгород, проспект Шевченка, 1",62,2018-12-22,89,Сплата ЄСВ,Податкові платежі,140635,Київська обласна організація,37236193,Київська область,*;101;37236193;ЄСВ вiд зарплати за грудень 2018р.,26001053022803,current,1760.00,Вишгородська ОДПІ ГУ ДФС у Київській області,39466569,юридична особа
ГРОМАДЯНСЬКА ПОЗИЦІЯ,"Київ, вулиця Михайла Грушевського, 1Д",70,2018-12-22,CMO1NW92HY,Банківські послуги,Інші витрати,140634,Київська обласна організація,37236193,Київська область,"Комiсiя за виконання платежiв в нацiональнiй валютi, згiдно з вiдкритою офертою банку N б/н вiд 13.03.2018 та тарифiв банку, без ПДВ.",26001053022803,current,3.00,"ПАТ КБ ""Приватбанк""",14360570,юридична особа
ГРОМАДЯНСЬКА ПОЗИЦІЯ,"Київська обл., Вишгородський район, Вишгород, вулиця Кургузова, 13",61,2018-12-22,90,Військовий збір,Податкові платежі,140633,Київська обласна організація,37236193,Київська область,*;101;37236193;Вiйськовий збiр вiд зарплати за грудень 2018р.,26001053022803,current,120.00,УДКСУ у Вишгородському районі Київської області,37868556,юридична особа
ГРОМАДЯНСЬКА ПОЗИЦІЯ,"Київ, вулиця Михайла Грушевського, 1Д",70,2018-12-22,CMO1NW93IY,Банківські послуги,Інші витрати,140632,Київська обласна організація,37236193,Київська область,"Комiсiя за виконання платежiв в нацiональнiй валютi, згiдно з вiдкритою офертою банку N б/н вiд 13.03.2018 та тарифiв банку, без ПДВ.",26001053022803,current,3.00,"ПАТ КБ ""Приватбанк""",14360570,юридична особа
ГРОМАДЯНСЬКА ПОЗИЦІЯ,"Київська обл., Переяслав, Богдана Хмельницького вулиця, 99, 24",53,2018-12-22,85,Витрати на розміщення зовнішньої реклами,Зовнішня реклама,140631,Київська обласна організація,37236193,Київська область,"Оплата за постер i монтаж постера згiдно рахунку N 298 вiд 18 грудня 2018 року У сумi 2000.00 грн., ПДВ - 20 % 400.00 грн.",26001053022803,current,2400.00,"ТОВ ""ФОКУС-МЕДІА""",39640654,юридична особа
ГРОМАДЯНСЬКА ПОЗИЦІЯ,,84,2018-12-22,88,"Заробітна плата, премії","Заробітна плата, лікарняні, вагітності, відрядження, компенсації",140573,Київська обласна організація,37236193,Київська область,Зарплата за грудень 2018р.,26001053022803,current,1500.00,Побідаш Ірина Миколаївна,,фізична особа
ГРОМАДЯНСЬКА ПОЗИЦІЯ,,84,2018-12-22,88,"Заробітна плата, премії","Заробітна плата, лікарняні, вагітності, відрядження, компенсації",140572,Київська обласна організація,37236193,Київська область,Зарплата за грудень 2018р.,26001053022803,current,1500.00,Присяжнюк Юлія Ігорівна,,фізична особа
ГРОМАДЯНСЬКА ПОЗИЦІЯ,Київ,53,2018-12-22,23,Витрати на розміщення зовнішньої реклами,Зовнішня реклама,140311,Центральний офіс,33492420,Україна,Сплата за розмыщення зовн,26009000000569,current,732800.00,"ТОВ ""Лайв Маркетинг""",41478149,юридична особа
ГРОМАДЯНСЬКА ПОЗИЦІЯ,"Київ, вулиця Олега Кошового",52,2018-12-22,26,Інша реклама (без класифікації),Реклама (без класифікації),140310,Центральний офіс,33492420,Україна,Сплата за послуги згідно ра,26009000000569,current,69120.00,"ТОВ ""РТМ-Україна""",31282375,юридична особа
ГРОМАДЯНСЬКА ПОЗИЦІЯ,"Полтавська область, Полтава",52,2018-12-22,20,Інша реклама (без класифікації),Реклама (без класифікації),140309,Центральний офіс,33492420,Україна,Сплата послуги згыдно рах.,26009000000569,current,16686.00,"ТОВ ""РА Оллан""",24832260,юридична особа
ГРОМАДЯНСЬКА ПОЗИЦІЯ,"Дніпропетровська область, Дніпро́",52,2018-12-22,28,Інша реклама (без класифікації),Реклама (без класифікації),140308,Центральний офіс,33492420,Україна,Сплата за рекламні послуги,26009000000569,current,13333.60,"ТОВ ""Сілл Аутдор""",41720623,юридична особа
ГРОМАДЯНСЬКА ПОЗИЦІЯ,"Черкаська область, Черкаси",53,2018-12-22,24,Витрати на розміщення зовнішньої реклами,Зовнішня реклама,140307,Центральний офіс,33492420,Україна,Сплата за оренду борду згід,26009000000569,current,12280.00,"ТОВ ""МАРКЕТИНГОВІ Технології""",31855379,юридична особа
ГРОМАДЯНСЬКА ПОЗИЦІЯ,,56,2018-12-22,25,Виготовлення (оренда) агітаційних наметів,Виготовлення (оренда) агітаційних наметів,140169,Центральний офіс,33492420,Україна,Сплата за палатки з логотип,26009000000569,current,845370.00,Черненко Оксана Володимирівна,,фізична особа
ГРОМАДЯНСЬКА ПОЗИЦІЯ,,52,2018-12-22,27,Інша реклама (без класифікації),Реклама (без класифікації),140168,Центральний офіс,33492420,Україна,Сплата за рекламні послуги,26009000000569,current,240000.00,Баско А В,,фізична особа
ГРОМАДЯНСЬКА ПОЗИЦІЯ,,52,2018-12-22,22,Інша реклама (без класифікації),Реклама (без класифікації),140167,Центральний офіс,33492420,Україна,Сплата за рекламно-інформ,26009000000569,current,178080.00,Челембій А М,,фізична особа
ГРОМАДЯНСЬКА ПОЗИЦІЯ,,52,2018-12-22,21,Інша реклама (без класифікації),Реклама (без класифікації),140166,Центральний офіс,33492420,Україна,Сплата за рекламно-інформ,26009000000569,current,51800.00,Челембій А М,,фізична особа
ГРОМАДЯНСЬКА ПОЗИЦІЯ,,43,2018-12-21,175,Інші витрати,Інші витрати,140655,Волинська обласна організація,37204512,Волинська область,,2600805509013,current,1778.00,Пастушок Сергій Андрійович,3071520893,фізична особа
ГРОМАДЯНСЬКА ПОЗИЦІЯ,,43,2018-12-21,174,Інші витрати,Інші витрати,140654,Волинська обласна організація,37204512,Волинська область,,2600805509013,current,29766.00,Пастушок Сергій Андрійович,3071520893,фізична особа
ГРОМАДЯНСЬКА ПОЗИЦІЯ,"Київ, вулиця Михайла Грушевського, 1Д",70,2018-12-21,CLO1NSCC2Y,Банківські послуги,Інші витрати,140365,Сумська обласна організація,37283311,Сумська область,коміся за виконання платежів в національній валюті,26003055027585,current,3.00,"ПАТ КБ ""Приватбанк""",14360570,юридична особа
ГРОМАДЯНСЬКА ПОЗИЦІЯ,"Сумська область, Суми, проспект Тараса Шевченка, 2",53,2018-12-21,5,Витрати на розміщення зовнішньої реклами,Зовнішня реклама,140364,Сумська обласна організація,37283311,Сумська область,розміщення сюжетів замовника на конструкціях виконавця,26003055027585,current,9000.00,"ПП ""ФАБРИКА Реклами""",24002437,юридична особа
ГРОМАДЯНСЬКА ПОЗИЦІЯ,Київ,58,2018-12-21,17,"Виготовлення друкованих матеріалів (плакатів, листівок, буклетів та інших агітаційних матеріалів)",Друкована агітація,140306,Центральний офіс,33492420,Україна,Сплата за паперовий постер,26009000000569,current,26294.16,"ТОВ ""Гранд Афіш""",36678347,юридична особа
ГРОМАДЯНСЬКА ПОЗИЦІЯ,,49,2018-12-21,18,Публікування матеріалів у друкованих ЗМІ,Реклама в друкованих ЗМІ,140165,Центральний офіс,33492420,Україна,Сплата за розміщення в ЗМІ,26009000000569,current,5000.00,Бульбаха Вікторія Анатоліївна,,фізична особа
ГРОМАДЯНСЬКА ПОЗИЦІЯ,"Тернопільська область, Тернопіль, вулиця Богдана Хмельницького, 15",75,2018-12-20,104,Поштові послуги та поширення друкованих матеріалів,Поштові послуги та поширення друкованих матеріалів,140700,Тернопільська обласна організація,37016189,Тернопільська область,Безадресна доставка друкованого видання,26002300597395,current,25306.20,"Тернопільська дирекція ПАТ ""Укрпошта""",01192220,юридична особа
ГРОМАДЯНСЬКА ПОЗИЦІЯ,,53,2018-12-20,16,Витрати на розміщення зовнішньої реклами,Зовнішня реклама,140376,Закарпатська обласна організація,37296975,Закарпатська область,Оплата розміщення реклами на рекламних носіях,26003000588433,current,5600.00,Рябіков Олександр Арнольдович,,фізична особа
ГРОМАДЯНСЬКА ПОЗИЦІЯ,"Київ, вулиця Павлівська",50,2018-12-20,15,Оплата ефірного часу на радіо,Реклама на радіо,140305,Центральний офіс,33492420,Україна,Сплата за послуги на каналі радіомовлення,26009000000569,current,139056.00,"ТОВ ""Компанія ""Тавр""",32671670,юридична особа
ГРОМАДЯНСЬКА ПОЗИЦІЯ,"Полтавська область, Полтава",52,2018-12-20,16,Інша реклама (без класифікації),Реклама (без класифікації),140304,Центральний офіс,33492420,Україна,Сплата послуги згьідно рах.,26009000000569,current,3400.00,"ТОВ ""РА Оллан""",24832260,юридична особа
ГРОМАДЯНСЬКА ПОЗИЦІЯ,,43,2018-12-19,173,Інші витрати,Інші витрати,140653,Волинська обласна організація,37204512,Волинська область,,2600805509013,current,8393.00,Пастушок Сергій Андрійович,3071520893,фізична особа
ГРОМАДЯНСЬКА ПОЗИЦІЯ,,53,2018-12-19,21,Витрати на розміщення зовнішньої реклами,Зовнішня реклама,140375,Закарпатська обласна організація,37296975,Закарпатська область,Оплата розміщення реклами на рекламних носіях,26003000588433,current,1000.00,Абдулов Костянтин Олександрович,,фізична особа
ГРОМАДЯНСЬКА ПОЗИЦІЯ,"Київ, вулиця Павлівська",50,2018-12-19,13,Оплата ефірного часу на радіо,Реклама на радіо,140303,Центральний офіс,33492420,Україна,Сплата за послуги на каналі радіомовлення,26009000000569,current,750000.00,"ТОВ ""Компанія ""Тавр""",32671670,юридична особа
ГРОМАДЯНСЬКА ПОЗИЦІЯ,Київ,51,2018-12-19,14,Оплата ефірного часу на ТБ,Телереклама,140302,Центральний офіс,33492420,Україна,Сплата за розміщення сюже,26009000000569,current,28044.00,"ТОВ ""Преміум Медіа Груп""",34716807,юридична особа
ГРОМАДЯНСЬКА ПОЗИЦІЯ,"Київ, вулиця Рейтарська",52,2018-12-19,12,Інша реклама (без класифікації),Реклама (без класифікації),140301,Центральний офіс,33492420,Україна,Сплата за організацію та пр,26009000000569,current,6000.00,"ТОВ ""Інформаційне агенство ""Інтерфакс-Україна""",23732734,юридична особа
ГРОМАДЯНСЬКА ПОЗИЦІЯ,"Київська обл., Обухівський район, Обухів, вулиця Каштанова, 23",53,2018-12-18,84,Витрати на розміщення зовнішньої реклами,Зовнішня реклама,140630,Київська обласна організація,37236193,Київська область,Оплата за поклейку постера згiдно рахунку N СФ-000128 вiд 17.12.2018 р. Без ПДВ,26001053022803,current,2000.00,"ТОВ ""АІСТ""",19403261,юридична особа
ГРОМАДЯНСЬКА ПОЗИЦІЯ,"Київ, вулиця Михайла Грушевського, 1Д",70,2018-12-18,CIO1N69PHY,Банківські послуги,Інші витрати,140629,Київська обласна організація,37236193,Київська область,"Комiсiя за виконання платежiв в нацiональнiй валютi, згiдно з вiдкритою офертою банку N б/н вiд 13.03.2018 та тарифiв банку, без ПДВ.",26001053022803,current,3.00,"ПАТ КБ ""Приватбанк""",14360570,юридична особа
ГРОМАДЯНСЬКА ПОЗИЦІЯ,"Київська обл., Васильків, вулиця Чехова, 10",53,2018-12-18,83,Витрати на розміщення зовнішньої реклами,Зовнішня реклама,140628,Київська обласна організація,37236193,Київська область,Оплата за додаткову поклейку постера у груднi згiдно рахунку NСФ-00142 вiд 14.12.2018 р. Без ПДВ,26001053022803,current,1275.00,"ТОВ Нвкц ""ЕЛЕКТА""",13708864,юридична особа
ГРОМАДЯНСЬКА ПОЗИЦІЯ,"Київ, вулиця Михайла Грушевського, 1Д",70,2018-12-18,CIO1N69PKY,Банківські послуги,Інші витрати,140627,Київська обласна організація,37236193,Київська область,"Комiсiя за виконання платежiв в нацiональнiй валютi, згiдно з вiдкритою офертою банку N б/н вiд 13.03.2018 та тарифiв банку, без ПДВ.",26001053022803,current,3.00,"ПАТ КБ ""Приватбанк""",14360570,юридична особа
ГРОМАДЯНСЬКА ПОЗИЦІЯ,,53,2018-12-18,82,Витрати на розміщення зовнішньої реклами,Зовнішня реклама,140571,Київська обласна організація,37236193,Київська область,"Оплата за поклейку борда згiдно рахунку-фактури N3 вiд 13.12.2018 р. У сумi 416.67 грн., ПДВ - 20 % 83.33 грн.",26001053022803,current,500.00,Добрянський В О,,фізична особа
ГРОМАДЯНСЬКА ПОЗИЦІЯ,,52,2018-12-18,81,Інша реклама (без класифікації),Реклама (без класифікації),140570,Київська обласна організація,37236193,Київська область,Оплата за рекламнi послуги згiдно рахунку N121 вiд 10.12.2018 р. Без ПДВ,26001053022803,current,10360.00,Осика В В,,фізична особа
ГРОМАДЯНСЬКА ПОЗИЦІЯ,,66,2018-12-18,27,Повернення внесків приватних внесків (донорам),Повернення приватних внесків (донорам),140537,Дніпропетровська обласна організація,37006888,Дніпропетровська область,Повернення помилково перерахованих коштів,26005050226940,current,120.00,Дика Тетяна Василівна,,фізична особа
ГРОМАДЯНСЬКА ПОЗИЦІЯ,"Львівська область, Львів",52,2018-12-18,9,Інша реклама (без класифікації),Реклама (без класифікації),140300,Центральний офіс,33492420,Україна,Сплата за рекламні послуги,26009000000569,current,178352.00,"ТОВ ""ЕКП Захід""",40286658,юридична особа
ГРОМАДЯНСЬКА ПОЗИЦІЯ,"Львівська область, Львів",52,2018-12-18,8,Інша реклама (без класифікації),Реклама (без класифікації),140299,Центральний офіс,33492420,Україна,Сплата за рекламні послуги,26009000000569,current,143244.00,"ТОВ ""ЕКП Захід""",40286658,юридична особа
ГРОМАДЯНСЬКА ПОЗИЦІЯ,"Львівська область, Львів",52,2018-12-18,7,Інша реклама (без класифікації),Реклама (без класифікації),140298,Центральний офіс,33492420,Україна,Сплата за розміщення рекла,26009000000569,current,130010.00,"ТОВ ""ЦЕНТР Реклами""",32712994,юридична особа
ГРОМАДЯНСЬКА ПОЗИЦІЯ,"Львівська область, Львів",52,2018-12-18,6,Інша реклама (без класифікації),Реклама (без класифікації),140297,Центральний офіс,33492420,Україна,Сплата за розміщення рекла,26009000000569,current,121066.67,"ТОВ ""ЦЕНТР Реклами""",32712994,юридична особа
ГРОМАДЯНСЬКА ПОЗИЦІЯ,Київ,52,2018-12-18,10,Інша реклама (без класифікації),Реклама (без класифікації),140296,Центральний офіс,33492420,Україна,Сплата за послуги згідно ра,26009000000569,current,68526.00,"ТОВ ""КОМПАНІЯ Орт""",42189360,юридична особа
ГРОМАДЯНСЬКА ПОЗИЦІЯ,"Київ, вулиця Антоновича",52,2018-12-18,11,Інша реклама (без класифікації),Реклама (без класифікації),140295,Центральний офіс,33492420,Україна,Сплата за розміщення рекал,26009000000569,current,20280.00,"ПП ""ХІМДЖЕСТ""",21587009,юридична особа
ГРОМАДЯНСЬКА ПОЗИЦІЯ,"Київ, вулиця Марка Вовчка, 12/14",58,2018-12-17,3,"Виготовлення друкованих матеріалів (плакатів, листівок, буклетів та інших агітаційних матеріалів)",Друкована агітація,140294,Центральний офіс,33492420,Україна,Сплата за друк газети згідно,26009000000569,current,992996.70,"ТОВ ’Мега-поліграф""",32114278,юридична особа
ГРОМАДЯНСЬКА ПОЗИЦІЯ,Тернопільська область,58,2018-12-17,4,"Виготовлення друкованих матеріалів (плакатів, листівок, буклетів та інших агітаційних матеріалів)",Друкована агітація,140293,Центральний офіс,33492420,Україна,Сплата за друк газети зг.ра,26009000000569,current,381891.60,"ТОВ ""ДІМ""",22605152,юридична особа
ГРОМАДЯНСЬКА ПОЗИЦІЯ,Київ,52,2018-12-17,5,Інша реклама (без класифікації),Реклама (без класифікації),140292,Центральний офіс,33492420,Україна,Сплата за послуги згідно ра,26009000000569,current,318043.20,"ТОВ ""КОМПАНІЯ Орт""",42189360,юридична особа
ГРОМАДЯНСЬКА ПОЗИЦІЯ,Київ,58,2018-12-17,2,"Виготовлення друкованих матеріалів (плакатів, листівок, буклетів та інших агітаційних матеріалів)",Друкована агітація,140291,Центральний офіс,33492420,Україна,Сплата за паперовий постер,26009000000569,current,208000.00,"ТОВ ""Гранд Афіш""",36678347,юридична особа
ГРОМАДЯНСЬКА ПОЗИЦІЯ,"Закарпатська область, Мукачево, вулиця Пушкіна, 12, 1",53,2018-12-14,20,Витрати на розміщення зовнішньої реклами,Зовнішня реклама,140385,Закарпатська обласна організація,37296975,Закарпатська область,Оплата розміщення реклами на рекламних носіях,26003000588433,current,9000.00,"ПП ""ДРАЙ-В""",33852893,юридична особа
ГРОМАДЯНСЬКА ПОЗИЦІЯ,"Закарпатська область, Ужгород, вулиця Ватутіна, 9",53,2018-12-14,18,Витрати на розміщення зовнішньої реклами,Зовнішня реклама,140384,Закарпатська обласна організація,37296975,Закарпатська область,Оплата розміщення реклами на рекламних носіях,26003000588433,current,6400.00,"ПП ""КОРЗО-2""",30015215,юридична особа
ГРОМАДЯНСЬКА ПОЗИЦІЯ,"Закарпатська область, Хуст, вулиця Івана Франка, 185",53,2018-12-14,15,Витрати на розміщення зовнішньої реклами,Зовнішня реклама,140383,Закарпатська обласна організація,37296975,Закарпатська область,Оплата розміщення реклами на рекламних носіях,26003000588433,current,6400.00,"ТОВ ""100% Реклама""",32672501,юридична особа
ГРОМАДЯНСЬКА ПОЗИЦІЯ,,53,2018-12-14,19,Витрати на розміщення зовнішньої реклами,Зовнішня реклама,140374,Закарпатська обласна організація,37296975,Закарпатська область,Оплата розміщення реклами на рекламних носіях,26003000588433,current,12800.00,Грабар Марія Миколаївна,,фізична особа
ГРОМАДЯНСЬКА ПОЗИЦІЯ,,53,2018-12-14,17,Витрати на розміщення зовнішньої реклами,Зовнішня реклама,140373,Закарпатська обласна організація,37296975,Закарпатська область,Оплата розміщення реклами на рекламних носіях,26003000588433,current,6000.00,Пілюгін Андрій Петрович,,фізична особа
ГРОМАДЯНСЬКА ПОЗИЦІЯ,,53,2018-12-14,16,Витрати на розміщення зовнішньої реклами,Зовнішня реклама,140372,Закарпатська обласна організація,37296975,Закарпатська область,Оплата розміщення реклами на рекламних носіях,26003000588433,current,5600.00,Рябіков Олександр Арнольдович,,фізична особа
ГРОМАДЯНСЬКА ПОЗИЦІЯ,,53,2018-12-14,14,Витрати на розміщення зовнішньої реклами,Зовнішня реклама,140371,Закарпатська обласна організація,37296975,Закарпатська область,Оплата розміщення реклами на рекламних носіях,26003000588433,current,36000.00,Шумеляк Олександр Віталійович,,фізична особа
ГРОМАДЯНСЬКА ПОЗИЦІЯ,,79,2018-12-13,6,"Оренда будинків і приміщень та експлуатаційні витрати (прибирання, страхування орендованих будинків, охорона, сигналізація, ремонт, вивіз сміття, тощо)",Оренда нерухомості,140388,Київська міська організація,37615584,Київ,Оренад приміщення,26009337001200,current,6000.00,Байбуріна Наталя Вячеславівна,,фізична особа
ГРОМАДЯНСЬКА ПОЗИЦІЯ,"Київ, вулиця Олега Кошового",52,2018-12-13,53,Інша реклама (без класифікації),Реклама (без класифікації),140290,Центральний офіс,33492420,Україна,Сплата за послуги згідно ра,26009000000569,current,710732.40,"ТОВ ""РТМ-Україна""",31282375,юридична особа
ГРОМАДЯНСЬКА ПОЗИЦІЯ,"Тернопільська область, Тернопіль, майдан Волі, 4",69,2018-12-12,103,Організація заходів та інші організаційні послуги,Організація заходів та інші організаційні послуги,140699,Тернопільська обласна організація,37016189,Тернопільська область,Оренда залу,26002300597395,current,600.00,Тернопільська обласна спілка споживчих товариств,01767413,юридична особа
ГРОМАДЯНСЬКА ПОЗИЦІЯ,,52,2018-12-12,4,Інша реклама (без класифікації),Реклама (без класифікації),140408,Миколаївська обласна організація,40894701,Миколаївська область,Оплата за рекламні послуги,26000300805234,current,4134.00,Григорʼєв Василь Олександрович,,фізична особа
ГРОМАДЯНСЬКА ПОЗИЦІЯ,Київ,52,2018-12-12,51,Інша реклама (без класифікації),Реклама (без класифікації),140289,Центральний офіс,33492420,Україна,Сплата за послуги з розміщення,26009000000569,current,727920.00,"ТОВ ""Біг медіа""",25281224,юридична особа
ГРОМАДЯНСЬКА ПОЗИЦІЯ,"Київ, вулиця Марка Вовчка, 12/14",58,2018-12-12,49,"Виготовлення друкованих матеріалів (плакатів, листівок, буклетів та інших агітаційних матеріалів)",Друкована агітація,140288,Центральний офіс,33492420,Україна,Сплата за друк газети згідно,26009000000569,current,661997.80,"ТОВ ’Мега-поліграф""",32114278,юридична особа
ГРОМАДЯНСЬКА ПОЗИЦІЯ,Тернопільська область,58,2018-12-12,50,"Виготовлення друкованих матеріалів (плакатів, листівок, буклетів та інших агітаційних матеріалів)",Друкована агітація,140287,Центральний офіс,33492420,Україна,Сплата за друк газети зг.ра,26009000000569,current,254594.40,"ТОВ ""ДІМ""",22605152,юридична особа
ГРОМАДЯНСЬКА ПОЗИЦІЯ,Київ,58,2018-12-12,52,"Виготовлення друкованих матеріалів (плакатів, листівок, буклетів та інших агітаційних матеріалів)",Друкована агітація,140286,Центральний офіс,33492420,Україна,Сплата за паперовий постер,26009000000569,current,5700.80,"ТОВ ""Гранд Афіш""",36678347,юридична особа
ГРОМАДЯНСЬКА ПОЗИЦІЯ,"Київ, вулиця Михайла Грушевського, 1Д",70,2018-12-11,CBO1MFRLJY,Банківські послуги,Інші витрати,140517,Івано-Франківська обласна організація,36733960,Івано-Франківська область,Комісія банку,26000052516833,current,3.00,"ПАТ КБ ""Приватбанк""",14360570,юридична особа
ГРОМАДЯНСЬКА ПОЗИЦІЯ,"Івано-Франківська область, Косівський район, Косів, вулиця Незалежності, 32",49,2018-12-11,107,Публікування матеріалів у друкованих ЗМІ,Реклама в друкованих ЗМІ,140516,Івано-Франківська обласна організація,36733960,Івано-Франківська область,оголошення в газеті,26000052516833,current,1250.00,"ТОВ Редакція газети ""Гуцульський край""",02472909,юридична особа
ГРОМАДЯНСЬКА ПОЗИЦІЯ,"Київ, вулиця Михайла Грушевського, 1Д",70,2018-12-10,CAO1MCAEWY,Банківські послуги,Інші витрати,140685,Волинська обласна організація,37204512,Волинська область,"Комiсiя за виконання платежiв в нацiональнiй валютi, згiдно з вiдкритою офертою банку N б/н вiд 03.08.2015 та тарифiв банку, без ПДВ.",2600805509013,current,3.00,"ПАТ КБ ""Приватбанк""",14360570,юридична особа
ГРОМАДЯНСЬКА ПОЗИЦІЯ,,43,2018-12-10,172,Інші витрати,Інші витрати,140652,Волинська обласна організація,37204512,Волинська область,,2600805509013,current,18000.00,Селещук Олександр Михайлович,2237705455,фізична особа
ГРОМАДЯНСЬКА ПОЗИЦІЯ,"Івано-Франківська область, Рожнятівський район, Рожнятів, площа Єдності, 15",49,2018-12-10,106,Публікування матеріалів у друкованих ЗМІ,Реклама в друкованих ЗМІ,140515,Івано-Франківська обласна організація,36733960,Івано-Франківська область,опублікування статті,26000052516833,current,5930.00,"РГ ""Новини Підгірʼя""",02472973,юридична особа
ГРОМАДЯНСЬКА ПОЗИЦІЯ,"Київ, вулиця Михайла Грушевського, 1Д",70,2018-12-10,CAO1MBAHDY,Банківські послуги,Інші витрати,140514,Івано-Франківська обласна організація,36733960,Івано-Франківська область,Комісія банку,26000052516833,current,3.00,"ПАТ КБ ""Приватбанк""",14360570,юридична особа
ГРОМАДЯНСЬКА ПОЗИЦІЯ,"Івано-Франківська область, Городенківський район, Городенка, вулиця Володимира Великого, 4",49,2018-12-10,105,Публікування матеріалів у друкованих ЗМІ,Реклама в друкованих ЗМІ,140513,Івано-Франківська обласна організація,36733960,Івано-Франківська область,політична реклама,26000052516833,current,1800.00,"ПП ""Медіацентр ""Край""",20553758,юридична особа
ГРОМАДЯНСЬКА ПОЗИЦІЯ,"Київ, вулиця Михайла Грушевського, 1Д",70,2018-12-10,CAO1MB9D8Y,Банківські послуги,Інші витрати,140512,Івано-Франківська обласна організація,36733960,Івано-Франківська область,Комісія банку,26000052516833,current,3.00,"ПАТ КБ ""Приватбанк""",14360570,юридична особа
ГРОМАДЯНСЬКА ПОЗИЦІЯ,"Івано-Франківська область, Рогатинський район, Рогатин, вулиця Галицька, 67",49,2018-12-10,104,Публікування матеріалів у друкованих ЗМІ,Реклама в друкованих ЗМІ,140511,Івано-Франківська обласна організація,36733960,Івано-Франківська область,опублікування статті,26000052516833,current,2250.00,"ТОВ ""Голос Опілля""-медіа+""",20553505,юридична особа
ГРОМАДЯНСЬКА ПОЗИЦІЯ,"Київ, вулиця Михайла Грушевського, 1Д",70,2018-12-10,CAO1MB6CEY,Банківські послуги,Інші витрати,140510,Івано-Франківська обласна організація,36733960,Івано-Франківська область,Комісія банку,26000052516833,current,3.00,"ПАТ КБ ""Приватбанк""",14360570,юридична особа
ГРОМАДЯНСЬКА ПОЗИЦІЯ,"Івано-Франківська область, Івано-Франківськ, вулиця Січових стрільців, 2",49,2018-12-10,103,Публікування матеріалів у друкованих ЗМІ,Реклама в друкованих ЗМІ,140509,Івано-Франківська обласна організація,36733960,Івано-Франківська область,опублікування статті,26000052516833,current,4000.00,"РГ ""Галичина’",13644704,юридична особа
ГРОМАДЯНСЬКА ПОЗИЦІЯ,,52,2018-12-10,2,Інша реклама (без класифікації),Реклама (без класифікації),140406,Миколаївська обласна організація,40894701,Миколаївська область,Оплата за рекламні послуги,26000300805234,current,6100.00,Григорʼєв Василь Олександрович,,фізична особа
ГРОМАДЯНСЬКА ПОЗИЦІЯ,,52,2018-12-10,48,Інша реклама (без класифікації),Реклама (без класифікації),140164,Центральний офіс,33492420,Україна,Сплата за розміщення рекла,26009000000569,current,16000.00,Савойко М В,,фізична особа
ГРОМАДЯНСЬКА ПОЗИЦІЯ,"Волинська область, Любешівський район, Любешів, вулиця Червоноармійська, 12",79,2018-12-09,171,"Оренда будинків і приміщень та експлуатаційні витрати (прибирання, страхування орендованих будинків, охорона, сигналізація, ремонт, вивіз сміття, тощо)",Оренда нерухомості,140684,Волинська обласна організація,37204512,Волинська область,"За оренду примiщення за листопад 2018р. (Любешiв, Свободи, 12)",2600805509013,current,1410.00,Любешівська райспоживспілка,01744292,юридична особа
ГРОМАДЯНСЬКА ПОЗИЦІЯ,"Волинська область, Луцьк, Київський майдан, 3",79,2018-12-07,165,"Оренда будинків і приміщень та експлуатаційні витрати (прибирання, страхування орендованих будинків, охорона, сигналізація, ремонт, вивіз сміття, тощо)",Оренда нерухомості,140683,Волинська обласна організація,37204512,Волинська область,Попередня оплата за примiщення в листопадi 2018 м. Кiверцi. Рахунок 2,2600805509013,current,3660.00,"ТОВ ""Орбіта К""",30248176,юридична особа
ГРОМАДЯНСЬКА ПОЗИЦІЯ,"Київ, вулиця Михайла Грушевського, 1Д",70,2018-12-07,C7O1M2ZJFY,Банківські послуги,Інші витрати,140682,Волинська обласна організація,37204512,Волинська область,"Комiсiя за виконання платежiв в нацiональнiй валютi, згiдно з вiдкритою офертою банку N б/н вiд 03.08.2015 та тарифiв банку, без ПДВ.",2600805509013,current,3.00,"ПАТ КБ ""Приватбанк""",14360570,юридична особа
ГРОМАДЯНСЬКА ПОЗИЦІЯ,"Волинська область, Луцьк, проспект Молоді, 13Б",49,2018-12-07,166,Публікування матеріалів у друкованих ЗМІ,Реклама в друкованих ЗМІ,140681,Волинська обласна організація,37204512,Волинська область,"За послуги з розмiщення реклами в виданнi ""БУГ"". Рахкнок N4 вiд 12-11-2018",2600805509013,current,2000.00,"ГО ""Фундація суспільних перетворень""",39256819,юридична особа
ГРОМАДЯНСЬКА ПОЗИЦІЯ,,43,2018-12-07,170,Інші витрати,Інші витрати,140651,Волинська обласна організація,37204512,Волинська область,,2600805509013,current,3950.00,Янчик Максим Сергійович,3484504033,фізична особа
ГРОМАДЯНСЬКА ПОЗИЦІЯ,,43,2018-12-07,169,Інші витрати,Інші витрати,140650,Волинська обласна організація,37204512,Волинська область,,2600805509013,current,1100.00,Бугайчук Антон Павлович,3433502795,фізична особа
ГРОМАДЯНСЬКА ПОЗИЦІЯ,"Київ, вулиця Михайла Грушевського, 1Д",70,2018-12-07,LHF9LOO48,Банківські послуги,Інші витрати,140508,Івано-Франківська обласна організація,36733960,Івано-Франківська область,Комісія банку,26000052516833,current,63.63,"ПАТ КБ ""Приватбанк""",14360570,юридична особа
ГРОМАДЯНСЬКА ПОЗИЦІЯ,"Київ, вулиця Єреванська, 1",70,2018-12-07,733094559,Банківські послуги,Інші витрати,140477,Херсонська обласна організація,33930536,Херсонська область,коміся банку,26009924418287,current,20.00,"АБ ""Укргазбанк""",23697280,юридична особа
ГРОМАДЯНСЬКА ПОЗИЦІЯ,,53,2018-12-07,5,Витрати на розміщення зовнішньої реклами,Зовнішня реклама,140468,Херсонська обласна організація,33930536,Херсонська область,розміщення зовнішньої реклами,26009924418287,current,5640.00,Бондаренко А А,,фізична особа
ГРОМАДЯНСЬКА ПОЗИЦІЯ,"Київ, вулиця Олега Кошового",52,2018-12-07,44,Інша реклама (без класифікації),Реклама (без класифікації),140285,Центральний офіс,33492420,Україна,Сплата за послуги згідно ра,26009000000569,current,293626.80,"ТОВ ""РТМ-Україна""",31282375,юридична особа
ГРОМАДЯНСЬКА ПОЗИЦІЯ,Тернопільська область,52,2018-12-07,47,Інша реклама (без класифікації),Реклама (без класифікації),140284,Центральний офіс,33492420,Україна,Сплата за розміщення рекла,26009000000569,current,36000.00,"ТОВ ""Партнер Медіа""",37646277,юридична особа
ГРОМАДЯНСЬКА ПОЗИЦІЯ,"Київ, вулиця Рейтарська",52,2018-12-07,43,Інша реклама (без класифікації),Реклама (без класифікації),140283,Центральний офіс,33492420,Україна,Сплата за організацію та пр,26009000000569,current,6000.00,"ТОВ ""Інформаційне агенство ""Інтерфакс-Україна""",23732734,юридична особа
ГРОМАДЯНСЬКА ПОЗИЦІЯ,,53,2018-12-07,45,Витрати на розміщення зовнішньої реклами,Зовнішня реклама,140163,Центральний офіс,33492420,Україна,Сплата за оренду бордів згід,26009000000569,current,40425.00,Салій Н Б,,фізична особа
ГРОМАДЯНСЬКА ПОЗИЦІЯ,,52,2018-12-07,46,Інша реклама (без класифікації),Реклама (без класифікації),140162,Центральний офіс,33492420,Україна,Сплата за рекламні послуги,26009000000569,current,15850.00,Сіткар С В,,фізична особа
ГРОМАДЯНСЬКА ПОЗИЦІЯ,"Кіровоградська область, Кропивницький",70,2018-12-06,7923320112,Банківські послуги,Інші витрати,140690,Кіровоградська обласна організація,37297586,Кіровоградська область,"плата за підключення до тарифного пакету ""Моя громада""",26007300684913,current,50.00,"Кіровоградська обласна філія АТ ""Ощадбанк""",09323408,юридична особа
ГРОМАДЯНСЬКА ПОЗИЦІЯ,"Київська обл., Переяслав, Богдана Хмельницького вулиця, 99, 24",53,2018-12-05,80,Витрати на розміщення зовнішньої реклами,Зовнішня реклама,140626,Київська обласна організація,37236193,Київська область,"Оплата за оренду рекламних площин згiдно рахунку на оплату N 283 вiд 05 грудня 2018 р. В т.ч.ПДВ 1583,33 грн.",26001053022803,current,9500.00,"ТОВ ""ФОКУС-МЕДІА""",39640654,юридична особа
ГРОМАДЯНСЬКА ПОЗИЦІЯ,"Харківська область, Харків, вулиця Дівоча, 6",79,2018-12-05,14,"Оренда будинків і приміщень та експлуатаційні витрати (прибирання, страхування орендованих будинків, охорона, сигналізація, ремонт, вивіз сміття, тощо)",Оренда нерухомості,140418,Харківська обласна організація,37188240,Харківська область,Суборенда приміщення,26004300641612,current,2100.00,ТОВ ʼСоціальний ХАБ ʼРозвитокʼ,41300641,юридична особа
ГРОМАДЯНСЬКА ПОЗИЦІЯ,Київ,52,2018-12-04,42,Інша реклама (без класифікації),Реклама (без класифікації),140282,Центральний офіс,33492420,Україна,Сплата за розміщення рекла,26009000000569,current,93648.00,"ТОВ ""АЙ Ем Едвертайзінг""",39775558,юридична особа
ГРОМАДЯНСЬКА ПОЗИЦІЯ,Київ,58,2018-12-04,41,"Виготовлення друкованих матеріалів (плакатів, листівок, буклетів та інших агітаційних матеріалів)",Друкована агітація,140281,Центральний офіс,33492420,Україна,Сплата за паперовий постер,26009000000569,current,21815.32,"ТОВ ""Гранд Афіш""",36678347,юридична особа
ГРОМАДЯНСЬКА ПОЗИЦІЯ,"Тернопільська область, Тернопіль, вулиця Руська, 27",70,2018-12-03,5831625420,Банківські послуги,Інші витрати,140698,Тернопільська обласна організація,37016189,Тернопільська область,Послуги банку,26002300597395,current,49.00,"Тернопільська обласна філія АТ ""Ощадбанк""",09338500,юридична особа
ГРОМАДЯНСЬКА ПОЗИЦІЯ,"Тернопільська область, Тернопіль, вулиця Руська, 27",70,2018-12-03,6153034120,Банківські послуги,Інші витрати,140697,Тернопільська обласна організація,37016189,Тернопільська область,Комісія за розрахунково касове обслуговування,26002300597395,current,40.00,"Тернопільська обласна філія АТ ""Ощадбанк""",09338500,юридична особа
ГРОМАДЯНСЬКА ПОЗИЦІЯ,"Кіровоградська область, Кропивницький",70,2018-12-03,6151550412,Банківські послуги,Інші витрати,140689,Кіровоградська обласна організація,37297586,Кіровоградська область,комісія за розрахунок обслуговування рахунку,26007300684913,current,10.00,Кіровоградська обласна організація Громадянська позиція,37297586,юридична особа
ГРОМАДЯНСЬКА ПОЗИЦІЯ,"Київ, вулиця Михайла Грушевського, 1Д",70,2018-12-03,AS8buo5s0p,Банківські послуги,Інші витрати,140680,Волинська обласна організація,37204512,Волинська область,"Комiсiя за обслуговування рахунку за серпень 2018 р. згiдно договору банкiвського рахунку вiд 03.08.2015, без ПДВ.",2600805509013,current,100.00,"ПАТ КБ ""Приватбанк""",14360570,юридична особа
ГРОМАДЯНСЬКА ПОЗИЦІЯ,"Київ, вулиця Михайла Грушевського, 1Д",70,2018-12-03,79,Банківські послуги,Інші витрати,140625,Київська обласна організація,37236193,Київська область,Комiсiя РКО вiд зарплати за листопад 2018р.,26001053022803,current,6.10,"ПАТ КБ ""Приватбанк""",14360570,юридична особа
ГРОМАДЯНСЬКА ПОЗИЦІЯ,"Київ, вулиця Михайла Грушевського, 1Д",70,2018-12-03,AS8buu3i3p,Банківські послуги,Інші витрати,140624,Київська обласна організація,37236193,Київська область,"Комiсiя за обслуговування рахунку за листопад 2018 р. згiдно договору банкiвського рахунку вiд 13.03.2018, без ПДВ.",26001053022803,current,100.00,"ПАТ КБ ""Приватбанк""",14360570,юридична особа
ГРОМАДЯНСЬКА ПОЗИЦІЯ,,84,2018-12-03,78,"Заробітна плата, премії","Заробітна плата, лікарняні, вагітності, відрядження, компенсації",140569,Київська обласна організація,37236193,Київська область,Зарплата за листопад 2018р.,26001053022803,current,1220.00,Побідаш Ірина Миколаївна,,фізична особа
ГРОМАДЯНСЬКА ПОЗИЦІЯ,,84,2018-12-03,78,"Заробітна плата, премії","Заробітна плата, лікарняні, вагітності, відрядження, компенсації",140568,Київська обласна організація,37236193,Київська область,Зарплата за листопад 2018р.,26001053022803,current,1220.00,Присяжнюк Юлія Ігорівна,,фізична особа
ГРОМАДЯНСЬКА ПОЗИЦІЯ,"Київ, вулиця Михайла Грушевського, 1Д",70,2018-12-03,AS8bux0kwp,Банківські послуги,Інші витрати,140544,Дніпропетровська обласна організація,37006888,Дніпропетровська область,Комісія за обслуговування рахунку,26005050226940,current,100.00,"ПАТ КБ ""Приватбанк""",14360570,юридична особа
ГРОМАДЯНСЬКА ПОЗИЦІЯ,"Київ, вулиця Михайла Грушевського, 1Д",70,2018-12-03,AS8uw88ip,Банківські послуги,Інші витрати,140507,Івано-Франківська обласна організація,36733960,Івано-Франківська область,Комісія банку,26000052516833,current,36.37,"ПАТ КБ ""Приватбанк""",14360570,юридична особа
ГРОМАДЯНСЬКА ПОЗИЦІЯ,"Київ, вулиця Михайла Грушевського, 1Д",70,2018-12-03,AS8BUP1V1P ,Банківські послуги,Інші витрати,140441,Черкаська обласна організація,37239608,Черкаська область,"КОМIСIЯ ЗА ОБСЛУГОВУВАННЯ РАХУНКУ ЗА ЛИСТОПАД 2018 Р. ЗГIДНО ДОГОВОРУ БАНКIВСЬКОГО РАХУНКУ ВIД 27.03.2017, БЕЗ ПДВ.",26001051537726,current,100.00,"ПАТ КБ ""Приватбанк""",14360570,юридична особа
ГРОМАДЯНСЬКА ПОЗИЦІЯ,"Харківська область, Харків, вулиця Слов'янська, 4",70,2018-12-03,5830159621,Банківські послуги,Інші витрати,140417,Харківська обласна організація,37188240,Харківська область,Абонплата,26004300641612,current,49.00,"Харківська обласна філія АТ ""Ощадбанк""",09351600,юридична особа
ГРОМАДЯНСЬКА ПОЗИЦІЯ,"Миколаївська область, Миколаїв, Херсонське шосе, 50",70,2018-12-03,4344078515,Банківські послуги,Інші витрати,140410,Миколаївська обласна організація,40894701,Миколаївська область,Комісія за розрахункове обслуговування рахунку,26000300805234,current,20.00,"Миколаївська обласна філія АТ ""Ощадбанк""",09326464,юридична особа
ГРОМАДЯНСЬКА ПОЗИЦІЯ,"Миколаївська область, Миколаїв, Херсонське шосе, 50",70,2018-12-03,5829889215,Банківські послуги,Інші витрати,140409,Миколаївська обласна організація,40894701,Миколаївська область,Списання щомісячної плати за обслуговування,26000300805234,current,49.00,"Миколаївська обласна філія АТ ""Ощадбанк""",09326464,юридична особа
ГРОМАДЯНСЬКА ПОЗИЦІЯ,"Київ, вулиця Михайла Грушевського, 1Д",70,2018-12-03,,Банківські послуги,Інші витрати,140402,Хмельницька обласна організація,37263887,Хмельницька область,Комісія за обслуговування рахунку,26001052317039,current,100.00,"ПАТ КБ ""Приватбанк""",14360570,юридична особа
ГРОМАДЯНСЬКА ПОЗИЦІЯ,"Київ, вулиця Михайла Грушевського, 1Д",70,2018-12-03,-,Банківські послуги,Інші витрати,140391,Київська міська організація,37615584,Київ,Комісія банку,26009337001200,current,100.00,"ПАТ КБ ""Приватбанк""",14360570,юридична особа
ГРОМАДЯНСЬКА ПОЗИЦІЯ,"Київ, вулиця Михайла Грушевського, 1Д",70,2018-12-03,AS8burxw8p,Банківські послуги,Інші витрати,140363,Сумська обласна організація,37283311,Сумська область,комісія за обслуговування рахунку за листопад,26003055027585,current,100.00,"ПАТ КБ ""Приватбанк""",14360570,юридична особа
ГРОМАДЯНСЬКА ПОЗИЦІЯ,Київ,60,2018-12-03,35,Інші податки,Податкові платежі,140280,Центральний офіс,33492420,Україна,Податки,26009000000569,current,4900.00,ДПІ у Шевченківському районі у м. Києві,39561761,юридична особа
ГРОМАДЯНСЬКА ПОЗИЦІЯ,Київ,63,2018-12-03,36,Податок на доходи,Податкові платежі,140279,Центральний офіс,33492420,Україна,Податки,26009000000569,current,4000.00,УДКСУ у Шевченківському районі м. Києва,37995466,юридична особа
ГРОМАДЯНСЬКА ПОЗИЦІЯ,Київ,48,2018-12-03,37,Публікування матеріалів у мережі Інтернет,Реклама в інтернеті,140278,Центральний офіс,33492420,Україна,Сплата за послугт згідно до,26009000000569,current,1200.00,"ТОВ ""Гігацентр Україна""",39961308,юридична особа
ГРОМАДЯНСЬКА ПОЗИЦІЯ,Київ,48,2018-12-03,38,Публікування матеріалів у мережі Інтернет,Реклама в інтернеті,140277,Центральний офіс,33492420,Україна,Сплата за послугт згідно до,26009000000569,current,800.00,"ТОВ ""ГІГАТРАНС Україна""",39961313,юридична особа
ГРОМАДЯНСЬКА ПОЗИЦІЯ,"Київ, вулиця Антоновича, 127",70,2018-12-03,76655,Банківські послуги,Інші витрати,140276,Центральний офіс,33492420,Україна,Комісія банку,26009000000569,current,350.00,"АТ ""Укрексімбанк""",00032112,юридична особа
ГРОМАДЯНСЬКА ПОЗИЦІЯ,Київ,63,2018-12-03,39,Податок на доходи,Податкові платежі,140275,Центральний офіс,33492420,Україна,Податки,26009000000569,current,330.00,УДКСУ у Шевченківському районі м. Києва,37995466,юридична особа
ГРОМАДЯНСЬКА ПОЗИЦІЯ,Київ,76,2018-12-03,40,Послуги зв’язку,Послуги зв’язку,140274,Центральний офіс,33492420,Україна,Сплата за послуги згідно до,26009000000569,current,243.00,"ТОВ ""Воля-кабель""",30777913,юридична особа
ГРОМАДЯНСЬКА ПОЗИЦІЯ,,84,2018-12-03,34,"Заробітна плата, премії","Заробітна плата, лікарняні, вагітності, відрядження, компенсації",140161,Центральний офіс,33492420,Україна,ЗП за 2018р.,26009000000569,current,16100.00,Бондаренко Христина Павлівна,,фізична особа
ГРОМАДЯНСЬКА ПОЗИЦІЯ,,84,2018-12-03,34,"Заробітна плата, премії","Заробітна плата, лікарняні, вагітності, відрядження, компенсації",140160,Центральний офіс,33492420,Україна,ЗП за 2018р.,26009000000569,current,764.75,Комарова Ганна Георгіївна,,фізична особа
ГРОМАДЯНСЬКА ПОЗИЦІЯ,,84,2018-12-03,34,"Заробітна плата, премії","Заробітна плата, лікарняні, вагітності, відрядження, компенсації",140159,Центральний офіс,33492420,Україна,ЗП за 2018р.,26009000000569,current,764.75,Павлик Зоя Борисівна,,фізична особа
ГРОМАДЯНСЬКА ПОЗИЦІЯ,"Київська обл., Ірпінь, вулиця Грибоєдова, 2, 44",52,2018-11-30,77,Інша реклама (без класифікації),Реклама (без класифікації),140623,Київська обласна організація,37236193,Київська область,Оплата за розмiщення реклами згiдно рахунку N554 вiд 27.11.2018 р. В т.ч. ПДВ - 20 % 1300.00 грн.,26001053022803,current,7800.00,"ТОВ ""ПІАР-ЛАЙН""",37563840,юридична особа
ГРОМАДЯНСЬКА ПОЗИЦІЯ,"Київ, вулиця Михайла Грушевського, 1Д",70,2018-11-30,BUO1L704GY,Банківські послуги,Інші витрати,140622,Київська обласна організація,37236193,Київська область,"Комiсiя за виконання платежiв в нацiональнiй валютi, згiдно з вiдкритою офертою банку N б/н вiд 13.03.2018 та тарифiв банку, без ПДВ.",26001053022803,current,3.00,"ПАТ КБ ""Приватбанк""",14360570,юридична особа
ГРОМАДЯНСЬКА ПОЗИЦІЯ,"Київ, вулиця Єреванська, 1",70,2018-11-30,6624232667,Банківські послуги,Інші витрати,140476,Херсонська обласна організація,33930536,Херсонська область,коміся банку,26009924418287,current,100.00,"АБ ""Укргазбанк""",23697280,юридична особа
ГРОМАДЯНСЬКА ПОЗИЦІЯ,,53,2018-11-30,5,Витрати на розміщення зовнішньої реклами,Зовнішня реклама,140396,Хмельницька обласна організація,37263887,Хмельницька область,За білборди,26001052317039,current,7400.00,Боброва Ніна Андріївна,,фізична особа
ГРОМАДЯНСЬКА ПОЗИЦІЯ,Київська обл.,52,2018-11-30,32,Інша реклама (без класифікації),Реклама (без класифікації),140273,Центральний офіс,33492420,Україна,Сплата за рекламно-інформ,26009000000569,current,323364.00,"ПП ""ЕЙ-ПЕТРОЛ""",33330341,юридична особа
ГРОМАДЯНСЬКА ПОЗИЦІЯ,"Київ, вулиця Антоновича",52,2018-11-30,33,Інша реклама (без класифікації),Реклама (без класифікації),140272,Центральний офіс,33492420,Україна,Сплата за розміщення рекал,26009000000569,current,169320.00,"ПП ""ХІМДЖЕСТ""",21587009,юридична особа
ГРОМАДЯНСЬКА ПОЗИЦІЯ,,66,2018-11-29,26,Повернення внесків приватних внесків (донорам),Повернення приватних внесків (донорам),140536,Дніпропетровська обласна організація,37006888,Дніпропетровська область,Повернення помилково перерахованих коштів,26005050226940,current,30.00,Губар Вадим Іванович,,фізична особа
ГРОМАДЯНСЬКА ПОЗИЦІЯ,"Київ, вулиця Миколи Лєскова, 9",70,2018-11-29,bn,Банківські послуги,Інші витрати,140461,Львівська обласна організація,37277596,Львівська область,Комісія за вихідні перекази в нац. валюті на папер. носії поза межами банку,26005314012,current,100.00,"АТ ""Райффайзен банк Аваль""",14305909,юридична особа
ГРОМАДЯНСЬКА ПОЗИЦІЯ,"Київ, вулиця Миколи Лєскова, 9",70,2018-11-29,bn,Банківські послуги,Інші витрати,140460,Львівська обласна організація,37277596,Львівська область,Комісія за користування пакетом,26005314012,current,100.00,"АТ ""Райффайзен банк Аваль""",14305909,юридична особа
ГРОМАДЯНСЬКА ПОЗИЦІЯ,"Київ, вулиця Миколи Лєскова, 9",70,2018-11-29,bn,Банківські послуги,Інші витрати,140459,Львівська обласна організація,37277596,Львівська область,Комісія за надання виписки,26005314012,current,50.00,"АТ ""Райффайзен банк Аваль""",14305909,юридична особа
ГРОМАДЯНСЬКА ПОЗИЦІЯ,"Харківська область, Харків, вулиця Дівоча, 6",79,2018-11-29,13,"Оренда будинків і приміщень та експлуатаційні витрати (прибирання, страхування орендованих будинків, охорона, сигналізація, ремонт, вивіз сміття, тощо)",Оренда нерухомості,140416,Харківська обласна організація,37188240,Харківська область,Суборенда приміщення,26004300641612,current,1300.00,ТОВ ʼСоціальний ХАБ ʼРозвитокʼ,41300641,юридична особа
ГРОМАДЯНСЬКА ПОЗИЦІЯ,"Волинська область, Луцьк",58,2018-11-29,25,"Виготовлення друкованих матеріалів (плакатів, листівок, буклетів та інших агітаційних матеріалів)",Друкована агітація,140271,Центральний офіс,33492420,Україна,Сплата за друк постера згьд,26009000000569,current,113400.00,"ТОВ ""БРЕНДБОРД""",37572766,юридична особа
ГРОМАДЯНСЬКА ПОЗИЦІЯ,Київ,58,2018-11-29,27,"Виготовлення друкованих матеріалів (плакатів, листівок, буклетів та інших агітаційних матеріалів)",Друкована агітація,140270,Центральний офіс,33492420,Україна,Сплата за паперовий постер,26009000000569,current,18561.48,"ТОВ ""Гранд Афіш""",36678347,юридична особа
ГРОМАДЯНСЬКА ПОЗИЦІЯ,"Київська обл., Броварський район",53,2018-11-29,28,Витрати на розміщення зовнішньої реклами,Зовнішня реклама,140269,Центральний офіс,33492420,Україна,Спалат за оренду рекламног,26009000000569,current,2200.00,Княжицька сільська рада Броварського району Київської області,04363892,юридична особа
ГРОМАДЯНСЬКА ПОЗИЦІЯ,Київ,58,2018-11-29,31,"Виготовлення друкованих матеріалів (плакатів, листівок, буклетів та інших агітаційних матеріалів)",Друкована агітація,140268,Центральний офіс,33492420,Україна,Сплата за банери та постер,26009000000569,current,84.01,"ТОВ ""Гранд Афіш""",36678347,юридична особа
ГРОМАДЯНСЬКА ПОЗИЦІЯ,,52,2018-11-29,30,Інша реклама (без класифікації),Реклама (без класифікації),140158,Центральний офіс,33492420,Україна,Сплата за рекламно-інформ,26009000000569,current,193830.00,Челембій А М,,фізична особа
ГРОМАДЯНСЬКА ПОЗИЦІЯ,,52,2018-11-29,26,Інша реклама (без класифікації),Реклама (без класифікації),140157,Центральний офіс,33492420,Україна,Сплата за розміщення рекла,26009000000569,current,14568.75,Любченко Ю Б,,фізична особа
ГРОМАДЯНСЬКА ПОЗИЦІЯ,,52,2018-11-29,29,Інша реклама (без класифікації),Реклама (без класифікації),140156,Центральний офіс,33492420,Україна,Сплата за рекламні послуги,26009000000569,current,5300.00,Дзьобан О В,,фізична особа
ГРОМАДЯНСЬКА ПОЗИЦІЯ,"Київ, вулиця Михайла Грушевського, 1Д",70,2018-11-28,BSO1KW4ULY,Банківські послуги,Інші витрати,140621,Київська обласна організація,37236193,Київська область,"Комiсiя за виконання платежiв в нацiональнiй валютi, згiдно з вiдкритою офертою банку N б/н вiд 13.03.2018 та тарифiв банку, без ПДВ.",26001053022803,current,3.00,"ПАТ КБ ""Приватбанк""",14360570,юридична особа
ГРОМАДЯНСЬКА ПОЗИЦІЯ,,53,2018-11-28,76,Витрати на розміщення зовнішньої реклами,Зовнішня реклама,140567,Київська обласна організація,37236193,Київська область,Оплата за послуги оренди рекламної площини по розмiщенню реклами в груднi 2018 р. згiдно рахунку на оплату N 80 вiд 26.11.2018 р. Без ПДВ,26001053022803,current,7200.00,Чабур Валерій Іванович,,фізична особа
ГРОМАДЯНСЬКА ПОЗИЦІЯ,"Волинська область, Луцьк",58,2018-11-28,22,"Виготовлення друкованих матеріалів (плакатів, листівок, буклетів та інших агітаційних матеріалів)",Друкована агітація,140267,Центральний офіс,33492420,Україна,Сплата за друк постера згьд,26009000000569,current,6000.00,"ТОВ ""БРЕНДБОРД""",37572766,юридична особа
ГРОМАДЯНСЬКА ПОЗИЦІЯ,,52,2018-11-28,23,Інша реклама (без класифікації),Реклама (без класифікації),140155,Центральний офіс,33492420,Україна,Сплата за розміщення рекла,26009000000569,current,10500.60,Григоров А М,,фізична особа
ГРОМАДЯНСЬКА ПОЗИЦІЯ,,52,2018-11-28,24,Інша реклама (без класифікації),Реклама (без класифікації),140154,Центральний офіс,33492420,Україна,Сплата за розміщення рекла,26009000000569,current,9139.00,Любченко Ю Б,,фізична особа
ГРОМАДЯНСЬКА ПОЗИЦІЯ,"Тернопільська область, Гусятинський район, Копичинці",59,2018-11-27,101,Грошова застава,Грошова застава,140696,Тернопільська обласна організація,37016189,Тернопільська область,Грошова застава Копичинецької МВК,26002300597395,current,1413.00,Копичинецька міська виборча комісія,33866326,юридична особа
ГРОМАДЯНСЬКА ПОЗИЦІЯ,"Тернопільська область, Монастириський район, Монастириська, вулиця Тараса Шевченка, 19",59,2018-11-27,102,Грошова застава,Грошова застава,140695,Тернопільська обласна організація,37016189,Тернопільська область,Грошова застава Монастириської МВК,26002300597395,current,1144.00,Монастирська МВК,34039816,юридична особа
ГРОМАДЯНСЬКА ПОЗИЦІЯ,"Волинська область, Ківерцівський район, Ківерці, вулиця Тараса Шевченка, 14",59,2018-11-27,167,Грошова застава,Грошова застава,140679,Волинська обласна організація,37204512,Волинська область,"Грошова застава при висуваннi кандидатiв ПП ""Громадянська Позицiя"" у депутати в багатомандатному виборчому окрузi з виборiвКiверцiвської мiської ради",2600805509013,current,2226.00,Ківерцівська міська виборча комісія,34146275,юридична особа
ГРОМАДЯНСЬКА ПОЗИЦІЯ,"Київ, вулиця Михайла Грушевського, 1Д",70,2018-11-27,BRO1KT763Y,Банківські послуги,Інші витрати,140678,Волинська обласна організація,37204512,Волинська область,"Комiсiя за виконання платежiв в нацiональнiй валютi, згiдно з вiдкритою офертою банку N б/н вiд 03.08.2015 та тарифiв банку, без ПДВ.",2600805509013,current,3.00,"ПАТ КБ ""Приватбанк""",14360570,юридична особа
ГРОМАДЯНСЬКА ПОЗИЦІЯ,"Київ, вулиця Михайла Грушевського, 1Д",70,2018-11-27,BRO1KVLHLY,Банківські послуги,Інші витрати,140506,Івано-Франківська обласна організація,36733960,Івано-Франківська область,Комісія банку,26000052516833,current,3.00,"ПАТ КБ ""Приватбанк""",14360570,юридична особа
ГРОМАДЯНСЬКА ПОЗИЦІЯ,"Івано-Франківська область, Косівський район, Косів, вулиця Незалежності, 32",49,2018-11-27,102,Публікування матеріалів у друкованих ЗМІ,Реклама в друкованих ЗМІ,140505,Івано-Франківська обласна організація,36733960,Івано-Франківська область,опублікування статті,26000052516833,current,1500.00,"ТОВ Редакція газети ""Гуцульський край""",02472909,юридична особа
ГРОМАДЯНСЬКА ПОЗИЦІЯ,"Київ, вулиця Михайла Грушевського, 1Д",70,2018-11-27,BRO1KVGOZY,Банківські послуги,Інші витрати,140504,Івано-Франківська обласна організація,36733960,Івано-Франківська область,Комісія банку,26000052516833,current,3.00,"ПАТ КБ ""Приватбанк""",14360570,юридична особа
ГРОМАДЯНСЬКА ПОЗИЦІЯ,"Івано-Франківська область, Городенківський район, Городенка, вулиця Володимира Великого, 4",49,2018-11-27,101,Публікування матеріалів у друкованих ЗМІ,Реклама в друкованих ЗМІ,140503,Івано-Франківська обласна організація,36733960,Івано-Франківська область,За політичну рекламу,26000052516833,current,2100.00,"ПП ""Медіацентр ""Край""",20553758,юридична особа
ГРОМАДЯНСЬКА ПОЗИЦІЯ,"Київ, вулиця Михайла Грушевського, 1Д",70,2018-11-27,BFO1KVE2Y,Банківські послуги,Інші витрати,140502,Івано-Франківська обласна організація,36733960,Івано-Франківська область,Комісія банку,26000052516833,current,3.00,"ПАТ КБ ""Приватбанк""",14360570,юридична особа
ГРОМАДЯНСЬКА ПОЗИЦІЯ,"Івано-Франківська область, Рогатинський район, Рогатин, вулиця Галицька, 67",49,2018-11-27,100,Публікування матеріалів у друкованих ЗМІ,Реклама в друкованих ЗМІ,140501,Івано-Франківська обласна організація,36733960,Івано-Франківська область,опублікування статті,26000052516833,current,3000.00,"ТОВ ""Голос Опілля""-медіа+""",20553505,юридична особа
ГРОМАДЯНСЬКА ПОЗИЦІЯ,"Київ, вулиця Єреванська, 1",70,2018-11-27,731666940,Банківські послуги,Інші витрати,140475,Херсонська обласна організація,33930536,Херсонська область,коміся банку,26009924418287,current,20.00,"АБ ""Укргазбанк""",23697280,юридична особа
ГРОМАДЯНСЬКА ПОЗИЦІЯ,,53,2018-11-27,4,Витрати на розміщення зовнішньої реклами,Зовнішня реклама,140467,Херсонська обласна організація,33930536,Херсонська область,розміщення зовнішньої реклами,26009924418287,current,145000.00,Мельниченко О М,,фізична особа
ГРОМАДЯНСЬКА ПОЗИЦІЯ,"Львівська область, Радехівський район, Радехів, вулиця Івана Франка, 2",59,2018-11-27,4,Грошова застава,Грошова застава,140458,Львівська обласна організація,37277596,Львівська область,Застава за висунення кандидатів в депутати Радехівської міської ради,26005314012,current,1949.00,Радехівська міська виборча комісія,34104481,юридична особа
ГРОМАДЯНСЬКА ПОЗИЦІЯ,"Харківська область, Харків, вулиця Дівоча, 6",79,2018-11-27,12,"Оренда будинків і приміщень та експлуатаційні витрати (прибирання, страхування орендованих будинків, охорона, сигналізація, ремонт, вивіз сміття, тощо)",Оренда нерухомості,140415,Харківська обласна організація,37188240,Харківська область,Суборенда приміщення,26004300641612,current,700.00,ТОВ ʼСоціальний ХАБ ʼРозвитокʼ,41300641,юридична особа
ГРОМАДЯНСЬКА ПОЗИЦІЯ,,52,2018-11-27,4,Інша реклама (без класифікації),Реклама (без класифікації),140395,Хмельницька обласна організація,37263887,Хмельницька область,За експонування рекламного матеріалу,26001052317039,current,99040.00,Пашинська Валентина Миколаївна,,фізична особа
ГРОМАДЯНСЬКА ПОЗИЦІЯ,,53,2018-11-27,3,Витрати на розміщення зовнішньої реклами,Зовнішня реклама,140394,Хмельницька обласна організація,37263887,Хмельницька область,"За оренду, поклейку та друк білборду",26001052317039,current,4000.00,Гаврилюк Василь Васильович,,фізична особа
ГРОМАДЯНСЬКА ПОЗИЦІЯ,,53,2018-11-27,2,Витрати на розміщення зовнішньої реклами,Зовнішня реклама,140393,Хмельницька обласна організація,37263887,Хмельницька область,За білборди та друк паперового постеру,26001052317039,current,21900.00,Боброва Ніна Андріївна,,фізична особа
ГРОМАДЯНСЬКА ПОЗИЦІЯ,Київ,58,2018-11-27,18,"Виготовлення друкованих матеріалів (плакатів, листівок, буклетів та інших агітаційних матеріалів)",Друкована агітація,140266,Центральний офіс,33492420,Україна,Сплата за паперовий постер,26009000000569,current,65000.00,"ТОВ ""Гранд Афіш""",36678347,юридична особа
ГРОМАДЯНСЬКА ПОЗИЦІЯ,"Львівська область, Львів",52,2018-11-27,17,Інша реклама (без класифікації),Реклама (без класифікації),140265,Центральний офіс,33492420,Україна,Сплата за розміщення рекла,26009000000569,current,9720.00,"ПП ""РЕКЛАМНЕ АГЕНТСТВО ""АКВАРІУМ""",36462603,юридична особа
ГРОМАДЯНСЬКА ПОЗИЦІЯ,"Львівська область, Радехівський район, Радехів",59,2018-11-27,15,Грошова застава,Грошова застава,140264,Центральний офіс,33492420,Україна,Грошова застава за висунен,26009000000569,current,1949.00,Радехівська міська виборча комісія,34104481,юридична особа
ГРОМАДЯНСЬКА ПОЗИЦІЯ,"Житомирська область, Чуднівський район, Чуднів",59,2018-11-27,16,Грошова застава,Грошова застава,140263,Центральний офіс,33492420,Україна,Грошова застава місцевої о|,26009000000569,current,1669.00,Чуднівська міська виборча комісія,33984953,юридична особа
ГРОМАДЯНСЬКА ПОЗИЦІЯ,,52,2018-11-27,21,Інша реклама (без класифікації),Реклама (без класифікації),140153,Центральний офіс,33492420,Україна,Сплата за рекламно-інфйор,26009000000569,current,64050.00,Челембій А М,,фізична особа
ГРОМАДЯНСЬКА ПОЗИЦІЯ,,52,2018-11-27,19,Інша реклама (без класифікації),Реклама (без класифікації),140152,Центральний офіс,33492420,Україна,Сплата за розміщення рекла,26009000000569,current,37440.00,Сіроштан І О,,фізична особа
ГРОМАДЯНСЬКА ПОЗИЦІЯ,,52,2018-11-27,20,Інша реклама (без класифікації),Реклама (без класифікації),140151,Центральний офіс,33492420,Україна,Сплата за рекламні послуги,26009000000569,current,1350.00,Сіроштан І О,,фізична особа
ГРОМАДЯНСЬКА ПОЗИЦІЯ,"Черкаська область, Сміла, вулиця Соборна, 91",53,2018-11-26,25,Витрати на розміщення зовнішньої реклами,Зовнішня реклама,140440,Черкаська обласна організація,37239608,Черкаська область,ЗА РОЗМIЩЕННЯ ЗОВНIШНЬОЇ РЕКЛАМИ В ВЕРЕСНI 2018 РОКУ НА БУДIВЛI ГОТЕЛЮ ?СМIЛА? ЗГIДНО РАХУНКУ ? ФАКТУРI № ТМ-0001526 ВIД 14 ВЕРЕСНЯ 2018 Р. БЕЗ ПДВ.,26001051537726,current,517.50,"КП ""Муніципальна інвестиційно-фондова компанія""",35686412,юридична особа
ГРОМАДЯНСЬКА ПОЗИЦІЯ,"Київ, вулиця Михайла Грушевського, 1Д",70,2018-11-26,BQO1KPC36Y,Банківські послуги,Інші витрати,140439,Черкаська обласна організація,37239608,Черкаська область,"КОМIСIЯ ЗА ВИКОНАННЯ ПЛАТЕЖIВ В НАЦIОНАЛЬНIЙ ВАЛЮТI, ЗГIДНО З ВIДКРИТОЮ ОФЕРТОЮ БАНКУ N Б/Н ВIД 27.03.2017 ТА ТАРИФIВ БАНКУ, БЕЗ ПДВ.",26001051537726,current,3.00,"ПАТ КБ ""Приватбанк""",14360570,юридична особа
ГРОМАДЯНСЬКА ПОЗИЦІЯ,"Черкаська область, Сміла, вулиця Соборна, 91",79,2018-11-26,24,"Оренда будинків і приміщень та експлуатаційні витрати (прибирання, страхування орендованих будинків, охорона, сигналізація, ремонт, вивіз сміття, тощо)",Оренда нерухомості,140438,Черкаська обласна організація,37239608,Черкаська область,КОМПЕНСАЦIЯ ВИТРАТ ЗА ВЕРЕСЕНЬ 2018 РОКУ ПО ОБСЛУГОВУВАННЮ ПРИМIЩЕННЯ ОФIСУ В ГОТЕЛI ?СМIЛА? ЗГIДНО РАХУНКУ ? ФАКТУРI № ТМ-0001527 ВIД 30 ВЕРЕСНЯ 2018 РОКУ,26001051537726,current,229.88,"КП ""Муніципальна інвестиційно-фондова компанія""",35686412,юридична особа
ГРОМАДЯНСЬКА ПОЗИЦІЯ,"Київ, вулиця Михайла Грушевського, 1Д",70,2018-11-26,BQO1KP952Y ,Банківські послуги,Інші витрати,140437,Черкаська обласна організація,37239608,Черкаська область,"КОМIСIЯ ЗА ВИКОНАННЯ ПЛАТЕЖIВ В НАЦIОНАЛЬНIЙ ВАЛЮТI, ЗГIДНО З ВIДКРИТОЮ ОФЕРТОЮ БАНКУ N Б/Н ВIД 27.03.2017 ТА ТАРИФIВ БАНКУ, БЕЗ ПДВ.",26001051537726,current,3.00,"ПАТ КБ ""Приватбанк""",14360570,юридична особа
ГРОМАДЯНСЬКА ПОЗИЦІЯ,"Черкаська область, Сміла, вулиця Соборна, 91",79,2018-11-26,23,"Оренда будинків і приміщень та експлуатаційні витрати (прибирання, страхування орендованих будинків, охорона, сигналізація, ремонт, вивіз сміття, тощо)",Оренда нерухомості,140436,Черкаська обласна організація,37239608,Черкаська область,ОРЕНДНА ПЛАТА ЗА ВЕРЕСЕНЬ 2018 РОКУ ПО ПРИМIЩЕННЮ ОФIСУ В ГОТЕЛI ?СМIЛА? ЗГIДНО РАХУНКУ ? ФАКТУРИ № ТМ-0001528 ВIД 30 ВЕРЕСНЯ 2018 Р. БЕЗ ПДВ.,26001051537726,current,186.49,"КП ""Муніципальна інвестиційно-фондова компанія""",35686412,юридична особа
ГРОМАДЯНСЬКА ПОЗИЦІЯ,"Київ, вулиця Михайла Грушевського, 1Д",70,2018-11-26,BQO1KP68KY,Банківські послуги,Інші витрати,140435,Черкаська обласна організація,37239608,Черкаська область,"КОМIСIЯ ЗА ВИКОНАННЯ ПЛАТЕЖIВ В НАЦIОНАЛЬНIЙ ВАЛЮТI, ЗГIДНО З ВIДКРИТОЮ ОФЕРТОЮ БАНКУ N Б/Н ВIД 27.03.2017 ТА ТАРИФIВ БАНКУ, БЕЗ ПДВ.",26001051537726,current,3.00,"ПАТ КБ ""Приватбанк""",14360570,юридична особа
ГРОМАДЯНСЬКА ПОЗИЦІЯ,"Київ, вулиця Михайла Грушевського, 1Д",70,2018-11-26,BQO1KP952Y,Банківські послуги,Інші витрати,140434,Черкаська обласна організація,37239608,Черкаська область,"КОМIСIЯ ЗА ВИКОНАННЯ ПЛАТЕЖIВ В НАЦIОНАЛЬНIЙ ВАЛЮТI, ЗГIДНО З ВIДКРИТОЮ ОФЕРТОЮ БАНКУ N Б/Н ВIД 27.03.2017 ТА ТАРИФIВ БАНКУ, БЕЗ ПДВ.",26001051537726,current,3.00,"ПАТ КБ ""Приватбанк""",14360570,юридична особа
ГРОМАДЯНСЬКА ПОЗИЦІЯ,"Черкаська область, Сміла, вулиця Соборна, 91",53,2018-11-26,22,Витрати на розміщення зовнішньої реклами,Зовнішня реклама,140433,Черкаська обласна організація,37239608,Черкаська область,ЗА РОЗМIЩЕННЯ ЗОВНIШНЬОЇ РЕКЛАМИ В СЕРПНI 2018 РОКУ НА БУДIВЛI ГОТЕЛЮ ?СМIЛА? ЗГIДНО РАХУНКУ ? ФАКТУРИ № ТМ-0001523 ВIД 31 СЕРПНЯ 2018 Р. БЕЗ ПДВ.,26001051537726,current,517.50,"КП ""Муніципальна інвестиційно-фондова компанія""",35686412,юридична особа
ГРОМАДЯНСЬКА ПОЗИЦІЯ,"Київ, вулиця Михайла Грушевського, 1Д",70,2018-11-26,BQO1KP4P6Y,Банківські послуги,Інші витрати,140432,Черкаська обласна організація,37239608,Черкаська область,"КОМIСIЯ ЗА ВИКОНАННЯ ПЛАТЕЖIВ В НАЦIОНАЛЬНIЙ ВАЛЮТI, ЗГIДНО З ВIДКРИТОЮ ОФЕРТОЮ БАНКУ N Б/Н ВIД 27.03.2017 ТА ТАРИФIВ БАНКУ, БЕЗ ПДВ.",26001051537726,current,3.00,"ПАТ КБ ""Приватбанк""",14360570,юридична особа
ГРОМАДЯНСЬКА ПОЗИЦІЯ,"Черкаська область, Сміла, вулиця Соборна, 91",79,2018-11-26,21,"Оренда будинків і приміщень та експлуатаційні витрати (прибирання, страхування орендованих будинків, охорона, сигналізація, ремонт, вивіз сміття, тощо)",Оренда нерухомості,140431,Черкаська обласна організація,37239608,Черкаська область,КОМПЕНСАЦIЯ ВИТРАТ ЗА СЕРПЕНЬ 2018 РОКУ ПО ОБСЛУГОВУВАННЮ ПРИМIЩЕННЯ ОФIСУ В ГОТЕЛI ?СМIЛА? ЗГIДНО РАХУНКУ ? ФАКТУРI № ТМ-0001524 ВIД 31 СЕРПНЯ БЕЗ ПДВ.,26001051537726,current,229.88,"КП ""Муніципальна інвестиційно-фондова компанія""",35686412,юридична особа
ГРОМАДЯНСЬКА ПОЗИЦІЯ,"Черкаська область, Сміла, вулиця Соборна, 91",79,2018-11-26,20,"Оренда будинків і приміщень та експлуатаційні витрати (прибирання, страхування орендованих будинків, охорона, сигналізація, ремонт, вивіз сміття, тощо)",Оренда нерухомості,140430,Черкаська обласна організація,37239608,Черкаська область,ОРЕНДНА ПЛАТА ЗА СЕРПЕНЬ 2018 РОКУ ПО ПРИМIЩЕННЯ ОФIСУ В ГОТЕЛI ?СМIЛА? ЗГIДНО РАХУНКУ ? ФАКТУРI № ТМ-0001525 ВIД 31 СЕРПНЯ 2018 Р. БЕЗ ПДВ.,26001051537726,current,186.49,"КП ""Муніципальна інвестиційно-фондова компанія""",35686412,юридична особа
ГРОМАДЯНСЬКА ПОЗИЦІЯ,"Київ, вулиця Михайла Грушевського, 1Д",70,2018-11-26,BQO1KP3LNY,Банківські послуги,Інші витрати,140429,Черкаська обласна організація,37239608,Черкаська область,"КОМIСIЯ ЗА ВИКОНАННЯ ПЛАТЕЖIВ В НАЦIОНАЛЬНIЙ ВАЛЮТI, ЗГIДНО З ВIДКРИТОЮ ОФЕРТОЮ БАНКУ N Б/Н ВIД 27.03.2017 ТА ТАРИФIВ БАНКУ, БЕЗ ПДВ.",26001051537726,current,3.00,"ПАТ КБ ""Приватбанк""",14360570,юридична особа
ГРОМАДЯНСЬКА ПОЗИЦІЯ,"Черкаська область, Сміла, вулиця Соборна, 91",79,2018-11-26,19,"Оренда будинків і приміщень та експлуатаційні витрати (прибирання, страхування орендованих будинків, охорона, сигналізація, ремонт, вивіз сміття, тощо)",Оренда нерухомості,140428,Черкаська обласна організація,37239608,Черкаська область,КОМПЕНСАЦIЯ ВИТРАТ ЗА ЛИПЕНЬ 2018 РОКУ ПО ОБСЛУГОВУВАННЮ ПРИМIЩЕННЯ ОФIСУ В ГОТЕЛI СМIЛА ЗГIДНО РАХУНКУ ? ФАКТУРI № ТМ-0001486 ВIД 31 ЛИПНЯ 2018Р. БЕЗ ПДВ,26001051537726,current,229.88,"КП ""Муніципальна інвестиційно-фондова компанія""",35686412,юридична особа
ГРОМАДЯНСЬКА ПОЗИЦІЯ,"Київ, вулиця Михайла Грушевського, 1Д",70,2018-11-26,BQO1KP2JUY,Банківські послуги,Інші витрати,140427,Черкаська обласна організація,37239608,Черкаська область,"КОМIСIЯ ЗА ВИКОНАННЯ ПЛАТЕЖIВ В НАЦIОНАЛЬНIЙ ВАЛЮТI, ЗГIДНО З ВIДКРИТОЮ ОФЕРТОЮ БАНКУ N Б/Н ВIД 27.03.2017 ТА ТАРИФIВ БАНКУ, БЕЗ ПДВ.",26001051537726,current,3.00,"ПАТ КБ ""Приватбанк""",14360570,юридична особа
ГРОМАДЯНСЬКА ПОЗИЦІЯ,"Черкаська область, Сміла, вулиця Соборна, 91",79,2018-11-26,18,"Оренда будинків і приміщень та експлуатаційні витрати (прибирання, страхування орендованих будинків, охорона, сигналізація, ремонт, вивіз сміття, тощо)",Оренда нерухомості,140426,Черкаська обласна організація,37239608,Черкаська область,ОРЕНДНА ПЛАТА ЗА ЛИПЕНЬ 2018 РОКУ ПО ПРИМIЩЕННЯ ОФIСУ В ГОТЕЛI ?СМIЛА? ЗГIДНО РАХУНКУ ? ФАКТУРI № ТМ-0001505 ВIД 31 ЛИПНЯ 2018Р. БЕЗ ПДВ.,26001051537726,current,186.49,"КП ""Муніципальна інвестиційно-фондова компанія""",35686412,юридична особа
ГРОМАДЯНСЬКА ПОЗИЦІЯ,"Київ, вулиця Михайла Грушевського, 1Д",70,2018-11-26,BQO1KP14KY,Банківські послуги,Інші витрати,140425,Черкаська обласна організація,37239608,Черкаська область,"КОМIСIЯ ЗА ВИКОНАННЯ ПЛАТЕЖIВ В НАЦIОНАЛЬНIЙ ВАЛЮТI, ЗГIДНО З ВIДКРИТОЮ ОФЕРТОЮ БАНКУ N Б/Н ВIД 27.03.2017 ТА ТАРИФIВ БАНКУ, БЕЗ ПДВ.",26001051537726,current,3.00,"ПАТ КБ ""Приватбанк""",14360570,юридична особа
ГРОМАДЯНСЬКА ПОЗИЦІЯ,"Черкаська область, Сміла, вулиця Соборна, 91",53,2018-11-26,17,Витрати на розміщення зовнішньої реклами,Зовнішня реклама,140424,Черкаська обласна організація,37239608,Черкаська область,ЗА РОЗМIЩЕННЯ ЗОВНIШНЬОЇ РЕКЛАМИ В ЛИПНI 2018 РОКУ НА БУДIВЛI ГОТЕЛЮ ?СМIЛА? ЗГIДНО РАХУНКУ ? ФАКТУРИ № ТМ-0001485 ВIД 31 ЛИПНЯ 2018 Р. БЕЗ ПДВ.,26001051537726,current,517.50,"КП ""Муніципальна інвестиційно-фондова компанія""",35686412,юридична особа
ГРОМАДЯНСЬКА ПОЗИЦІЯ,"Київ, вулиця Михайла Грушевського, 1Д",70,2018-11-26,BQO1KOZORY,Банківські послуги,Інші витрати,140423,Черкаська обласна організація,37239608,Черкаська область,"КОМIСIЯ ЗА ВИКОНАННЯ ПЛАТЕЖIВ В НАЦIОНАЛЬНIЙ ВАЛЮТI, ЗГIДНО З ВIДКРИТОЮ ОФЕРТОЮ БАНКУ N Б/Н ВIД 27.03.2017 ТА ТАРИФIВ БАНКУ, БЕЗ ПДВ.",26001051537726,current,3.00,"ПАТ КБ ""Приватбанк""",14360570,юридична особа
ГРОМАДЯНСЬКА ПОЗИЦІЯ,"Київ, вулиця Олега Кошового",52,2018-11-26,14,Інша реклама (без класифікації),Реклама (без класифікації),140262,Центральний офіс,33492420,Україна,Сплата за послуги згьдно ра,26009000000569,current,710732.40,"ТОВ ""РТМ-Україна""",31282375,юридична особа
ГРОМАДЯНСЬКА ПОЗИЦІЯ,Київ,52,2018-11-26,12,Інша реклама (без класифікації),Реклама (без класифікації),140261,Центральний офіс,33492420,Україна,Сплата за послуги згідно ра,26009000000569,current,142380.00,"ТОВ ""КОМПАНІЯ Орт""",42189360,юридична особа
ГРОМАДЯНСЬКА ПОЗИЦІЯ,Київ,51,2018-11-26,13,Оплата ефірного часу на ТБ,Телереклама,140260,Центральний офіс,33492420,Україна,Сплата за розміщення сюже,26009000000569,current,51240.00,"ТОВ ""Преміум Медіа Груп""",34716807,юридична особа
ГРОМАДЯНСЬКА ПОЗИЦІЯ,Дніпропетровська область,52,2018-11-26,10,Інша реклама (без класифікації),Реклама (без класифікації),140259,Центральний офіс,33492420,Україна,Сплата за рекламні послуги,26009000000569,current,20000.00,"ТОВ ""Сілл Аутдор""",41720623,юридична особа
ГРОМАДЯНСЬКА ПОЗИЦІЯ,,52,2018-11-26,11,Інша реклама (без класифікації),Реклама (без класифікації),140150,Центральний офіс,33492420,Україна,Сплата за рекламні послуги,26009000000569,current,260000.00,Баско А В,,фізична особа
ГРОМАДЯНСЬКА ПОЗИЦІЯ,"Київ, вулиця Михайла Грушевського, 1Д",70,2018-11-25,75,Банківські послуги,Інші витрати,140620,Київська обласна організація,37236193,Київська область,Комiсiя РКО вiд зарплати за листопад 2018р.,26001053022803,current,10.00,"ПАТ КБ ""Приватбанк""",14360570,юридична особа
ГРОМАДЯНСЬКА ПОЗИЦІЯ,,84,2018-11-25,74,"Заробітна плата, премії","Заробітна плата, лікарняні, вагітності, відрядження, компенсації",140566,Київська обласна організація,37236193,Київська область,Зарплата за листопад 2018р.,26001053022803,current,2000.00,Побідаш Ірина Миколаївна,,фізична особа
ГРОМАДЯНСЬКА ПОЗИЦІЯ,,84,2018-11-25,74,"Заробітна плата, премії","Заробітна плата, лікарняні, вагітності, відрядження, компенсації",140565,Київська обласна організація,37236193,Київська область,Зарплата за листопад 2018р.,26001053022803,current,2000.00,Присяжнюк Юлія Ігорівна,,фізична особа
ГРОМАДЯНСЬКА ПОЗИЦІЯ,,53,2018-11-23,73,Витрати на розміщення зовнішньої реклами,Зовнішня реклама,140564,Київська обласна організація,37236193,Київська область,"Оплата за оренду рекламного щита (бiгборда) згiдно договору N1/11-2018 вiд 19.11.2018р. В т.ч.ПДВ 416,67 грн.",26001053022803,current,2500.00,Добрянський В О,,фізична особа
ГРОМАДЯНСЬКА ПОЗИЦІЯ,"Львівська область, Перемишлянський район, Бібрка, вулиця Тарнавського, 22",59,2018-11-23,3,Грошова застава,Грошова застава,140457,Львівська обласна організація,37277596,Львівська область,Застава за висунення кандидатів в депутати Бібрської міської ради,26005314012,current,1692.00,Бібрська міська виборча комісія,33892040,юридична особа
ГРОМАДЯНСЬКА ПОЗИЦІЯ,"Київ, вулиця Михайла Грушевського, 1Д",70,2018-11-23,BN01KII8EY,Банківські послуги,Інші витрати,140362,Сумська обласна організація,37283311,Сумська область,коміся за виконання платежів в національній валюті,26003055027585,current,3.00,"ПАТ КБ ""Приватбанк""",14360570,юридична особа
ГРОМАДЯНСЬКА ПОЗИЦІЯ,"Київ, вулиця Євгена Коновальця, 32Г",53,2018-11-23,4,Витрати на розміщення зовнішньої реклами,Зовнішня реклама,140361,Сумська обласна організація,37283311,Сумська область,"послуги з розміщення рекламного зображення, обслуговування рекламоносія ПП ""Громадянська позиція""",26003055027585,current,3600.00,"ТОВ ""Преміум Медіа Груп""",34716807,юридична особа
ГРОМАДЯНСЬКА ПОЗИЦІЯ,"Київ, вулиця Михайла Грушевського, 1Д",70,2018-11-23,BN01KIA1XY,Банківські послуги,Інші витрати,140360,Сумська обласна організація,37283311,Сумська область,коміся за виконання платежів в національній валюті,26003055027585,current,3.00,"ПАТ КБ ""Приватбанк""",14360570,юридична особа
ГРОМАДЯНСЬКА ПОЗИЦІЯ,"Сумська область, Суми, проспект Тараса Шевченка, 2",53,2018-11-23,3,Витрати на розміщення зовнішньої реклами,Зовнішня реклама,140359,Сумська обласна організація,37283311,Сумська область,розміщення сюжетів замовника на конструкціях виконавця,26003055027585,current,11730.00,"ПП ""ФАБРИКА Реклами""",24002437,юридична особа
ГРОМАДЯНСЬКА ПОЗИЦІЯ,"Київ, вулиця Марка Вовчка, 12/14",58,2018-11-23,2,"Виготовлення друкованих матеріалів (плакатів, листівок, буклетів та інших агітаційних матеріалів)",Друкована агітація,140258,Центральний офіс,33492420,Україна,Сплата за друк газети згьдн,26009000000569,current,366234.85,"ТОВ ’Мега-поліграф""",32114278,юридична особа
ГРОМАДЯНСЬКА ПОЗИЦІЯ,Тернопільська область,58,2018-11-23,3,"Виготовлення друкованих матеріалів (плакатів, листівок, буклетів та інших агітаційних матеріалів)",Друкована агітація,140257,Центральний офіс,33492420,Україна,Сплата за друк газети зг.ра,26009000000569,current,207014.54,"ТОВ ""ДІМ""",22605152,юридична особа
ГРОМАДЯНСЬКА ПОЗИЦІЯ,"Львівська область, Львів",52,2018-11-23,6,Інша реклама (без класифікації),Реклама (без класифікації),140256,Центральний офіс,33492420,Україна,Сплата за рекламні послуги,26009000000569,current,172340.00,"ТОВ ""ЕКП Захід""",40286658,юридична особа
ГРОМАДЯНСЬКА ПОЗИЦІЯ,"Львівська область, Львів",52,2018-11-23,5,Інша реклама (без класифікації),Реклама (без класифікації),140255,Центральний офіс,33492420,Україна,Сплата за розміщення рекла,26009000000569,current,116939.00,"ТОВ ""ЦЕНТР Реклами""",32712994,юридична особа
ГРОМАДЯНСЬКА ПОЗИЦІЯ,"Львівська область, Львів",52,2018-11-23,4,Інша реклама (без класифікації),Реклама (без класифікації),140254,Центральний офіс,33492420,Україна,Сплата за розміщення рекла,26009000000569,current,77550.00,"ТОВ ""ЦЕНТР Реклами""",32712994,юридична особа
ГРОМАДЯНСЬКА ПОЗИЦІЯ,Дніпропетровська область,52,2018-11-23,9,Інша реклама (без класифікації),Реклама (без класифікації),140253,Центральний офіс,33492420,Україна,Сплата за розміщення рекла,26009000000569,current,62400.00,"ТОВ ""БІО-ФОРС""",41807672,юридична особа
ГРОМАДЯНСЬКА ПОЗИЦІЯ,"Львівська область, Львів",52,2018-11-23,7,Інша реклама (без класифікації),Реклама (без класифікації),140252,Центральний офіс,33492420,Україна,Сплата за розміщення рекла,26009000000569,current,26340.00,"ПП ""РЕКЛАМНЕ АГЕНТСТВО ""АКВАРІУМ""",36462603,юридична особа
ГРОМАДЯНСЬКА ПОЗИЦІЯ,"Полтавська область, Полтава",52,2018-11-23,8,Інша реклама (без класифікації),Реклама (без класифікації),140251,Центральний офіс,33492420,Україна,Сплата за розміщення рекла,26009000000569,current,19150.00,"ТОВ ""РА Оллан""",24832260,юридична особа
ГРОМАДЯНСЬКА ПОЗИЦІЯ,"Київська обл., Вишгородський район, Вишгород, вулиця Кургузова, 13",63,2018-11-22,86,Податок на доходи,Податкові платежі,140638,Київська обласна організація,37236193,Київська область,*;101;37236193;ПДФО вiд зарплати за грудень 2018р.,26001053022803,current,1440.00,УДКСУ у Вишгородському районі Київської області,37868556,юридична особа
ГРОМАДЯНСЬКА ПОЗИЦІЯ,"Дніпропетровська область, Дніпро́, проспект Богдана Хмельницького, 16",66,2018-11-22,24,Повернення внесків приватних внесків (донорам),Повернення приватних внесків (донорам),140543,Дніпропетровська обласна організація,37006888,Дніпропетровська область,Повернення помилково перерахованих коштів,26005050226940,current,3000.00,"ТОВ ""КОПРИГ""",33718667,юридична особа
ГРОМАДЯНСЬКА ПОЗИЦІЯ,"Київ, вулиця Михайла Грушевського, 1Д",70,2018-11-22,BMO1KDEMUY,Банківські послуги,Інші витрати,140542,Дніпропетровська обласна організація,37006888,Дніпропетровська область,Комісія за дебетовий платіж,26005050226940,current,3.00,"ПАТ КБ ""Приватбанк""",14360570,юридична особа
ГРОМАДЯНСЬКА ПОЗИЦІЯ,"Київ, вулиця Михайла Грушевського, 1Д",70,2018-11-21,BLO1K7KHYY,Банківські послуги,Інші витрати,140619,Київська обласна організація,37236193,Київська область,"Комiсiя за виконання платежiв в нацiональнiй валютi, згiдно з вiдкритою офертою банку N б/н вiд 13.03.2018 та тарифiв банку, без ПДВ.",26001053022803,current,3.00,"ПАТ КБ ""Приватбанк""",14360570,юридична особа
ГРОМАДЯНСЬКА ПОЗИЦІЯ,,52,2018-11-21,72,Інша реклама (без класифікації),Реклама (без класифікації),140563,Київська обласна організація,37236193,Київська область,"Оплата за розмiщення реклами згiдно рахунку 105 вiд 15.11.2018 р., без ПДВ",26001053022803,current,53460.00,Осика В В,,фізична особа
ГРОМАДЯНСЬКА ПОЗИЦІЯ,"Миколаївська область, Миколаїв, Богоявленський проспект, 27, 24",52,2018-11-20,1,Інша реклама (без класифікації),Реклама (без класифікації),140405,Миколаївська обласна організація,40894701,Миколаївська область,Оплата за розміщення інформаційного матеріалу,26000300805234,current,57000.00,Єнтін Олег Якович,,фізична особа
ГРОМАДЯНСЬКА ПОЗИЦІЯ,,79,2018-11-20,5,"Оренда будинків і приміщень та експлуатаційні витрати (прибирання, страхування орендованих будинків, охорона, сигналізація, ремонт, вивіз сміття, тощо)",Оренда нерухомості,140387,Київська міська організація,37615584,Київ,Оренад приміщення,26009337001200,current,6000.00,Байбуріна Наталя Вячеславівна,,фізична особа
ГРОМАДЯНСЬКА ПОЗИЦІЯ,"Київ, вулиця Марка Вовчка, 12/14",58,2018-11-20,9,"Виготовлення друкованих матеріалів (плакатів, листівок, буклетів та інших агітаційних матеріалів)",Друкована агітація,140250,Центральний офіс,33492420,Україна,Сплата за друк газети згьіді,26009000000569,current,407389.75,"ТОВ ’Мега-поліграф""",32114278,юридична особа
ГРОМАДЯНСЬКА ПОЗИЦІЯ,Тернопільська область,58,2018-11-20,10,"Виготовлення друкованих матеріалів (плакатів, листівок, буклетів та інших агітаційних матеріалів)",Друкована агітація,140249,Центральний офіс,33492420,Україна,Сплата за друк газети зг.ра,26009000000569,current,172904.02,"ТОВ ""ДІМ""",22605152,юридична особа
ГРОМАДЯНСЬКА ПОЗИЦІЯ,"Київ, вулиця Олега Кошового",52,2018-11-20,11,Інша реклама (без класифікації),Реклама (без класифікації),140248,Центральний офіс,33492420,Україна,Сплата за послуги згідно ра,26009000000569,current,11700.00,"ТОВ ""РТМ-Україна""",31282375,юридична особа
ГРОМАДЯНСЬКА ПОЗИЦІЯ,"Київ, вулиця Олега Кошового",52,2018-11-19,6,Інша реклама (без класифікації),Реклама (без класифікації),140247,Центральний офіс,33492420,Україна,Сплата за послуги згьідно р,26009000000569,current,750720.00,"ТОВ ""РТМ-Україна""",31282375,юридична особа
ГРОМАДЯНСЬКА ПОЗИЦІЯ,Київ,52,2018-11-19,5,Інша реклама (без класифікації),Реклама (без класифікації),140246,Центральний офіс,33492420,Україна,Сплата за послуги згідно ра,26009000000569,current,417102.30,"ТОВ ""КОМПАНІЯ Орт""",42189360,юридична особа
ГРОМАДЯНСЬКА ПОЗИЦІЯ,Київ,51,2018-11-19,4,Оплата ефірного часу на ТБ,Телереклама,140245,Центральний офіс,33492420,Україна,Сплата за розміщення сюже,26009000000569,current,200820.00,"ТОВ ""Преміум Медіа Груп""",34716807,юридична особа
ГРОМАДЯНСЬКА ПОЗИЦІЯ,"Львівська область, Львів",52,2018-11-19,3,Інша реклама (без класифікації),Реклама (без класифікації),140244,Центральний офіс,33492420,Україна,Сплата за рекламні послуги,26009000000569,current,17300.00,"ТОВ ""ЕКП Захід""",40286658,юридична особа
ГРОМАДЯНСЬКА ПОЗИЦІЯ,"Київ, вулиця Антоновича, 127",70,2018-11-19,537895,Банківські послуги,Інші витрати,140243,Центральний офіс,33492420,Україна,Комісія банку,26009000000569,current,100.00,"АТ ""Укрексімбанк""",00032112,юридична особа
ГРОМАДЯНСЬКА ПОЗИЦІЯ,"Київ, вулиця Антоновича, 127",70,2018-11-19,537844,Банківські послуги,Інші витрати,140242,Центральний офіс,33492420,Україна,Комісія банку,26009000000569,current,100.00,"АТ ""Укрексімбанк""",00032112,юридична особа
ГРОМАДЯНСЬКА ПОЗИЦІЯ,"Київ, вулиця Антоновича, 127",70,2018-11-19,536898,Банківські послуги,Інші витрати,140241,Центральний офіс,33492420,Україна,Комісія банку,26009000000569,current,17.30,"АТ ""Укрексімбанк""",00032112,юридична особа
ГРОМАДЯНСЬКА ПОЗИЦІЯ,"Київ, вулиця Антоновича, 127",70,2018-11-19,536897,Банківські послуги,Інші витрати,140240,Центральний офіс,33492420,Україна,Комісія банку,26009000000569,current,10.00,"АТ ""Укрексімбанк""",00032112,юридична особа
ГРОМАДЯНСЬКА ПОЗИЦІЯ,"Харківська область, Харків, вулиця Дівоча, 6",79,2018-11-16,11,"Оренда будинків і приміщень та експлуатаційні витрати (прибирання, страхування орендованих будинків, охорона, сигналізація, ремонт, вивіз сміття, тощо)",Оренда нерухомості,140414,Харківська обласна організація,37188240,Харківська область,Суборенда приміщення,26004300641612,current,1200.00,ТОВ ʼСоціальний ХАБ ʼРозвитокʼ,41300641,юридична особа
ГРОМАДЯНСЬКА ПОЗИЦІЯ,Київ,52,2018-11-16,1,Інша реклама (без класифікації),Реклама (без класифікації),140239,Центральний офіс,33492420,Україна,Сплата за послуги з розміщення,26009000000569,current,710220.00,"ТОВ ""Біг медіа""",25281224,юридична особа
ГРОМАДЯНСЬКА ПОЗИЦІЯ,"Волинська область, Луцьк, Київський майдан, 3",79,2018-11-15,164,"Оренда будинків і приміщень та експлуатаційні витрати (прибирання, страхування орендованих будинків, охорона, сигналізація, ремонт, вивіз сміття, тощо)",Оренда нерухомості,140677,Волинська обласна організація,37204512,Волинська область,За Оренду в м. Кiверцi за жовтень 2018. Рахунок 1,2600805509013,current,1924.67,"ТОВ ""Орбіта К""",30248176,юридична особа
ГРОМАДЯНСЬКА ПОЗИЦІЯ,"Київ, вулиця Михайла Грушевського, 1Д",70,2018-11-15,BFO1JMFM9,Банківські послуги,Інші витрати,140676,Волинська обласна організація,37204512,Волинська область,"Комiсiя за виконання платежiв в нацiональнiй валютi, згiдно з вiдкритою офертою банку N б/н вiд 03.08.2015 та тарифiв банку, без ПДВ.",2600805509013,current,3.00,"ПАТ КБ ""Приватбанк""",14360570,юридична особа
ГРОМАДЯНСЬКА ПОЗИЦІЯ,"Київ, вулиця Михайла Грушевського, 1Д",70,2018-11-15,BFO1JMFM9Y,Банківські послуги,Інші витрати,140675,Волинська обласна організація,37204512,Волинська область,"Комiсiя за викон. платежу 161 вiд 15.11.2018, 800.00 в нац. валютi в пiсляоперацiйний час, згiдно з вiдкритою офертою банку № б/н вiд 03.08.2015",2600805509013,current,3.85,"ПАТ КБ ""Приватбанк""",14360570,юридична особа
ГРОМАДЯНСЬКА ПОЗИЦІЯ,"Волинська область, Нововолинськ, проспект Дружби, 27",49,2018-11-15,161,Публікування матеріалів у друкованих ЗМІ,Реклама в друкованих ЗМІ,140674,Волинська обласна організація,37204512,Волинська область,"За розмiщення iнформацiї в Газетi ""Наше мiсто"". Рахунок N 90 вiд 18-10-2018",2600805509013,current,800.00,"РГ ""Наше місто""",20128222,юридична особа
ГРОМАДЯНСЬКА ПОЗИЦІЯ,"Київ, вулиця Михайла Грушевського, 1Д",70,2018-11-15,BFO1JME0BY,Банківські послуги,Інші витрати,140673,Волинська обласна організація,37204512,Волинська область,"Комiсiя за виконання платежiв в нацiональнiй валютi, згiдно з вiдкритою офертою банку N б/н вiд 03.08.2015 та тарифiв банку, без ПДВ.",2600805509013,current,3.00,"ПАТ КБ ""Приватбанк""",14360570,юридична особа
ГРОМАДЯНСЬКА ПОЗИЦІЯ,"Київ, вулиця Михайла Грушевського, 1Д",70,2018-11-15,BFO1JME0BX,Банківські послуги,Інші витрати,140672,Волинська обласна організація,37204512,Волинська область,"Комiсiя за викон. платежу 161 вiд 15.11.2018, 800.00 в нац. валютi в пiсляоперацiйний час, згiдно з вiдкритою офертою банку № б/н вiд 03.08.2015",2600805509013,current,1.60,"ПАТ КБ ""Приватбанк""",14360570,юридична особа
ГРОМАДЯНСЬКА ПОЗИЦІЯ,"Київська обл., Вишгородський район, Вишгород, вулиця Кургузова, 13",61,2018-11-15,70,Військовий збір,Податкові платежі,140618,Київська обласна організація,37236193,Київська область,*;101;37236193;Вiйськовий збiр вiд зарплати за листопад 2018р.;;;,26001053022803,current,120.00,УДКСУ у Вишгородському районі Київської області,37868556,юридична особа
ГРОМАДЯНСЬКА ПОЗИЦІЯ,"Київ, вулиця Михайла Грушевського, 1Д",70,2018-11-15,BFO1JK9WUY,Банківські послуги,Інші витрати,140617,Київська обласна організація,37236193,Київська область,"Комiсiя за виконання платежiв в нацiональнiй валютi, згiдно з вiдкритою офертою банку N б/н вiд 13.03.2018 та тарифiв банку, без ПДВ.",26001053022803,current,3.00,"ПАТ КБ ""Приватбанк""",14360570,юридична особа
ГРОМАДЯНСЬКА ПОЗИЦІЯ,"Київська обл., Вишгородський район, Вишгород, проспект Шевченка, 1",62,2018-11-15,71,Сплата ЄСВ,Податкові платежі,140616,Київська обласна організація,37236193,Київська область,*;101;37236193;ЄСВ вiд зарплати за листопад 2018р.;;;,26001053022803,current,1760.00,Вишгородська ОДПІ ГУ ДФС у Київській області,39466569,юридична особа
ГРОМАДЯНСЬКА ПОЗИЦІЯ,"Київ, вулиця Михайла Грушевського, 1Д",70,2018-11-15,BFO1JK9Y8Y,Банківські послуги,Інші витрати,140615,Київська обласна організація,37236193,Київська область,"Комiсiя за виконання платежiв в нацiональнiй валютi, згiдно з вiдкритою офертою банку N б/н вiд 13.03.2018 та тарифiв банку, без ПДВ.",26001053022803,current,3.00,"ПАТ КБ ""Приватбанк""",14360570,юридична особа
ГРОМАДЯНСЬКА ПОЗИЦІЯ,"Київ, вулиця Михайла Грушевського, 1Д",70,2018-11-15,72,Банківські послуги,Інші витрати,140614,Київська обласна організація,37236193,Київська область,Комiсiя РКО вiд зарплати за жовтень 2018р.,26001053022803,current,16.10,"ПАТ КБ ""Приватбанк""",14360570,юридична особа
ГРОМАДЯНСЬКА ПОЗИЦІЯ,"Київська обл., Вишгородський район, Вишгород, вулиця Кургузова, 13",63,2018-11-15,68,Податок на доходи,Податкові платежі,140613,Київська обласна організація,37236193,Київська область,*;101;37236193;ПДФО вiд зарплати за листопад 2018р.,26001053022803,current,1440.00,УДКСУ у Вишгородському районі Київської області,37868556,юридична особа
ГРОМАДЯНСЬКА ПОЗИЦІЯ,"Київ, вулиця Михайла Грушевського, 1Д",70,2018-11-15,BFO1JK9VDY,Банківські послуги,Інші витрати,140612,Київська обласна організація,37236193,Київська область,"Комiсiя за виконання платежiв в нацiональнiй валютi, згiдно з вiдкритою офертою банку N б/н вiд 13.03.2018 та тарифiв банку, без ПДВ.",26001053022803,current,3.00,"ПАТ КБ ""Приватбанк""",14360570,юридична особа
ГРОМАДЯНСЬКА ПОЗИЦІЯ,"Київська обл., Васильків, вулиця Чехова, 10",52,2018-11-15,73,Інша реклама (без класифікації),Реклама (без класифікації),140611,Київська обласна організація,37236193,Київська область,Оплата за розмiщення реклами згiдно рахунку 131 вiд 15.11.2018 р. Без ПДВ,26001053022803,current,6700.00,"ТОВ Нвкц ""ЕЛЕКТА""",13708864,юридична особа
ГРОМАДЯНСЬКА ПОЗИЦІЯ,"Київ, вулиця Михайла Грушевського, 1Д",70,2018-11-15,BFO1JK2SCY,Банківські послуги,Інші витрати,140610,Київська обласна організація,37236193,Київська область,"Комiсiя за виконання платежiв в нацiональнiй валютi, згiдно з вiдкритою офертою банку N б/н вiд 13.03.2018 та тарифiв банку, без ПДВ.",26001053022803,current,3.00,"ПАТ КБ ""Приватбанк""",14360570,юридична особа
ГРОМАДЯНСЬКА ПОЗИЦІЯ,"Івано-Франківська область, Долинський район, Долина, майдан Січових Стрільців, 3",49,2018-11-15,99,Публікування матеріалів у друкованих ЗМІ,Реклама в друкованих ЗМІ,140500,Івано-Франківська обласна організація,36733960,Івано-Франківська область,опублікування статті,26000052516833,current,1000.00,"ТОВ ""Медіацентр ""Свіча""",20545641,юридична особа
ГРОМАДЯНСЬКА ПОЗИЦІЯ,"Київ, вулиця Михайла Грушевського, 1Д",70,2018-11-15,BFO1JMHFLX,Банківські послуги,Інші витрати,140499,Івано-Франківська обласна організація,36733960,Івано-Франківська область,Комісія банку,26000052516833,current,8.00,"ПАТ КБ ""Приватбанк""",14360570,юридична особа
ГРОМАДЯНСЬКА ПОЗИЦІЯ,"Київ, вулиця Михайла Грушевського, 1Д",70,2018-11-15,BFO1JMНFLY,Банківські послуги,Інші витрати,140498,Івано-Франківська обласна організація,36733960,Івано-Франківська область,Комісія банку,26000052516833,current,3.00,"ПАТ КБ ""Приватбанк""",14360570,юридична особа
ГРОМАДЯНСЬКА ПОЗИЦІЯ,"Івано-Франківська область, Івано-Франківськ, вулиця Січових стрільців, 2",49,2018-11-15,98,Публікування матеріалів у друкованих ЗМІ,Реклама в друкованих ЗМІ,140497,Івано-Франківська обласна організація,36733960,Івано-Франківська область,опублікування статті,26000052516833,current,4000.00,"РГ ""Галичина’",13644704,юридична особа
ГРОМАДЯНСЬКА ПОЗИЦІЯ,"Івано-Франківська область, Яремче, вулиця Свободи, 266",49,2018-11-15,97,Публікування матеріалів у друкованих ЗМІ,Реклама в друкованих ЗМІ,140496,Івано-Франківська обласна організація,36733960,Івано-Франківська область,розміщення статті,26000052516833,current,1000.00,"РРЧ ""Яремчанський вісник""",30809960,юридична особа
ГРОМАДЯНСЬКА ПОЗИЦІЯ,"Київ, вулиця Михайла Грушевського, 1Д",70,2018-11-15,BFO1JMF7YX,Банківські послуги,Інші витрати,140495,Івано-Франківська обласна організація,36733960,Івано-Франківська область,Комісія банку,26000052516833,current,4.80,"ПАТ КБ ""Приватбанк""",14360570,юридична особа
ГРОМАДЯНСЬКА ПОЗИЦІЯ,"Київ, вулиця Михайла Грушевського, 1Д",70,2018-11-15,BFO1JMF7YY,Банківські послуги,Інші витрати,140494,Івано-Франківська обласна організація,36733960,Івано-Франківська область,Комісія банку,26000052516833,current,3.00,"ПАТ КБ ""Приватбанк""",14360570,юридична особа
ГРОМАДЯНСЬКА ПОЗИЦІЯ,"Івано-Франківська область, Городенківський район, Городенка, вулиця Володимира Великого, 4",49,2018-11-15,95,Публікування матеріалів у друкованих ЗМІ,Реклама в друкованих ЗМІ,140493,Івано-Франківська обласна організація,36733960,Івано-Франківська область,За політичну рекламу,26000052516833,current,2400.00,"ПП ""Медіацентр ""Край""",20553758,юридична особа
ГРОМАДЯНСЬКА ПОЗИЦІЯ,,49,2018-11-15,96,Публікування матеріалів у друкованих ЗМІ,Реклама в друкованих ЗМІ,140484,Івано-Франківська обласна організація,36733960,Івано-Франківська область,За публікацію в газеті,26000052516833,current,2800.00,Гузинець-Мудрик О І,,фізична особа
ГРОМАДЯНСЬКА ПОЗИЦІЯ,"Київ, вулиця Антоновича, 127",70,2018-11-15,142401,Банківські послуги,Інші витрати,140238,Центральний офіс,33492420,Україна,Комісія банку,26009000000569,current,95.20,"АТ ""Укрексімбанк""",00032112,юридична особа
ГРОМАДЯНСЬКА ПОЗИЦІЯ,"Харківська область, Харків, вулиця Дівоча, 6",79,2018-11-13,10,"Оренда будинків і приміщень та експлуатаційні витрати (прибирання, страхування орендованих будинків, охорона, сигналізація, ремонт, вивіз сміття, тощо)",Оренда нерухомості,140413,Харківська обласна організація,37188240,Харківська область,Суборенда приміщення,26004300641612,current,950.00,ТОВ ʼСоціальний ХАБ ʼРозвитокʼ,41300641,юридична особа
ГРОМАДЯНСЬКА ПОЗИЦІЯ,,58,2018-11-13,60,"Виготовлення друкованих матеріалів (плакатів, листівок, буклетів та інших агітаційних матеріалів)",Друкована агітація,140149,Центральний офіс,33492420,Україна,Сплата за банер згьідно рах,26009000000569,current,4200.00,Черненко Оксана Володимирівна,,фізична особа
ГРОМАДЯНСЬКА ПОЗИЦІЯ,"Кіровоградська область, Бобринецький район, Бобринець, вул. Каштанова",79,2018-11-09,1,"Оренда будинків і приміщень та експлуатаційні витрати (прибирання, страхування орендованих будинків, охорона, сигналізація, ремонт, вивіз сміття, тощо)",Оренда нерухомості,140687,Кіровоградська обласна організація,37297586,Кіровоградська область,Згідно рахунку № КА-0811-001 від 08 листопада 2018р. Орендна плата за листопад 2018р. Та останій місяць,26007300684913,current,2000.00,"ТОВ ""К-автотранс""",38693066,юридична особа
ГРОМАДЯНСЬКА ПОЗИЦІЯ,,43,2018-11-09,163,Інші витрати,Інші витрати,140649,Волинська обласна організація,37204512,Волинська область,,2600805509013,current,3500.00,Бугайчук Антон Павлович,3433502795,фізична особа
ГРОМАДЯНСЬКА ПОЗИЦІЯ,,84,2018-11-09,69,"Заробітна плата, премії","Заробітна плата, лікарняні, вагітності, відрядження, компенсації",140562,Київська обласна організація,37236193,Київська область,Зарплата за жовтень 2018р.,26001053022803,current,3220.00,Побідаш Ірина Миколаївна,,фізична особа
ГРОМАДЯНСЬКА ПОЗИЦІЯ,,84,2018-11-09,69,"Заробітна плата, премії","Заробітна плата, лікарняні, вагітності, відрядження, компенсації",140561,Київська обласна організація,37236193,Київська область,Зарплата за жовтень 2018р.,26001053022803,current,3220.00,Присяжнюк Юлія Ігорівна,,фізична особа
ГРОМАДЯНСЬКА ПОЗИЦІЯ,"Київ, вулиця Михайла Грушевського, 1Д",70,2018-11-09,B9O1IY8QYA,Банківські послуги,Інші витрати,140541,Дніпропетровська обласна організація,37006888,Дніпропетровська область,Комісія за поповнення карток для виплат та нецільові платежі,26005050226940,current,0.36,"ПАТ КБ ""Приватбанк""",14360570,юридична особа
ГРОМАДЯНСЬКА ПОЗИЦІЯ,,66,2018-11-09,23,Повернення внесків приватних внесків (донорам),Повернення приватних внесків (донорам),140535,Дніпропетровська обласна організація,37006888,Дніпропетровська область,Повернення помилково перерахованих коштів,26005050226940,current,120.00,Маросін Олександр Петрович,,фізична особа
ГРОМАДЯНСЬКА ПОЗИЦІЯ,Київ,58,2018-11-09,59,"Виготовлення друкованих матеріалів (плакатів, листівок, буклетів та інших агітаційних матеріалів)",Друкована агітація,140237,Центральний офіс,33492420,Україна,Сплата за постер згідно рах,26009000000569,current,5400.00,"ТОВ ""Гранд Афіш""",36678347,юридична особа
ГРОМАДЯНСЬКА ПОЗИЦІЯ,"Закарпатська область, Ужгород, вулиця Собранецька, 146",70,2018-11-07,6150763808,Банківські послуги,Інші витрати,140382,Закарпатська обласна організація,37296975,Закарпатська область,Комісія банку,26003000588433,current,194.00,"Закарпатська обласна філія АТ ""Ощадбанк""",09312190,юридична особа
ГРОМАДЯНСЬКА ПОЗИЦІЯ,"Закарпатська область, Ужгород, вулиця Собранецька, 146",70,2018-11-07,582873609,Банківські послуги,Інші витрати,140381,Закарпатська обласна організація,37296975,Закарпатська область,Комісія банку,26003000588433,current,149.00,"Закарпатська обласна філія АТ ""Ощадбанк""",09312190,юридична особа
ГРОМАДЯНСЬКА ПОЗИЦІЯ,"Закарпатська область, Хуст, вулиця Івана Франка, 185",53,2018-11-07,13,Витрати на розміщення зовнішньої реклами,Зовнішня реклама,140380,Закарпатська обласна організація,37296975,Закарпатська область,Оплата розміщення реклами на рекламних носіях,26003000588433,current,6400.00,"ТОВ ""100% Реклама""",32672501,юридична особа
ГРОМАДЯНСЬКА ПОЗИЦІЯ,"Закарпатська область, Ужгород, вулиця Собранецька, 146",70,2018-11-07,1,Банківські послуги,Інші витрати,140379,Закарпатська обласна організація,37296975,Закарпатська область,Комісія банку,26003000588433,current,8.00,"Закарпатська обласна філія АТ ""Ощадбанк""",09312190,юридична особа
ГРОМАДЯНСЬКА ПОЗИЦІЯ,"Закарпатська область, Мукачево, вулиця Пушкіна, 12, 1",53,2018-11-07,7,Витрати на розміщення зовнішньої реклами,Зовнішня реклама,140378,Закарпатська обласна організація,37296975,Закарпатська область,Оплата розміщення реклами на рекламних носіях,26003000588433,current,9000.00,"ПП ""ДРАЙ-В""",33852893,юридична особа
ГРОМАДЯНСЬКА ПОЗИЦІЯ,,53,2018-11-07,12,Витрати на розміщення зовнішньої реклами,Зовнішня реклама,140370,Закарпатська обласна організація,37296975,Закарпатська область,Оплата розміщення реклами на рекламних носіях,26003000588433,current,1000.00,Абдулов Костянтин Олександрович,,фізична особа
ГРОМАДЯНСЬКА ПОЗИЦІЯ,"Київ, вулиця Михайла Грушевського, 1Д",70,2018-11-06,69,Банківські послуги,Інші витрати,140609,Київська обласна організація,37236193,Київська область,Комiсiя РКО вiд зарплати за жовтень 2018р.,26001053022803,current,16.10,"ПАТ КБ ""Приватбанк""",14360570,юридична особа
ГРОМАДЯНСЬКА ПОЗИЦІЯ,"Київська обл., Вишгородський район, Вишгород, вулиця Кургузова, 13",61,2018-11-06,69,Військовий збір,Податкові платежі,140608,Київська обласна організація,37236193,Київська область,*;101;37236193;Вiйськовий збiр вiд зарплати за жовтень 2018р.,26001053022803,current,120.00,УДКСУ у Вишгородському районі Київської області,37868556,юридична особа
ГРОМАДЯНСЬКА ПОЗИЦІЯ,"Київ, вулиця Михайла Грушевського, 1Д",70,2018-11-06,B6O1IJJUAY,Банківські послуги,Інші витрати,140607,Київська обласна організація,37236193,Київська область,"Комiсiя за виконання платежiв в нацiональнiй валютi, згiдно з вiдкритою офертою банку N б/н вiд 13.03.2018 та тарифiв банку, без ПДВ.",26001053022803,current,3.00,"ПАТ КБ ""Приватбанк""",14360570,юридична особа
ГРОМАДЯНСЬКА ПОЗИЦІЯ,"Київська обл., Вишгородський район, Вишгород, проспект Шевченка, 1",62,2018-11-06,69,Сплата ЄСВ,Податкові платежі,140606,Київська обласна організація,37236193,Київська область,*;101;37236193;ЄСВ вiд зарплати за жовтень 2018р.,26001053022803,current,1760.00,Вишгородська ОДПІ ГУ ДФС у Київській області,39466569,юридична особа
ГРОМАДЯНСЬКА ПОЗИЦІЯ,"Київ, вулиця Михайла Грушевського, 1Д",70,2018-11-06,B6O1IJJUCY,Банківські послуги,Інші витрати,140605,Київська обласна організація,37236193,Київська область,"Комiсiя за виконання платежiв в нацiональнiй валютi, згiдно з вiдкритою офертою банку N б/н вiд 13.03.2018 та тарифiв банку, без ПДВ.",26001053022803,current,3.00,"ПАТ КБ ""Приватбанк""",14360570,юридична особа
ГРОМАДЯНСЬКА ПОЗИЦІЯ,"Київська обл., Вишгородський район, Вишгород, вулиця Кургузова, 13",63,2018-11-06,69,Податок на доходи,Податкові платежі,140604,Київська обласна організація,37236193,Київська область,*;101;37236193;ПДФО вiд зарплати за жовтень 2018р.,26001053022803,current,1440.00,УДКСУ у Вишгородському районі Київської області,37868556,юридична особа
ГРОМАДЯНСЬКА ПОЗИЦІЯ,"Київ, вулиця Михайла Грушевського, 1Д",70,2018-11-06,B6O1IJJUKY,Банківські послуги,Інші витрати,140603,Київська обласна організація,37236193,Київська область,"Комiсiя за виконання платежiв в нацiональнiй валютi, згiдно з вiдкритою офертою банку N б/н вiд 13.03.2018 та тарифiв банку, без ПДВ.",26001053022803,current,3.00,"ПАТ КБ ""Приватбанк""",14360570,юридична особа
ГРОМАДЯНСЬКА ПОЗИЦІЯ,"Закарпатська область, Ужгород, вулиця Ватутіна, 9",53,2018-11-06,9,Витрати на розміщення зовнішньої реклами,Зовнішня реклама,140377,Закарпатська обласна організація,37296975,Закарпатська область,Оплата розміщення реклами на рекламних носіях,26003000588433,current,6400.00,"ПП ""КОРЗО-2""",30015215,юридична особа
ГРОМАДЯНСЬКА ПОЗИЦІЯ,,53,2018-11-06,6,Витрати на розміщення зовнішньої реклами,Зовнішня реклама,140369,Закарпатська обласна організація,37296975,Закарпатська область,Оплата розміщення реклами на рекламних носіях,26003000588433,current,36000.00,Шумеляк Олександр Віталійович,,фізична особа
ГРОМАДЯНСЬКА ПОЗИЦІЯ,,53,2018-11-06,11,Витрати на розміщення зовнішньої реклами,Зовнішня реклама,140368,Закарпатська обласна організація,37296975,Закарпатська область,Оплата розміщення реклами на рекламних носіях,26003000588433,current,5600.00,Рябіков Олександр Арнольдович,,фізична особа
ГРОМАДЯНСЬКА ПОЗИЦІЯ,,53,2018-11-06,8,Витрати на розміщення зовнішньої реклами,Зовнішня реклама,140367,Закарпатська обласна організація,37296975,Закарпатська область,Оплата розміщення реклами на рекламних носіях,26003000588433,current,12800.00,Грабар Марія Миколаївна,,фізична особа
ГРОМАДЯНСЬКА ПОЗИЦІЯ,,53,2018-11-06,10,Витрати на розміщення зовнішньої реклами,Зовнішня реклама,140366,Закарпатська обласна організація,37296975,Закарпатська область,Оплата розміщення реклами на рекламних носіях,26003000588433,current,6000.00,Пілюгін Андрій Петрович,,фізична особа
ГРОМАДЯНСЬКА ПОЗИЦІЯ,Київська обл.,52,2018-11-06,58,Інша реклама (без класифікації),Реклама (без класифікації),140236,Центральний офіс,33492420,Україна,Сплата за розміщення рекла,26009000000569,current,144504.00,"ПП ""ЕЙ-ПЕТРОЛ""",33330341,юридична особа
ГРОМАДЯНСЬКА ПОЗИЦІЯ,"Київ, вулиця Антоновича, 127",70,2018-11-06,182204,Банківські послуги,Інші витрати,140235,Центральний офіс,33492420,Україна,Комісія банку,26009000000569,current,100.00,"АТ ""Укрексімбанк""",00032112,юридична особа
ГРОМАДЯНСЬКА ПОЗИЦІЯ,"Волинська область, Луцьк, вулиця Кривий Вал, 28",76,2018-11-05,162,Послуги зв’язку,Послуги зв’язку,140671,Волинська обласна організація,37204512,Волинська область,За пiдключення та абонплата. Рахунок N 1 вiд 02-11-2018,2600805509013,current,484.00,"ПАТ ""Укртелеком""",21560766,юридична особа
ГРОМАДЯНСЬКА ПОЗИЦІЯ,"Київ, вулиця Михайла Грушевського, 1Д",70,2018-11-05,B2O1I7L16Y,Банківські послуги,Інші витрати,140670,Волинська обласна організація,37204512,Волинська область,"Комiсiя за виконання платежiв в нацiональнiй валютi, згiдно з вiдкритою офертою банку N б/н вiд 03.08.2015 та тарифiв банку",2600805509013,current,3.00,"ПАТ КБ ""Приватбанк""",14360570,юридична особа
ГРОМАДЯНСЬКА ПОЗИЦІЯ,Київ,43,2018-11-05,56,Інші витрати,Інші витрати,140234,Центральний офіс,33492420,Україна,Сплата за ТМЦ згідно рах.№,26009000000569,current,7890.05,"ТОВ ""Гранд Афіш""",36678347,юридична особа
ГРОМАДЯНСЬКА ПОЗИЦІЯ,Київ,72,2018-11-05,57,"Придбання, ремонт офісної техніки та програмного забезпечення (Бухгалтерські програми, Ліга.закон, домени)",Придбання офісної техніки та програмного забезпечення,140233,Центральний офіс,33492420,Україна,Сплата за подовження доме,26009000000569,current,576.00,"ТОВ ""Інтернет інвест""",32493292,юридична особа
ГРОМАДЯНСЬКА ПОЗИЦІЯ,"Київ, вулиця Михайла Грушевського, 1Д",70,2018-11-03,TZ003BBULV,Банківські послуги,Інші витрати,140669,Волинська обласна організація,37204512,Волинська область,Комiсiя за обслуговування рахунку за жовтень 2018 р. згiдно договору банкiвського рахунку вiд 03.08.2015,2600805509013,current,5.38,"ПАТ КБ ""Приватбанк""",14360570,юридична особа
ГРОМАДЯНСЬКА ПОЗИЦІЯ,"Київ, вулиця Михайла Грушевського, 1Д",70,2018-11-02,I1102TGA2G,Банківські послуги,Інші витрати,140668,Волинська обласна організація,37204512,Волинська область,Оплата за товари та послуги 31.10.2018 00:00:00 по картцi 5169330513964384,2600805509013,current,56.50,"ПАТ КБ ""Приватбанк""",14360570,юридична особа
ГРОМАДЯНСЬКА ПОЗИЦІЯ,"Київ, вулиця Михайла Грушевського, 1Д",70,2018-11-02,В201І2В33Y,Банківські послуги,Інші витрати,140358,Сумська обласна організація,37283311,Сумська область,коміся за виконання платежів в національній валюті,26003055027585,current,3.00,"ПАТ КБ ""Приватбанк""",14360570,юридична особа
ГРОМАДЯНСЬКА ПОЗИЦІЯ,"Сумська область, Суми, проспект Тараса Шевченка, 2",53,2018-11-02,2,Витрати на розміщення зовнішньої реклами,Зовнішня реклама,140357,Сумська обласна організація,37283311,Сумська область,розміщення сюжетів замовника на конструкціях виконавця,26003055027585,current,3200.00,"ПП ""ФАБРИКА Реклами""",24002437,юридична особа
ГРОМАДЯНСЬКА ПОЗИЦІЯ,"Тернопільська область, Тернопіль, вулиця Руська, 27",70,2018-11-01,2513594020,Банківські послуги,Інші витрати,140694,Тернопільська обласна організація,37016189,Тернопільська область,Комісія за розрахунково касове обслуговування,26002300597395,current,20.00,"Тернопільська обласна філія АТ ""Ощадбанк""",09338500,юридична особа
ГРОМАДЯНСЬКА ПОЗИЦІЯ,"Тернопільська область, Тернопіль, вулиця Руська, 27",70,2018-11-01,2509956920,Банківські послуги,Інші витрати,140693,Тернопільська обласна організація,37016189,Тернопільська область,Послуги банку,26002300597395,current,49.00,"Тернопільська обласна філія АТ ""Ощадбанк""",09338500,юридична особа
ГРОМАДЯНСЬКА ПОЗИЦІЯ,"Київ, вулиця Михайла Грушевського, 1Д",70,2018-11-01,AS8avrak8p,Банківські послуги,Інші витрати,140667,Волинська обласна організація,37204512,Волинська область,Комiсiя за обслуговування рахунку за жовтень 2018 р. згiдно договору банкiвського рахунку вiд 03.08.2015,2600805509013,current,94.62,"ПАТ КБ ""Приватбанк""",14360570,юридична особа
ГРОМАДЯНСЬКА ПОЗИЦІЯ,"Волинська область, Любешівський район, Любешів, вулиця Червоноармійська, 12",79,2018-11-01,160,"Оренда будинків і приміщень та експлуатаційні витрати (прибирання, страхування орендованих будинків, охорона, сигналізація, ремонт, вивіз сміття, тощо)",Оренда нерухомості,140666,Волинська обласна організація,37204512,Волинська область,Рахунок N 1 вiд 30-10-2018. За оренду за жовтень 2018 р.,2600805509013,current,1091.61,Любешівська райспоживспілка,01744292,юридична особа
ГРОМАДЯНСЬКА ПОЗИЦІЯ,"Київ, вулиця Михайла Грушевського, 1Д",70,2018-11-01,AS8avpisep,Банківські послуги,Інші витрати,140602,Київська обласна організація,37236193,Київська область,"Комiсiя за обслуговування рахунку за жовтень 2018 р. згiдно договору банкiвського рахунку вiд 13.03.2018, без ПДВ.",26001053022803,current,100.00,"ПАТ КБ ""Приватбанк""",14360570,юридична особа
ГРОМАДЯНСЬКА ПОЗИЦІЯ,"Київ, вулиця Михайла Грушевського, 1Д",70,2018-11-01,AS8avt672p,Банківські послуги,Інші витрати,140540,Дніпропетровська обласна організація,37006888,Дніпропетровська область,Комісія за обслуговування рахунку,26005050226940,current,100.00,"ПАТ КБ ""Приватбанк""",14360570,юридична особа
ГРОМАДЯНСЬКА ПОЗИЦІЯ,"Київ, вулиця Михайла Грушевського, 1Д",70,2018-11-01,AS8avka13p,Банківські послуги,Інші витрати,140492,Івано-Франківська обласна організація,36733960,Івано-Франківська область,комісія банку за обслуговування рахунку,26000052516833,current,100.00,"ПАТ КБ ""Приватбанк""",14360570,юридична особа
ГРОМАДЯНСЬКА ПОЗИЦІЯ,"Київ, вулиця Михайла Грушевського, 1Д",70,2018-11-01,AS8AVSWRJP,Банківські послуги,Інші витрати,140422,Черкаська обласна організація,37239608,Черкаська область,"КОМIСIЯ ЗА ОБСЛУГОВУВАННЯ РАХУНКУ ЗА ЖОВТЕНЬ 2018 Р. ЗГIДНО ДОГОВОРУ БАНКIВСЬКОГО РАХУНКУ ВIД 27.03.2017, БЕЗ ПДВ.",26001051537726,current,100.00,"ПАТ КБ ""Приватбанк""",14360570,юридична особа
ГРОМАДЯНСЬКА ПОЗИЦІЯ,"Харківська область, Харків, вулиця Слов'янська, 4",70,2018-11-01,2510660121,Банківські послуги,Інші витрати,140412,Харківська обласна організація,37188240,Харківська область,Абонплата,26004300641612,current,49.00,"Харківська обласна філія АТ ""Ощадбанк""",09351600,юридична особа
ГРОМАДЯНСЬКА ПОЗИЦІЯ,"Київ, вулиця Михайла Грушевського, 1Д",70,2018-11-01,,Банківські послуги,Інші витрати,140401,Хмельницька обласна організація,37263887,Хмельницька область,Комісія за обслуговування рахунку,26001052317039,current,100.00,"ПАТ КБ ""Приватбанк""",14360570,юридична особа
ГРОМАДЯНСЬКА ПОЗИЦІЯ,"Київ, вулиця Михайла Грушевського, 1Д",70,2018-11-01,-,Банківські послуги,Інші витрати,140390,Київська міська організація,37615584,Київ,Комісія банку,26009337001200,current,100.00,"ПАТ КБ ""Приватбанк""",14360570,юридична особа
ГРОМАДЯНСЬКА ПОЗИЦІЯ,"Київ, вулиця Михайла Грушевського, 1Д",70,2018-11-01,AS8avt4w1p,Банківські послуги,Інші витрати,140356,Сумська обласна організація,37283311,Сумська область,комісія за обслуговування рахунку за жовтень,26003055027585,current,100.00,"ПАТ КБ ""Приватбанк""",14360570,юридична особа
ГРОМАДЯНСЬКА ПОЗИЦІЯ,Дніпропетровська область,52,2018-11-01,55,Інша реклама (без класифікації),Реклама (без класифікації),140232,Центральний офіс,33492420,Україна,Сплата за послуги згідно ра,26009000000569,current,13600.00,"ТОВ ""Перша рекламна компанія ""Найкраща""",40519311,юридична особа
ГРОМАДЯНСЬКА ПОЗИЦІЯ,"Київ, вулиця Антоновича, 127",70,2018-11-01,57437,Банківські послуги,Інші витрати,140231,Центральний офіс,33492420,Україна,Комісія банку,26009000000569,current,350.00,"АТ ""Укрексімбанк""",00032112,юридична особа
ГРОМАДЯНСЬКА ПОЗИЦІЯ,Київ,76,2018-11-01,56,Послуги зв’язку,Послуги зв’язку,140230,Центральний офіс,33492420,Україна,Сплата за послуги згідно до,26009000000569,current,243.00,"ТОВ ""Воля-кабель""",30777913,юридична особа
ГРОМАДЯНСЬКА ПОЗИЦІЯ,"Львівська область, Львів, вулиця Академіка Андрія Сахарова, 78",70,2018-10-31,61515524,Банківські послуги,Інші витрати,140464,Львівська міська організація,37277947,Львівська область,Плата за відкриття рахунку згідно з розпорядженням за договірне списання,2600201813980,current,5.00,"ПАТ ""Кредобанк""",09807862,юридична особа
ГРОМАДЯНСЬКА ПОЗИЦІЯ,,52,2018-10-31,1,Інша реклама (без класифікації),Реклама (без класифікації),140392,Хмельницька обласна організація,37263887,Хмельницька область,Експонування рекламного матеріалу,26001052317039,current,90000.00,Пашинська Валентина Миколаївна,,фізична особа
ГРОМАДЯНСЬКА ПОЗИЦІЯ,Тернопільська область,52,2018-10-31,45,Інша реклама (без класифікації),Реклама (без класифікації),140229,Центральний офіс,33492420,Україна,Сплата за рекламні послуги,26009000000569,current,27300.00,"ПП ""КВВ-Д""",37681442,юридична особа
ГРОМАДЯНСЬКА ПОЗИЦІЯ,Київ,58,2018-10-31,47,"Виготовлення друкованих матеріалів (плакатів, листівок, буклетів та інших агітаційних матеріалів)",Друкована агітація,140228,Центральний офіс,33492420,Україна,Сплата за постеры згідно р<,26009000000569,current,8385.00,"ТОВ ""Гранд Афіш""",36678347,юридична особа
ГРОМАДЯНСЬКА ПОЗИЦІЯ,Київ,60,2018-10-31,49,Інші податки,Податкові платежі,140227,Центральний офіс,33492420,Україна,Податки,26009000000569,current,4820.00,ДПІ у Шевченківському районі у м. Києві,39561761,юридична особа
ГРОМАДЯНСЬКА ПОЗИЦІЯ,Київ,63,2018-10-31,48,Податок на доходи,Податкові платежі,140226,Центральний офіс,33492420,Україна,Податки,26009000000569,current,3950.00,УДКСУ у Шевченківському районі м. Києва,37995466,юридична особа
ГРОМАДЯНСЬКА ПОЗИЦІЯ,Київ,48,2018-10-31,52,Публікування матеріалів у мережі Інтернет,Реклама в інтернеті,140225,Центральний офіс,33492420,Україна,СПЛАТА ЗА ПОСЛУГИ ЗГІДН,26009000000569,current,1200.00,"ТОВ ""Гігацентр Україна""",39961308,юридична особа
ГРОМАДЯНСЬКА ПОЗИЦІЯ,Київ,48,2018-10-31,51,Публікування матеріалів у мережі Інтернет,Реклама в інтернеті,140224,Центральний офіс,33492420,Україна,СПЛАТА ЗА ПОСЛУГИ ЗГІДН,26009000000569,current,800.00,"ТОВ ""ГІГАТРАНС Україна""",39961313,юридична особа
ГРОМАДЯНСЬКА ПОЗИЦІЯ,Київ,63,2018-10-31,53,Податок на доходи,Податкові платежі,140223,Центральний офіс,33492420,Україна,Податки,26009000000569,current,330.00,УДКСУ у Шевченківському районі м. Києва,37995466,юридична особа
ГРОМАДЯНСЬКА ПОЗИЦІЯ,Київ,76,2018-10-31,50,Послуги зв’язку,Послуги зв’язку,140222,Центральний офіс,33492420,Україна,Сплата за послуги згідно до,26009000000569,current,243.00,"ТОВ ""Воля-кабель""",30777913,юридична особа
ГРОМАДЯНСЬКА ПОЗИЦІЯ,"Київ, вулиця Антоновича, 127",70,2018-10-31,135156,Банківські послуги,Інші витрати,140221,Центральний офіс,33492420,Україна,Комісія банку,26009000000569,current,204.00,"АТ ""Укрексімбанк""",00032112,юридична особа
ГРОМАДЯНСЬКА ПОЗИЦІЯ,"Київ, вулиця Антоновича, 127",70,2018-10-31,1021961,Банківські послуги,Інші витрати,140220,Центральний офіс,33492420,Україна,Комісія банку,26009000000569,current,27.30,"АТ ""Укрексімбанк""",00032112,юридична особа
ГРОМАДЯНСЬКА ПОЗИЦІЯ,"Київ, вулиця Антоновича, 127",70,2018-10-31,1021233,Банківські послуги,Інші витрати,140219,Центральний офіс,33492420,Україна,Комісія банку,26009000000569,current,17.63,"АТ ""Укрексімбанк""",00032112,юридична особа
ГРОМАДЯНСЬКА ПОЗИЦІЯ,"Київ, вулиця Антоновича, 127",70,2018-10-31,1022069,Банківські послуги,Інші витрати,140218,Центральний офіс,33492420,Україна,Комісія банку,26009000000569,current,10.00,"АТ ""Укрексімбанк""",00032112,юридична особа
ГРОМАДЯНСЬКА ПОЗИЦІЯ,"Київ, вулиця Антоновича, 127",70,2018-10-31,1022064,Банківські послуги,Інші витрати,140217,Центральний офіс,33492420,Україна,Комісія банку,26009000000569,current,10.00,"АТ ""Укрексімбанк""",00032112,юридична особа
ГРОМАДЯНСЬКА ПОЗИЦІЯ,"Київ, вулиця Антоновича, 127",70,2018-10-31,1022059,Банківські послуги,Інші витрати,140216,Центральний офіс,33492420,Україна,Комісія банку,26009000000569,current,10.00,"АТ ""Укрексімбанк""",00032112,юридична особа
ГРОМАДЯНСЬКА ПОЗИЦІЯ,"Київ, вулиця Антоновича, 127",70,2018-10-31,1022055,Банківські послуги,Інші витрати,140215,Центральний офіс,33492420,Україна,Комісія банку,26009000000569,current,10.00,"АТ ""Укрексімбанк""",00032112,юридична особа
ГРОМАДЯНСЬКА ПОЗИЦІЯ,"Київ, вулиця Антоновича, 127",70,2018-10-31,1021256,Банківські послуги,Інші витрати,140214,Центральний офіс,33492420,Україна,Комісія банку,26009000000569,current,10.00,"АТ ""Укрексімбанк""",00032112,юридична особа
ГРОМАДЯНСЬКА ПОЗИЦІЯ,"Київ, вулиця Антоновича, 127",70,2018-10-31,1021245,Банківські послуги,Інші витрати,140213,Центральний офіс,33492420,Україна,Комісія банку,26009000000569,current,10.00,"АТ ""Укрексімбанк""",00032112,юридична особа
ГРОМАДЯНСЬКА ПОЗИЦІЯ,"Київ, вулиця Антоновича, 127",70,2018-10-31,1021240,Банківські послуги,Інші витрати,140212,Центральний офіс,33492420,Україна,Комісія банку,26009000000569,current,10.00,"АТ ""Укрексімбанк""",00032112,юридична особа
ГРОМАДЯНСЬКА ПОЗИЦІЯ,,84,2018-10-31,54,"Заробітна плата, премії","Заробітна плата, лікарняні, вагітності, відрядження, компенсації",140148,Центральний офіс,33492420,Україна,ЗП за 2018р.,26009000000569,current,16100.00,Бондаренко Христина Павлівна,,фізична особа
ГРОМАДЯНСЬКА ПОЗИЦІЯ,,84,2018-10-31,54,"Заробітна плата, премії","Заробітна плата, лікарняні, вагітності, відрядження, компенсації",140147,Центральний офіс,33492420,Україна,ЗП за 2018р.,26009000000569,current,764.75,Комарова Ганна Георгіївна,,фізична особа
ГРОМАДЯНСЬКА ПОЗИЦІЯ,,84,2018-10-31,54,"Заробітна плата, премії","Заробітна плата, лікарняні, вагітності, відрядження, компенсації",140146,Центральний офіс,33492420,Україна,ЗП за 2018р.,26009000000569,current,764.75,Павлик Зоя Борисівна,,фізична особа
ГРОМАДЯНСЬКА ПОЗИЦІЯ,"Київ, вулиця Михайла Грушевського, 1Д",70,2018-10-30,AUO1HLLI8Y,Банківські послуги,Інші витрати,140601,Київська обласна організація,37236193,Київська область,"Комiсiя за виконання платежiв в нацiональнiй валютi, згiдно з вiдкритою офертою банку N б/н вiд 13.03.2018 та тарифiв банку, без ПДВ.",26001053022803,current,3.00,"ПАТ КБ ""Приватбанк""",14360570,юридична особа
ГРОМАДЯНСЬКА ПОЗИЦІЯ,"Київ, вулиця Михайла Грушевського, 1Д",70,2018-10-30,AUO1HLLIRY,Банківські послуги,Інші витрати,140600,Київська обласна організація,37236193,Київська область,"Комiсiя за виконання платежiв в нацiональнiй валютi, згiдно з вiдкритою офертою банку N б/н вiд 13.03.2018 та тарифiв банку, без ПДВ.",26001053022803,current,3.00,"ПАТ КБ ""Приватбанк""",14360570,юридична особа
ГРОМАДЯНСЬКА ПОЗИЦІЯ,"Київ, вулиця Михайла Грушевського, 1Д",70,2018-10-30,AUO1HLLJ6Y,Банківські послуги,Інші витрати,140599,Київська обласна організація,37236193,Київська область,"Комiсiя за виконання платежiв в нацiональнiй валютi, згiдно з вiдкритою офертою банку N б/н вiд 13.03.2018 та тарифiв банку, без ПДВ.",26001053022803,current,3.00,"ПАТ КБ ""Приватбанк""",14360570,юридична особа
ГРОМАДЯНСЬКА ПОЗИЦІЯ,"Київ, вулиця Михайла Грушевського, 1Д",70,2018-10-30,AUO1HLLJLY,Банківські послуги,Інші витрати,140598,Київська обласна організація,37236193,Київська область,"Комiсiя за виконання платежiв в нацiональнiй валютi, згiдно з вiдкритою офертою банку N б/н вiд 13.03.2018 та тарифiв банку, без ПДВ.",26001053022803,current,3.00,"ПАТ КБ ""Приватбанк""",14360570,юридична особа
ГРОМАДЯНСЬКА ПОЗИЦІЯ,"Київ, вулиця Михайла Грушевського, 1Д",70,2018-10-30,AUO1HLLJVY,Банківські послуги,Інші витрати,140597,Київська обласна організація,37236193,Київська область,"Комiсiя за виконання платежiв в нацiональнiй валютi, згiдно з вiдкритою офертою банку N б/н вiд 13.03.2018 та тарифiв банку, без ПДВ.",26001053022803,current,3.00,"ПАТ КБ ""Приватбанк""",14360570,юридична особа
ГРОМАДЯНСЬКА ПОЗИЦІЯ,"Київ, вулиця Михайла Грушевського, 1Д",70,2018-10-30,AUO1HLLK3Y,Банківські послуги,Інші витрати,140596,Київська обласна організація,37236193,Київська область,"Комiсiя за виконання платежiв в нацiональнiй валютi, згiдно з вiдкритою офертою банку N б/н вiд 13.03.2018 та тарифiв банку, без ПДВ.",26001053022803,current,3.00,"ПАТ КБ ""Приватбанк""",14360570,юридична особа
ГРОМАДЯНСЬКА ПОЗИЦІЯ,"Київ, вулиця Михайла Грушевського, 1Д",70,2018-10-30,AUO1HLLFWY,Банківські послуги,Інші витрати,140595,Київська обласна організація,37236193,Київська область,"Комiсiя за виконання платежiв в нацiональнiй валютi, згiдно з вiдкритою офертою банку N б/н вiд 13.03.2018 та тарифiв банку, без ПДВ.",26001053022803,current,3.00,"ПАТ КБ ""Приватбанк""",14360570,юридична особа
ГРОМАДЯНСЬКА ПОЗИЦІЯ,"Київ, вулиця Михайла Грушевського, 1Д",70,2018-10-30,AUO1HLLGHY,Банківські послуги,Інші витрати,140594,Київська обласна організація,37236193,Київська область,"Комiсiя за виконання платежiв в нацiональнiй валютi, згiдно з вiдкритою офертою банку N б/н вiд 13.03.2018 та тарифiв банку, без ПДВ.",26001053022803,current,3.00,"ПАТ КБ ""Приватбанк""",14360570,юридична особа
ГРОМАДЯНСЬКА ПОЗИЦІЯ,"Київ, вулиця Михайла Грушевського, 1Д",70,2018-10-30,AUO1HLLH2Y,Банківські послуги,Інші витрати,140593,Київська обласна організація,37236193,Київська область,"Комiсiя за виконання платежiв в нацiональнiй валютi, згiдно з вiдкритою офертою банку N б/н вiд 13.03.2018 та тарифiв банку, без ПДВ.",26001053022803,current,3.00,"ПАТ КБ ""Приватбанк""",14360570,юридична особа
ГРОМАДЯНСЬКА ПОЗИЦІЯ,"Київ, вулиця Михайла Грушевського, 1Д",70,2018-10-30,AUO1HLLHBY,Банківські послуги,Інші витрати,140592,Київська обласна організація,37236193,Київська область,"Комiсiя за виконання платежiв в нацiональнiй валютi, згiдно з вiдкритою офертою банку N б/н вiд 13.03.2018 та тарифiв банку, без ПДВ.",26001053022803,current,3.00,"ПАТ КБ ""Приватбанк""",14360570,юридична особа
ГРОМАДЯНСЬКА ПОЗИЦІЯ,"Київ, вулиця Михайла Грушевського, 1Д",70,2018-10-30,AUO1HLLHPY,Банківські послуги,Інші витрати,140591,Київська обласна організація,37236193,Київська область,"Комiсiя за виконання платежiв в нацiональнiй валютi, згiдно з вiдкритою офертою банку N б/н вiд 13.03.2018 та тарифiв банку, без ПДВ.",26001053022803,current,3.00,"ПАТ КБ ""Приватбанк""",14360570,юридична особа
ГРОМАДЯНСЬКА ПОЗИЦІЯ,,66,2018-10-30,67,Повернення внесків приватних внесків (донорам),Повернення приватних внесків (донорам),140560,Київська обласна організація,37236193,Київська область,"Пов.пом. зарах.кош.за признач:членськi внескi Шевченко Марина Миколаївна 3355109887, Київська область, Києво-Святошинський район, м.Вишневе, вул.Сковороди,37А Б",26001053022803,current,20.00,Косенко Любов Сергіївна,,фізична особа
ГРОМАДЯНСЬКА ПОЗИЦІЯ,,66,2018-10-30,66,Повернення внесків приватних внесків (донорам),Повернення приватних внесків (донорам),140559,Київська обласна організація,37236193,Київська область,"Пов.пом. зарах.кош.за признач:членськi внескi Гвоздовський Iван Володимирович 3230215852, Рiвненська область, Березнiвський район, с.Бронне, вул.Садова,57 Без П",26001053022803,current,20.00,Косенко Любов Сергіївна,,фізична особа
ГРОМАДЯНСЬКА ПОЗИЦІЯ,,66,2018-10-30,65,Повернення внесків приватних внесків (донорам),Повернення приватних внесків (донорам),140558,Київська обласна організація,37236193,Київська область,"Пов.пом. зарах.кош.за признач: членськi внескi Покольчук Юрiй Сергiйович, 3532900512, Київська область, Києво-Святошинський район, с.Гатне, Калинова,15 Без ПДВ",26001053022803,current,20.00,Косенко Любов Сергіївна,,фізична особа
ГРОМАДЯНСЬКА ПОЗИЦІЯ,,66,2018-10-30,64,Повернення внесків приватних внесків (донорам),Повернення приватних внесків (донорам),140557,Київська обласна організація,37236193,Київська область,"Пов.пом. зарах.кош.за признач:членськi внескi Савчук Вiктор Анатолiйович 2889913713, Київська область, Києво-Святошинський район, с.Гатне, Калинова,15 Без ПДВ",26001053022803,current,20.00,Косенко Любов Сергіївна,,фізична особа
ГРОМАДЯНСЬКА ПОЗИЦІЯ,,66,2018-10-30,63,Повернення внесків приватних внесків (донорам),Повернення приватних внесків (донорам),140556,Київська обласна організація,37236193,Київська область,"Пов.пом. зарах.кош.за признач:членськi внескi Петров Андрiй Олегович 3168308179, Київська область, Києво-Святошинський район, с.Гатне, вул.Березнева 22Б Без ПДВ",26001053022803,current,20.00,Косенко Любов Сергіївна,,фізична особа
ГРОМАДЯНСЬКА ПОЗИЦІЯ,,66,2018-10-30,62,Повернення внесків приватних внесків (донорам),Повернення приватних внесків (донорам),140555,Київська обласна організація,37236193,Київська область,"Пов.пом.зарах.коштiв за признач:членськi внескi Гвоздовський Михайло Володимирович, Рiвненська область, Березнiвський район, с.Бронне, вул.Садова,57, 3419409674",26001053022803,current,20.00,Косенко Любов Сергіївна,,фізична особа
ГРОМАДЯНСЬКА ПОЗИЦІЯ,,66,2018-10-30,61,Повернення внесків приватних внесків (донорам),Повернення приватних внесків (донорам),140554,Київська обласна організація,37236193,Київська область,"Пов.пом.зарах.коштiв за признач: членськi внескi Холод Iгор Миколайович 3403411414, Київська область, Василькiвський район, м.Василькiв, вул.Пушкiна, 17 Без ПДВ",26001053022803,current,20.00,Косенко Любов Сергіївна,,фізична особа
ГРОМАДЯНСЬКА ПОЗИЦІЯ,,66,2018-10-30,60,Повернення внесків приватних внесків (донорам),Повернення приватних внесків (донорам),140553,Київська обласна організація,37236193,Київська область,"Пов.пом.зарах.коштiв за признач: членськi внескi Рябчук Сергiй Федорович 3420813999, Київська область, Василькiвський район, м.Василькiв, вул.Пушкiна, 17 Без ПД",26001053022803,current,20.00,Косенко Любов Сергіївна,,фізична особа
ГРОМАДЯНСЬКА ПОЗИЦІЯ,,66,2018-10-30,59,Повернення внесків приватних внесків (донорам),Повернення приватних внесків (донорам),140552,Київська обласна організація,37236193,Київська область,"Пов.пом. зарах.кош.за признач: членськi внескi Кабардiна Анастасiя Андрiївна 3325900125, Київська область, Василькiвський район, м.Василькiв, вул.Декабристiв, 7",26001053022803,current,20.00,Косенко Любов Сергіївна,,фізична особа
ГРОМАДЯНСЬКА ПОЗИЦІЯ,,66,2018-10-30,58,Повернення внесків приватних внесків (донорам),Повернення приватних внесків (донорам),140551,Київська обласна організація,37236193,Київська область,"Пов.пом. зарах.кош.за признач: членськi внескi Дерепа Наталiя Олександрiвна, 2450914785, Київська область, Василькiвський район, м.Василькiв, вул.Шевченка 1-В Б",26001053022803,current,20.00,Косенко Любов Сергіївна,,фізична особа
ГРОМАДЯНСЬКА ПОЗИЦІЯ,,66,2018-10-30,58,Повернення внесків приватних внесків (донорам),Повернення приватних внесків (донорам),140550,Київська обласна організація,37236193,Київська область,"Пов.пом.зарах.коштiв за признач:членськi внескi Пророченко Юлiя Вiкторiвна, 2968705764, Київська область, Василькiвський район, смт.Глеваха, вул.Вокзальна, 22,",26001053022803,current,20.00,Косенко Любов Сергіївна,,фізична особа
ГРОМАДЯНСЬКА ПОЗИЦІЯ,,66,2018-10-30,22,Повернення внесків приватних внесків (донорам),Повернення приватних внесків (донорам),140534,Дніпропетровська обласна організація,37006888,Дніпропетровська область,Повернення помилково перерахованих коштів,26005050226940,current,120.00,Музика Анатолій Миколайович,,фізична особа
ГРОМАДЯНСЬКА ПОЗИЦІЯ,,66,2018-10-30,19,Повернення внесків приватних внесків (донорам),Повернення приватних внесків (донорам),140533,Дніпропетровська обласна організація,37006888,Дніпропетровська область,Повернення помилково перерахованих коштів,26005050226940,current,120.00,Дика Тетяна Василівна,,фізична особа
ГРОМАДЯНСЬКА ПОЗИЦІЯ,,49,2018-10-30,94,Публікування матеріалів у друкованих ЗМІ,Реклама в друкованих ЗМІ,140483,Івано-Франківська обласна організація,36733960,Івано-Франківська область,Розміщення оголошення в газеті,26000052516833,current,910.00,Кізима О Л,,фізична особа
ГРОМАДЯНСЬКА ПОЗИЦІЯ,"Київ, вулиця Миколи Лєскова, 9",70,2018-10-30,bn,Банківські послуги,Інші витрати,140456,Львівська обласна організація,37277596,Львівська область,Комісія за користування пакетом,26005314012,current,100.00,"АТ ""Райффайзен банк Аваль""",14305909,юридична особа
ГРОМАДЯНСЬКА ПОЗИЦІЯ,"Київ, вулиця Миколи Лєскова, 9",70,2018-10-30,bn,Банківські послуги,Інші витрати,140455,Львівська обласна організація,37277596,Львівська область,Комісія за надання виписки,26005314012,current,50.00,"АТ ""Райффайзен банк Аваль""",14305909,юридична особа
ГРОМАДЯНСЬКА ПОЗИЦІЯ,Дніпропетровська область,52,2018-10-30,44,Інша реклама (без класифікації),Реклама (без класифікації),140211,Центральний офіс,33492420,Україна,Сплата за розміщення рекла,26009000000569,current,62400.00,"ТОВ ""БІО-ФОРС""",41807672,юридична особа
ГРОМАДЯНСЬКА ПОЗИЦІЯ,"Київ, вулиця Михайла Грушевського, 1Д",70,2018-10-29,ATO1HIJI8Y,Банківські послуги,Інші витрати,140590,Київська обласна організація,37236193,Київська область,"Комiсiя за виконання платежiв в нацiональнiй валютi, згiдно з вiдкритою офертою банку N б/н вiд 13.03.2018 та тарифiв банку, без ПДВ.",26001053022803,current,3.00,"ПАТ КБ ""Приватбанк""",14360570,юридична особа
ГРОМАДЯНСЬКА ПОЗИЦІЯ,"Київ, вулиця Михайла Грушевського, 1Д",70,2018-10-29,ATO1HIHZ6Y,Банківські послуги,Інші витрати,140589,Київська обласна організація,37236193,Київська область,"Комiсiя за виконання платежiв в нацiональнiй валютi, згiдно з вiдкритою офертою банку N б/н вiд 13.03.2018 та тарифiв банку, без ПДВ.",26001053022803,current,3.00,"ПАТ КБ ""Приватбанк""",14360570,юридична особа
ГРОМАДЯНСЬКА ПОЗИЦІЯ,"Київ, вулиця Михайла Грушевського, 1Д",70,2018-10-29,ATO1HIFG5Y,Банківські послуги,Інші витрати,140588,Київська обласна організація,37236193,Київська область,"Комiсiя за виконання платежiв в нацiональнiй валютi, згiдно з вiдкритою офертою банку N б/н вiд 13.03.2018 та тарифiв банку, без ПДВ.",26001053022803,current,3.00,"ПАТ КБ ""Приватбанк""",14360570,юридична особа
ГРОМАДЯНСЬКА ПОЗИЦІЯ,,66,2018-10-29,57,Повернення внесків приватних внесків (донорам),Повернення приватних внесків (донорам),140549,Київська обласна організація,37236193,Київська область,"Пов.помил.зар.плат.за признач.:членськi внескi Суханов Богдан Валеiйович, Київська область, Висилькiвський район, смт.Калинiвка, вул.Молодiжна,22 , 2935320696",26001053022803,current,20.00,Косенко Любов Сергіївна,,фізична особа
ГРОМАДЯНСЬКА ПОЗИЦІЯ,,66,2018-10-29,56,Повернення внесків приватних внесків (донорам),Повернення приватних внесків (донорам),140548,Київська обласна організація,37236193,Київська область,"Поверн. пом. зар. кошт. за признач.:членськi внескi Мамчур Анатолiй Тимофiйович, 2773519537,Київська область, Висилькiвський район, м.Василькiв, вул.Пушкiна, 1",26001053022803,current,20.00,Косенко Любов Сергіївна,,фізична особа
ГРОМАДЯНСЬКА ПОЗИЦІЯ,,66,2018-10-29,55,Повернення внесків приватних внесків (донорам),Повернення приватних внесків (донорам),140547,Київська обласна організація,37236193,Київська область,"Поврнення помилк. зар. коштiв за признач.:членськi внескi Височанський Андрiй Сергiйович, Одеська область, Родинський район, с.Родина, вул.Червоноармiйська, 36",26001053022803,current,20.00,Косенко Любов Сергіївна,,фізична особа
ГРОМАДЯНСЬКА ПОЗИЦІЯ,"Київ, вулиця Михайла Грушевського, 1Д",70,2018-10-29,АТО1НJ1SYY,Банківські послуги,Інші витрати,140355,Сумська обласна організація,37283311,Сумська область,коміся за виконання платежів в національній валюті,26003055027585,current,3.00,"ПАТ КБ ""Приватбанк""",14360570,юридична особа
ГРОМАДЯНСЬКА ПОЗИЦІЯ,"Сумська область, Суми, проспект Тараса Шевченка, 2",53,2018-10-29,1,Витрати на розміщення зовнішньої реклами,Зовнішня реклама,140354,Сумська обласна організація,37283311,Сумська область,розміщення сюжетів замовника на конструкціях виконавця,26003055027585,current,9600.00,"ПП ""ФАБРИКА Реклами""",24002437,юридична особа
ГРОМАДЯНСЬКА ПОЗИЦІЯ,"Львівська область, Львів",52,2018-10-29,41,Інша реклама (без класифікації),Реклама (без класифікації),140210,Центральний офіс,33492420,Україна,Сплата за послуги згідно до,26009000000569,current,85611.00,"ТОВ ""ЦЕНТР Реклами""",32712994,юридична особа
ГРОМАДЯНСЬКА ПОЗИЦІЯ,Дніпропетровська область,52,2018-10-29,39,Інша реклама (без класифікації),Реклама (без класифікації),140209,Центральний офіс,33492420,Україна,Сплата за розміщення рекла,26009000000569,current,62400.00,"ТОВ ""БІО-ФОРС""",41807672,юридична особа
ГРОМАДЯНСЬКА ПОЗИЦІЯ,"Львівська область, Львів",52,2018-10-29,42,Інша реклама (без класифікації),Реклама (без класифікації),140208,Центральний офіс,33492420,Україна,Сплата за розміщення на ек,26009000000569,current,26340.00,"ПП ""РЕКЛАМНЕ АГЕНТСТВО ""АКВАРІУМ""",36462603,юридична особа
ГРОМАДЯНСЬКА ПОЗИЦІЯ,"Львівська область, Львів",52,2018-10-29,40,Інша реклама (без класифікації),Реклама (без класифікації),140207,Центральний офіс,33492420,Україна,Сплата за рекламні послуги,26009000000569,current,22860.00,"ТОВ ""ЕКП Захід""",40286658,юридична особа
ГРОМАДЯНСЬКА ПОЗИЦІЯ,,53,2018-10-29,38,Витрати на розміщення зовнішньої реклами,Зовнішня реклама,140145,Центральний офіс,33492420,Україна,Сплата за оренду бордів згід,26009000000569,current,1000.00,Салій Н Б,,фізична особа
ГРОМАДЯНСЬКА ПОЗИЦІЯ,,43,2018-10-26,159,Інші витрати,Інші витрати,140648,Волинська обласна організація,37204512,Волинська область,,2600805509013,current,7000.00,Ковальчук Оксана Олександрівна,3097115640,фізична особа
ГРОМАДЯНСЬКА ПОЗИЦІЯ,"Київ, вулиця Михайла Грушевського, 1Д",70,2018-10-26,AQO1HE93UY,Банківські послуги,Інші витрати,140491,Івано-Франківська обласна організація,36733960,Івано-Франківська область,комісія за виконання платежів банку,26000052516833,current,3.00,"ПАТ КБ ""Приватбанк""",14360570,юридична особа
ГРОМАДЯНСЬКА ПОЗИЦІЯ,"Івано-Франківська область, Рогатинський район, Рогатин, вулиця Галицька, 67",49,2018-10-26,93,Публікування матеріалів у друкованих ЗМІ,Реклама в друкованих ЗМІ,140490,Івано-Франківська обласна організація,36733960,Івано-Франківська область,опублікування статті,26000052516833,current,2250.00,"ТОВ ""Голос Опілля""-медіа+""",20553505,юридична особа
ГРОМАДЯНСЬКА ПОЗИЦІЯ,"Київ, вулиця Михайла Грушевського, 1Д",70,2018-10-26,AQO1HE54KY,Банківські послуги,Інші витрати,140489,Івано-Франківська обласна організація,36733960,Івано-Франківська область,комісія за виконання платежів банку,26000052516833,current,3.00,"ПАТ КБ ""Приватбанк""",14360570,юридична особа
ГРОМАДЯНСЬКА ПОЗИЦІЯ,"Івано-Франківська область, Косівський район, Косів, вулиця Незалежності, 32",49,2018-10-26,92,Публікування матеріалів у друкованих ЗМІ,Реклама в друкованих ЗМІ,140488,Івано-Франківська обласна організація,36733960,Івано-Франківська область,опублікування статті,26000052516833,current,2000.00,"ТОВ Редакція газети ""Гуцульський край""",02472909,юридична особа
ГРОМАДЯНСЬКА ПОЗИЦІЯ,"Черкаська область, Черкаси, вулиця Верхня Горова, 13",69,2018-10-26,16,Організація заходів та інші організаційні послуги,Організація заходів та інші організаційні послуги,140421,Черкаська обласна організація,37239608,Черкаська область,"ЗА ОРЕНДУ КОНФЕРЕНЦ-ЗАЛУ 29.10.2018 З 14.00 -15.00 ЗГIДНО РАХУНКУ ФАКТУРИ СФ ? 000816 ВIД 25.10.2018 У СУМI 291.67 ГРН., ПДВ - 20 % 58.33 ГРН.",26001051537726,current,350.00,"Готельний комплекс ""Дніпро ОКП Черкаськ""",14183754,юридична особа
ГРОМАДЯНСЬКА ПОЗИЦІЯ,"Київ, вулиця Олега Кошового",53,2018-10-26,36,Витрати на розміщення зовнішньої реклами,Зовнішня реклама,140206,Центральний офіс,33492420,Україна,Сплата за розміщення зовні,26009000000569,current,750720.00,"ТОВ ""РТМ-Україна""",31282375,юридична особа
ГРОМАДЯНСЬКА ПОЗИЦІЯ,"Волинська область, Луцьк",52,2018-10-26,34,Інша реклама (без класифікації),Реклама (без класифікації),140205,Центральний офіс,33492420,Україна,Сплата за розміщення рекла,26009000000569,current,108000.00,"ТОВ ""БРЕНДБОРД""",37572766,юридична особа
ГРОМАДЯНСЬКА ПОЗИЦІЯ,Київ,58,2018-10-26,32,"Виготовлення друкованих матеріалів (плакатів, листівок, буклетів та інших агітаційних матеріалів)",Друкована агітація,140204,Центральний офіс,33492420,Україна,Сплата за постери згідно ра,26009000000569,current,35130.28,"ТОВ ""Гранд Афіш""",36678347,юридична особа
ГРОМАДЯНСЬКА ПОЗИЦІЯ,,52,2018-10-26,37,Інша реклама (без класифікації),Реклама (без класифікації),140144,Центральний офіс,33492420,Україна,Сплата за рекламні послуги,26009000000569,current,260000.00,Баско А В,,фізична особа
ГРОМАДЯНСЬКА ПОЗИЦІЯ,,52,2018-10-26,31,Інша реклама (без класифікації),Реклама (без класифікації),140143,Центральний офіс,33492420,Україна,Сплата за надання рекламн,26009000000569,current,62160.00,Челембій А М,,фізична особа
ГРОМАДЯНСЬКА ПОЗИЦІЯ,,53,2018-10-26,35,Витрати на розміщення зовнішньої реклами,Зовнішня реклама,140142,Центральний офіс,33492420,Україна,Сплата за оренду бордів згі,26009000000569,current,35225.00,Салій Н Б,,фізична особа
ГРОМАДЯНСЬКА ПОЗИЦІЯ,,52,2018-10-26,33,Інша реклама (без класифікації),Реклама (без класифікації),140141,Центральний офіс,33492420,Україна,Сплата за рекламні послуги,26009000000569,current,5300.00,Дзьобан О В,,фізична особа
ГРОМАДЯНСЬКА ПОЗИЦІЯ,"Рівненська область, Рівне, вулиця Міцкевича, 11",51,2018-10-25,158,Оплата ефірного часу на ТБ,Телереклама,140665,Волинська обласна організація,37204512,Волинська область,За виготовлення та розмiщення Матерiалiв. Рахунок 109/с вiд 12 жовтня 2018,2600805509013,current,14000.00,"ТРК ""Сфера-ТВ2""",33910609,юридична особа
ГРОМАДЯНСЬКА ПОЗИЦІЯ,,66,2018-10-25,18,Повернення внесків приватних внесків (донорам),Повернення приватних внесків (донорам),140532,Дніпропетровська обласна організація,37006888,Дніпропетровська область,Повернення помилково перерахованих коштів,26005050226940,current,120.00,Сорокін Сергій Олександрович,,фізична особа
ГРОМАДЯНСЬКА ПОЗИЦІЯ,,66,2018-10-25,17,Повернення внесків приватних внесків (донорам),Повернення приватних внесків (донорам),140531,Дніпропетровська обласна організація,37006888,Дніпропетровська область,Повернення помилково перерахованих коштів,26005050226940,current,120.00,Сорокін Сергій Олександрович,,фізична особа
ГРОМАДЯНСЬКА ПОЗИЦІЯ,"Львівська область, Львів",52,2018-10-25,25,Інша реклама (без класифікації),Реклама (без класифікації),140203,Центральний офіс,33492420,Україна,Сплата за рекламні послуги,26009000000569,current,21780.00,"ТОВ ""ЕКП Захід""",40286658,юридична особа
ГРОМАДЯНСЬКА ПОЗИЦІЯ,"Київ, вулиця Антоновича, 127",70,2018-10-25,769304,Банківські послуги,Інші витрати,140202,Центральний офіс,33492420,Україна,Комісія банку,26009000000569,current,14.10,"АТ ""Укрексімбанк""",00032112,юридична особа
ГРОМАДЯНСЬКА ПОЗИЦІЯ,"Київ, вулиця Антоновича, 127",70,2018-10-25,769318,Банківські послуги,Інші витрати,140201,Центральний офіс,33492420,Україна,Комісія банку,26009000000569,current,10.50,"АТ ""Укрексімбанк""",00032112,юридична особа
ГРОМАДЯНСЬКА ПОЗИЦІЯ,"Київ, вулиця Антоновича, 127",70,2018-10-25,769327,Банківські послуги,Інші витрати,140200,Центральний офіс,33492420,Україна,Комісія банку,26009000000569,current,10.00,"АТ ""Укрексімбанк""",00032112,юридична особа
ГРОМАДЯНСЬКА ПОЗИЦІЯ,,52,2018-10-25,27,Інша реклама (без класифікації),Реклама (без класифікації),140140,Центральний офіс,33492420,Україна,Сплата за рекламні послуги,26009000000569,current,23520.00,Сіроштан І О,,фізична особа
ГРОМАДЯНСЬКА ПОЗИЦІЯ,,53,2018-10-25,29,Витрати на розміщення зовнішньої реклами,Зовнішня реклама,140139,Центральний офіс,33492420,Україна,Сплата за зовнішньої реклам,26009000000569,current,14096.25,Любченко Ю Б,,фізична особа
ГРОМАДЯНСЬКА ПОЗИЦІЯ,,49,2018-10-25,30,Публікування матеріалів у друкованих ЗМІ,Реклама в друкованих ЗМІ,140138,Центральний офіс,33492420,Україна,Сплата за послуги з розміщі,26009000000569,current,10500.00,Григоров А М,,фізична особа
ГРОМАДЯНСЬКА ПОЗИЦІЯ,,52,2018-10-25,26,Інша реклама (без класифікації),Реклама (без класифікації),140137,Центральний офіс,33492420,Україна,Сплата за рекламні послуги,26009000000569,current,6900.00,Сіроштан І О,,фізична особа
ГРОМАДЯНСЬКА ПОЗИЦІЯ,,53,2018-10-25,28,Витрати на розміщення зовнішньої реклами,Зовнішня реклама,140136,Центральний офіс,33492420,Україна,Сплата за зовнішньої реклаї,26009000000569,current,4252.50,Любченко Ю Б,,фізична особа
ГРОМАДЯНСЬКА ПОЗИЦІЯ,Київ,52,2018-10-24,24,Інша реклама (без класифікації),Реклама (без класифікації),140199,Центральний офіс,33492420,Україна,Сплата за послуги з розміщення,26009000000569,current,769980.40,"ТОВ ""Біг медіа""",25281224,юридична особа
ГРОМАДЯНСЬКА ПОЗИЦІЯ,"Полтавська область, Полтава",52,2018-10-24,23,Інша реклама (без класифікації),Реклама (без класифікації),140198,Центральний офіс,33492420,Україна,Сплата за розміщення та те,26009000000569,current,20060.00,"ТОВ ""РА Оллан""",24832260,юридична особа
ГРОМАДЯНСЬКА ПОЗИЦІЯ,"Київська обл., Переяслав, Богдана Хмельницького вулиця, 99, 24",43,2018-10-23,53,Інші витрати,Інші витрати,140587,Київська обласна організація,37236193,Київська область,"Оплата згiдно рахунку N235 вiд 28.09.2018 року, в т.ч. ПДВ 866,67",26001053022803,current,5200.00,"ТОВ ""ФОКУС-МЕДІА""",39640654,юридична особа
ГРОМАДЯНСЬКА ПОЗИЦІЯ,Київ,58,2018-10-23,22,"Виготовлення друкованих матеріалів (плакатів, листівок, буклетів та інших агітаційних матеріалів)",Друкована агітація,140197,Центральний офіс,33492420,Україна,Сплата за Постер паперовиі,26009000000569,current,91000.00,"ТОВ ""Гранд Афіш""",36678347,юридична особа
ГРОМАДЯНСЬКА ПОЗИЦІЯ,"Тернопільська область, Тернопіль, майдан Волі, 4",69,2018-10-19,100,Організація заходів та інші організаційні послуги,Організація заходів та інші організаційні послуги,140692,Тернопільська обласна організація,37016189,Тернопільська область,Оренда залу,26002300597395,current,300.00,Тернопільська обласна спілка споживчих товариств,01767413,юридична особа
ГРОМАДЯНСЬКА ПОЗИЦІЯ,"Волинська область, Луцьк, вулиця Драгоманова, 1А",79,2018-10-19,157,"Оренда будинків і приміщень та експлуатаційні витрати (прибирання, страхування орендованих будинків, охорона, сигналізація, ремонт, вивіз сміття, тощо)",Оренда нерухомості,140664,Волинська обласна організація,37204512,Волинська область,За оренду за вересень 2018 року. Рахунок 443 вiд 30-09-2018,2600805509013,current,2951.28,"ТОВ ""ФРЕШ ТРЕЙД""",39808792,юридична особа
ГРОМАДЯНСЬКА ПОЗИЦІЯ,"Волинська область, Луцьк, проспект Волі, 13",49,2018-10-17,155,Публікування матеріалів у друкованих ЗМІ,Реклама в друкованих ЗМІ,140663,Волинська обласна організація,37204512,Волинська область,"За опублiкування статтi 18-10-2018р. Рахунок N 1514. вiд 16-10-2018 У сумi 4500.00 грн., ПДВ - 20 % 900.00 грн.",2600805509013,current,5400.00,"ТОВ ""Газета ""Волинь""",02471695,юридична особа
ГРОМАДЯНСЬКА ПОЗИЦІЯ,"Волинська область, Камінь-Каширський район, Карпилівка, вул. Незалежності, 69",43,2018-10-17,156,Інші витрати,Інші витрати,140647,Волинська обласна організація,37204512,Волинська область,,2600805509013,current,2000.00,Смородінова Олена Яківна,2825213501,фізична особа
ГРОМАДЯНСЬКА ПОЗИЦІЯ,,79,2018-10-17,4,"Оренда будинків і приміщень та експлуатаційні витрати (прибирання, страхування орендованих будинків, охорона, сигналізація, ремонт, вивіз сміття, тощо)",Оренда нерухомості,140386,Київська міська організація,37615584,Київ,Оренад приміщення,26009337001200,current,6000.00,Байбуріна Наталя Вячеславівна,,фізична особа
ГРОМАДЯНСЬКА ПОЗИЦІЯ,"Львівська область, Львів",52,2018-10-17,21,Інша реклама (без класифікації),Реклама (без класифікації),140196,Центральний офіс,33492420,Україна,Сплата за послуги згідно ра,26009000000569,current,127400.00,"ТОВ ""ЕКП Захід""",40286658,юридична особа
ГРОМАДЯНСЬКА ПОЗИЦІЯ,"Львівська область, Львів",52,2018-10-17,20,Інша реклама (без класифікації),Реклама (без класифікації),140195,Центральний офіс,33492420,Україна,Сплата за послуги згідно ра,26009000000569,current,77550.00,"ТОВ ""ЦЕНТР Реклами""",32712994,юридична особа
ГРОМАДЯНСЬКА ПОЗИЦІЯ,"Київ, вулиця Антоновича, 127",70,2018-10-17,521532,Банківські послуги,Інші витрати,140194,Центральний офіс,33492420,Україна,Комісія банку,26009000000569,current,100.00,"АТ ""Укрексімбанк""",00032112,юридична особа
ГРОМАДЯНСЬКА ПОЗИЦІЯ,"Київ, вулиця Антоновича, 127",70,2018-10-17,521382,Банківські послуги,Інші витрати,140193,Центральний офіс,33492420,Україна,Комісія банку,26009000000569,current,77.55,"АТ ""Укрексімбанк""",00032112,юридична особа
ГРОМАДЯНСЬКА ПОЗИЦІЯ,,43,2018-10-16,154,Інші витрати,Інші витрати,140646,Волинська обласна організація,37204512,Волинська область,,2600805509013,current,4602.00,Курило Марʼяна Сергіївна,3274208601,фізична особа
ГРОМАДЯНСЬКА ПОЗИЦІЯ,,49,2018-10-16,91,Публікування матеріалів у друкованих ЗМІ,Реклама в друкованих ЗМІ,140482,Івано-Франківська обласна організація,36733960,Івано-Франківська область,За публікацію в газеті,26000052516833,current,3640.00,Гузинець-Мудрик О І,,фізична особа
ГРОМАДЯНСЬКА ПОЗИЦІЯ,"Київ, вулиця Єреванська, 1",70,2018-10-16,254175386,Банківські послуги,Інші витрати,140474,Херсонська обласна організація,33930536,Херсонська область,коміся банку,26009924418287,current,20.00,"АБ ""Укргазбанк""",23697280,юридична особа
ГРОМАДЯНСЬКА ПОЗИЦІЯ,"Київ, вулиця Єреванська, 1",70,2018-10-16,874949202,Банківські послуги,Інші витрати,140473,Херсонська обласна організація,33930536,Херсонська область,коміся банку,26009924418287,current,20.00,"АБ ""Укргазбанк""",23697280,юридична особа
ГРОМАДЯНСЬКА ПОЗИЦІЯ,,53,2018-10-16,3,Витрати на розміщення зовнішньої реклами,Зовнішня реклама,140466,Херсонська обласна організація,33930536,Херсонська область,розміщення зовнішньої реклами,26009924418287,current,85500.00,Мельниченко О М,,фізична особа
ГРОМАДЯНСЬКА ПОЗИЦІЯ,,53,2018-10-16,2,Витрати на розміщення зовнішньої реклами,Зовнішня реклама,140465,Херсонська обласна організація,33930536,Херсонська область,розміщення зовнішньої реклами,26009924418287,current,60000.00,Мельниченко О М,,фізична особа
ГРОМАДЯНСЬКА ПОЗИЦІЯ,"Волинська область, Луцьк, вулиця Львівська, 61",52,2018-10-12,151,Інша реклама (без класифікації),Реклама (без класифікації),140662,Волинська обласна організація,37204512,Волинська область,За Рекламно-iнформацiйнi послуги,2600805509013,current,18000.00,"ТОВ ""ВОЛИНЬ 24""",40510516,юридична особа
ГРОМАДЯНСЬКА ПОЗИЦІЯ,"Волинська область, Луцьк, вулиця Львівська, 61",52,2018-10-12,152,Інша реклама (без класифікації),Реклама (без класифікації),140661,Волинська обласна організація,37204512,Волинська область,За рекламно-iнформацiйнi послуги. Рахунок N 246 вiд 12-10-2018,2600805509013,current,27000.00,"ТОВ ""ВОЛИНЬ 24""",40510516,юридична особа
ГРОМАДЯНСЬКА ПОЗИЦІЯ,"Волинська область, Луцьк, вулиця Словацького, 2",69,2018-10-12,150,Організація заходів та інші організаційні послуги,Організація заходів та інші організаційні послуги,140660,Волинська обласна організація,37204512,Волинська область,Оренда залу 11-02-2018. Рахунок N 2194 10-10-2018,2600805509013,current,720.00,"ТОВ ""Готельно-сервісний комплекс""",40630775,юридична особа
ГРОМАДЯНСЬКА ПОЗИЦІЯ,"Волинська область, Луцьк, вулиця Коперника, 8",48,2018-10-12,149,Публікування матеріалів у мережі Інтернет,Реклама в інтернеті,140659,Волинська обласна організація,37204512,Волинська область,Пiдготовка та розмiщення рекламно-iнформацiйних матерiалiв на сайтi pershyj.com,2600805509013,current,3000.00,"ТОВ ""Сайт соціальних новин. Перший""",41387078,юридична особа
ГРОМАДЯНСЬКА ПОЗИЦІЯ,,43,2018-10-12,148,Інші витрати,Інші витрати,140645,Волинська обласна організація,37204512,Волинська область,,2600805509013,current,1000.00,Котович Андрій Анатолійович,3212309592,фізична особа
ГРОМАДЯНСЬКА ПОЗИЦІЯ,"Київ, вулиця Михайла Грушевського, 1Д",70,2018-10-11,52,Банківські послуги,Інші витрати,140586,Київська обласна організація,37236193,Київська область,Комiсiя РКО вiд зарплати за вересень 2018р.,26001053022803,current,16.10,"ПАТ КБ ""Приватбанк""",14360570,юридична особа
ГРОМАДЯНСЬКА ПОЗИЦІЯ,,84,2018-10-11,51,"Заробітна плата, премії","Заробітна плата, лікарняні, вагітності, відрядження, компенсації",140546,Київська обласна організація,37236193,Київська область,Зарплата за вересень 2018р.,26001053022803,current,3220.00,Побідаш Ірина Миколаївна,,фізична особа
ГРОМАДЯНСЬКА ПОЗИЦІЯ,,84,2018-10-11,51,"Заробітна плата, премії","Заробітна плата, лікарняні, вагітності, відрядження, компенсації",140545,Київська обласна організація,37236193,Київська область,Зарплата за вересень 2018р.,26001053022803,current,3220.00,Присяжнюк Юлія Ігорівна,,фізична особа
ГРОМАДЯНСЬКА ПОЗИЦІЯ,Одеська область,66,2018-10-11,20,Повернення внесків приватних внесків (донорам),Повернення приватних внесків (донорам),140192,Центральний офіс,33492420,Україна,Повернення помилково пер,26009000000569,current,800000.00,"ТОВ ""Ретимтон""",41616196,юридична особа
ГРОМАДЯНСЬКА ПОЗИЦІЯ,,58,2018-10-11,19,"Виготовлення друкованих матеріалів (плакатів, листівок, буклетів та інших агітаційних матеріалів)",Друкована агітація,140135,Центральний офіс,33492420,Україна,Сплата за друк газети згідн,26009000000569,current,131150.00,Глогусь Тетяна Іванівна,,фізична особа
ГРОМАДЯНСЬКА ПОЗИЦІЯ,"Київ, вулиця Михайла Грушевського, 1Д",70,2018-10-10,LAF8300047,Банківські послуги,Інші витрати,140658,Волинська обласна організація,37204512,Волинська область,Погашення заборгованостi за розрахунково-касове обслуговування згiдно угоди РКО N б/н вiд 03.08.2015,2600805509013,current,83.99,"ПАТ КБ ""Приватбанк""",14360570,юридична особа
ГРОМАДЯНСЬКА ПОЗИЦІЯ,"Рівненська область, Рівне, вулиця Міцкевича, 11",51,2018-10-10,146,Оплата ефірного часу на ТБ,Телереклама,140657,Волинська обласна організація,37204512,Волинська область,Виготовлення та розмiщення вiдеоматерiалiв на ТРК Сфера-ТВ,2600805509013,current,16000.00,"ТРК ""Сфера-ТВ2""",33910609,юридична особа
ГРОМАДЯНСЬКА ПОЗИЦІЯ,,43,2018-10-10,147,Інші витрати,Інші витрати,140644,Волинська обласна організація,37204512,Волинська область,,2600805509013,current,3500.00,Бугайчук Антон Павлович,3433502795,фізична особа
ГРОМАДЯНСЬКА ПОЗИЦІЯ,"Київ, вулиця Марка Вовчка, 12/14",58,2018-10-09,18,"Виготовлення друкованих матеріалів (плакатів, листівок, буклетів та інших агітаційних матеріалів)",Друкована агітація,140191,Центральний офіс,33492420,Україна,Сплата за друк газети згідн,26009000000569,current,493491.20,"ТОВ ’Мега-поліграф""",32114278,юридична особа
ГРОМАДЯНСЬКА ПОЗИЦІЯ,"Київська обл., Вишгородський район, Вишгород, проспект Шевченка, 1",62,2018-10-04,45,Сплата ЄСВ,Податкові платежі,140585,Київська обласна організація,37236193,Київська область,*;101;37236193; ЄСВ на зарплату за вересень 2018р.; без ПДВ,26001053022803,current,1760.00,Вишгородська ОДПІ ГУ ДФС у Київській області,39466569,юридична особа
ГРОМАДЯНСЬКА ПОЗИЦІЯ,"Київ, вулиця Михайла Грушевського, 1Д",70,2018-10-04,A3O1EULRYY,Банківські послуги,Інші витрати,140584,Київська обласна організація,37236193,Київська область,"Комiсiя за виконання платежiв в нацiональнiй валютi, згiдно з вiдкритою офертою банку N б/н вiд 13.03.2018 та тарифiв банку, без ПДВ.",26001053022803,current,3.00,"ПАТ КБ ""Приватбанк""",14360570,юридична особа
ГРОМАДЯНСЬКА ПОЗИЦІЯ,"Київська обл., Вишгородський район, Вишгород, вулиця Кургузова, 13",61,2018-10-04,47,Військовий збір,Податкові платежі,140583,Київська обласна організація,37236193,Київська область,*;101;37236193; Вiйськовий збiр вiд зарплати за вересень 2018р.; без ПДВ,26001053022803,current,120.00,УДКСУ у Вишгородському районі Київської області,37868556,юридична особа
ГРОМАДЯНСЬКА ПОЗИЦІЯ,"Київ, вулиця Михайла Грушевського, 1Д",70,2018-10-04,A3O1EULS6Y,Банківські послуги,Інші витрати,140582,Київська обласна організація,37236193,Київська область,"Комiсiя за виконання платежiв в нацiональнiй валютi, згiдно з вiдкритою офертою банку N б/н вiд 13.03.2018 та тарифiв банку, без ПДВ.",26001053022803,current,3.00,"ПАТ КБ ""Приватбанк""",14360570,юридична особа
ГРОМАДЯНСЬКА ПОЗИЦІЯ,"Київська обл., Вишгородський район, Вишгород, вулиця Кургузова, 13",63,2018-10-04,50,Податок на доходи,Податкові платежі,140581,Київська обласна організація,37236193,Київська область,*;101;37236193;*;101;37236193; ПДФО iз зарплати за вересень 2018р.; без ПДВ;;;,26001053022803,current,1440.00,УДКСУ у Вишгородському районі Київської області,37868556,юридична особа
ГРОМАДЯНСЬКА ПОЗИЦІЯ,"Київ, вулиця Михайла Грушевського, 1Д",70,2018-10-04,A3O1EULXJY,Банківські послуги,Інші витрати,140580,Київська обласна організація,37236193,Київська область,"Комiсiя за виконання платежiв в нацiональнiй валютi, згiдно з вiдкритою офертою банку N б/н вiд 13.03.2018 та тарифiв банку, без ПДВ.",26001053022803,current,3.00,"ПАТ КБ ""Приватбанк""",14360570,юридична особа
ГРОМАДЯНСЬКА ПОЗИЦІЯ,"Київ, вулиця Антоновича, 127",70,2018-10-04,144312,Банківські послуги,Інші витрати,140190,Центральний офіс,33492420,Україна,Комісія банку,26009000000569,current,228.93,"АТ ""Укрексімбанк""",00032112,юридична особа
ГРОМАДЯНСЬКА ПОЗИЦІЯ,Київ,72,2018-10-04,16,"Придбання, ремонт офісної техніки та програмного забезпечення (Бухгалтерські програми, Ліга.закон, домени)",Придбання офісної техніки та програмного забезпечення,140189,Центральний офіс,33492420,Україна,Сплата за домен згідно Раху,26009000000569,current,33.00,"ТОВ ""Інтернет інвест""",32493292,юридична особа
ГРОМАДЯНСЬКА ПОЗИЦІЯ,"Київ, вулиця Михайла Грушевського, 1Д",70,2018-10-03,49,Банківські послуги,Інші витрати,140579,Київська обласна організація,37236193,Київська область,Комiсiя РКО вiд зарплати за вересень 2018р.,26001053022803,current,16.10,"ПАТ КБ ""Приватбанк""",14360570,юридична особа
ГРОМАДЯНСЬКА ПОЗИЦІЯ,"Тернопільська область, Тернопіль, вулиця Руська, 27",70,2018-10-01,8673076320,Банківські послуги,Інші витрати,140691,Тернопільська обласна організація,37016189,Тернопільська область,Послуги банку,26002300597395,current,49.00,"Тернопільська обласна філія АТ ""Ощадбанк""",09338500,юридична особа
ГРОМАДЯНСЬКА ПОЗИЦІЯ,"Київ, вулиця Михайла Грушевського, 1Д",70,2018-10-01,AS89s7srpp,Банківські послуги,Інші витрати,140656,Волинська обласна організація,37204512,Волинська область,Комiсiя за обслуговування рахунку за вересень 2018 р. згiдно договору банкiвського рахунку вiд 03.08.2015,2600805509013,current,16.01,"ПАТ КБ ""Приватбанк""",14360570,юридична особа
ГРОМАДЯНСЬКА ПОЗИЦІЯ,"Київ, вулиця Михайла Грушевського, 1Д",70,2018-10-01,AS89s8pz8p,Банківські послуги,Інші витрати,140578,Київська обласна організація,37236193,Київська область,"Комiсiя за обслуговування рахунку за вересень 2018 р. згiдно договору банкiвського рахунку вiд 13.03.2018, без ПДВ.",26001053022803,current,100.00,"ПАТ КБ ""Приватбанк""",14360570,юридична особа
ГРОМАДЯНСЬКА ПОЗИЦІЯ,"Київ, вулиця Михайла Грушевського, 1Д",70,2018-10-01,AS89s7renp,Банківські послуги,Інші витрати,140539,Дніпропетровська обласна організація,37006888,Дніпропетровська область,Комісія за обслуговування рахунку,26005050226940,current,100.00,"ПАТ КБ ""Приватбанк""",14360570,юридична особа
ГРОМАДЯНСЬКА ПОЗИЦІЯ,"Київ, вулиця Михайла Грушевського, 1Д",70,2018-10-01,A101EIDXHY,Банківські послуги,Інші витрати,140487,Івано-Франківська обласна організація,36733960,Івано-Франківська область,комісія за виконання платежів банку,26000052516833,current,3.00,"ПАТ КБ ""Приватбанк""",14360570,юридична особа
ГРОМАДЯНСЬКА ПОЗИЦІЯ,"Івано-Франківська область, Рогатинський район, Рогатин, вулиця Галицька, 67",49,2018-10-01,90,Публікування матеріалів у друкованих ЗМІ,Реклама в друкованих ЗМІ,140486,Івано-Франківська обласна організація,36733960,Івано-Франківська область,опублікування статті,26000052516833,current,2100.00,"ТОВ ""Голос Опілля""-медіа+""",20553505,юридична особа
ГРОМАДЯНСЬКА ПОЗИЦІЯ,"Київ, вулиця Михайла Грушевського, 1Д",70,2018-10-01,AS89s4rdzp,Банківські послуги,Інші витрати,140485,Івано-Франківська обласна організація,36733960,Івано-Франківська область,Комісія за обслуговування рахунку,26000052516833,current,100.00,"ПАТ КБ ""Приватбанк""",14360570,юридична особа
ГРОМАДЯНСЬКА ПОЗИЦІЯ,"Харківська область, Харків, вулиця Слов'янська, 4",70,2018-10-01,8669307221,Банківські послуги,Інші витрати,140411,Харківська обласна організація,37188240,Харківська область,Абонплата,26004300641612,current,49.00,"Харківська обласна філія АТ ""Ощадбанк""",09351600,юридична особа
ГРОМАДЯНСЬКА ПОЗИЦІЯ,"Київ, вулиця Михайла Грушевського, 1Д",70,2018-10-01,-,Банківські послуги,Інші витрати,140389,Київська міська організація,37615584,Київ,Комісія банку,26009337001200,current,100.00,"ПАТ КБ ""Приватбанк""",14360570,юридична особа
ГРОМАДЯНСЬКА ПОЗИЦІЯ,Київ,72,2018-10-01,15,"Придбання, ремонт офісної техніки та програмного забезпечення (Бухгалтерські програми, Ліга.закон, домени)",Придбання офісної техніки та програмного забезпечення,140188,Центральний офіс,33492420,Україна,Сплата за домен згідно Раху,26009000000569,current,288.00,"ТОВ ""Інтернет інвест""",32493292,юридична особа
ГРОМАДЯНСЬКА ПОЗИЦІЯ,"Київ, вулиця Антоновича, 127",70,2018-10-01,75130,Банківські послуги,Інші витрати,140187,Центральний офіс,33492420,Україна,Комісія банку,26009000000569,current,250.00,"АТ ""Укрексімбанк""",00032112,юридична особа
ГРОМАДЯНСЬКА ПОЗИЦІЯ,"Волинська область, Луцьк, вулиця Драгоманова, 1А",79,2018-09-30,145,"Оренда будинків і приміщень та експлуатаційні витрати (прибирання, страхування орендованих будинків, охорона, сигналізація, ремонт, вивіз сміття, тощо)",Оренда нерухомості,140052,Волинська обласна організація,37204512,Волинська область,Рахунок N 403 вiд 31-08-2018. За оренду за вересень 2018,2600805509013,current,3684.48,"ТОВ ""ФРЕШ ТРЕЙД""",39808792,юридична особа
ГРОМАДЯНСЬКА ПОЗИЦІЯ,"Київ, вулиця Антоновича, 127",70,2018-09-28,141892,Банківські послуги,Інші витрати,139961,Центральний офіс,33492420,Україна,Послуги банку,26009000000569,current,96.00,"АТ ""Укрексімбанк""",00032112,юридична особа
ГРОМАДЯНСЬКА ПОЗИЦІЯ,"Київ, вулиця Антоновича, 127",70,2018-09-28,5,Банківські послуги,Інші витрати,139957,Центральний офіс,33492420,Україна,Послуги банку,26009000000569,current,757.46,"АТ ""Укрексімбанк""",00032112,юридична особа
ГРОМАДЯНСЬКА ПОЗИЦІЯ,"Київ, вулиця Академіка Туполєва, 28А",63,2018-09-28,12,Податок на доходи,Податкові платежі,139953,Центральний офіс,33492420,Україна,Податки до держбюджету,26009000000569,current,150.00,УДКСУ у Шевченківському районі м. Києва,37995466,юридична особа
ГРОМАДЯНСЬКА ПОЗИЦІЯ,"Київ, вулиця Академіка Туполєва, 28А",63,2018-09-28,7,Податок на доходи,Податкові платежі,139950,Центральний офіс,33492420,Україна,Податки до держбюджету,26009000000569,current,1700.00,УДКСУ у Шевченківському районі м. Києва,37995466,юридична особа
ГРОМАДЯНСЬКА ПОЗИЦІЯ,"Київська обл., Києво-Святошинський район, Вишневе, вулиця Промислова, 5",79,2018-09-28,6,"Оренда будинків і приміщень та експлуатаційні витрати (прибирання, страхування орендованих будинків, охорона, сигналізація, ремонт, вивіз сміття, тощо)",Оренда нерухомості,139938,Центральний офіс,33492420,Україна,Оренда офісу,26009000000569,current,2850.00,"ТОВ ""Експансія""",32294905,юридична особа
ГРОМАДЯНСЬКА ПОЗИЦІЯ,Київ,48,2018-09-28,11,Публікування матеріалів у мережі Інтернет,Реклама в інтернеті,139935,Центральний офіс,33492420,Україна,Оплата послуг,26009000000569,current,1200.00,"ТОВ ""ГІГАЦЕНТР""",37956851,юридична особа
ГРОМАДЯНСЬКА ПОЗИЦІЯ,Київ,48,2018-09-28,10,Публікування матеріалів у мережі Інтернет,Реклама в інтернеті,139932,Центральний офіс,33492420,Україна,Оплата послуг,26009000000569,current,800.00,"ТОВ ""ГІГАТРАНС""",34603204,юридична особа
ГРОМАДЯНСЬКА ПОЗИЦІЯ,"Київ, вулиця Магнітогорська, 1",76,2018-09-28,9,Послуги зв’язку,Послуги зв’язку,139929,Центральний офіс,33492420,Україна,Оплата послуг,26009000000569,current,243.00,"ТОВ ""Воля-кабель""",30777913,юридична особа
ГРОМАДЯНСЬКА ПОЗИЦІЯ,Київ,60,2018-09-28,8,Інші податки,Податкові платежі,139923,Центральний офіс,33492420,Україна,Податки до держбюджету,26009000000569,current,3300.00,ДПІ у Шевченківському районі у м. Києві,38728711,юридична особа
ГРОМАДЯНСЬКА ПОЗИЦІЯ,"Київ, вулиця Бастіонна, 6",65,2018-09-28,22,Перерахування внесків приватних донорів до держбюджету,Перерахування внесків приватних донорів до держбюджету,139922,Центральний офіс,33492420,Україна,повернення коштів,26009000000569,current,500.00,ГУ ДКСУ,20055032,державний бюджет
ГРОМАДЯНСЬКА ПОЗИЦІЯ,,84,2018-09-28,13,"Заробітна плата, премії","Заробітна плата, лікарняні, вагітності, відрядження, компенсації",139914,Центральний офіс,33492420,Україна,ЗП за 2018р.,26009000000569,current,5635.00,Бондаренко Христина Павлівна,,фізична особа
ГРОМАДЯНСЬКА ПОЗИЦІЯ,,84,2018-09-28,13,"Заробітна плата, премії","Заробітна плата, лікарняні, вагітності, відрядження, компенсації",139913,Центральний офіс,33492420,Україна,ЗП за 2018р.,26009000000569,current,764.75,Комарова Ганна Георгіївна,,фізична особа
ГРОМАДЯНСЬКА ПОЗИЦІЯ,,84,2018-09-28,13,"Заробітна плата, премії","Заробітна плата, лікарняні, вагітності, відрядження, компенсації",139912,Центральний офіс,33492420,Україна,ЗП за 2018р.,26009000000569,current,764.75,Павлик Зоя Борисівна,,фізична особа
ГРОМАДЯНСЬКА ПОЗИЦІЯ,"Київ, вулиця Бастіонна, 6",65,2018-09-28,14,Перерахування внесків приватних донорів до держбюджету,Перерахування внесків приватних донорів до держбюджету,139908,Центральний офіс,33492420,Україна,повернення коштів,26009000000569,current,100.00,ГУ ДКСУ,20055032,державний бюджет
ГРОМАДЯНСЬКА ПОЗИЦІЯ,"Київ, вулиця Бастіонна, 6",65,2018-09-28,16,Перерахування внесків приватних донорів до держбюджету,Перерахування внесків приватних донорів до держбюджету,139907,Центральний офіс,33492420,Україна,повернення коштів,26009000000569,current,300.00,ГУ ДКСУ,20055032,державний бюджет
ГРОМАДЯНСЬКА ПОЗИЦІЯ,"Київ, вулиця Бастіонна, 6",65,2018-09-28,17,Перерахування внесків приватних донорів до держбюджету,Перерахування внесків приватних донорів до держбюджету,139906,Центральний офіс,33492420,Україна,повернення коштів,26009000000569,current,100.00,ГУ ДКСУ,20055032,державний бюджет
ГРОМАДЯНСЬКА ПОЗИЦІЯ,"Київ, вулиця Бастіонна, 6",65,2018-09-28,23,Перерахування внесків приватних донорів до держбюджету,Перерахування внесків приватних донорів до держбюджету,139905,Центральний офіс,33492420,Україна,повернення коштів,26009000000569,current,100.00,ГУ ДКСУ,20055032,державний бюджет
ГРОМАДЯНСЬКА ПОЗИЦІЯ,"Київ, вулиця Бастіонна, 6",65,2018-09-28,24,Перерахування внесків приватних донорів до держбюджету,Перерахування внесків приватних донорів до держбюджету,139904,Центральний офіс,33492420,Україна,повернення коштів,26009000000569,current,50.00,ГУ ДКСУ,20055032,державний бюджет
ГРОМАДЯНСЬКА ПОЗИЦІЯ,"Київ, вулиця Бастіонна, 6",65,2018-09-28,25,Перерахування внесків приватних донорів до держбюджету,Перерахування внесків приватних донорів до держбюджету,139903,Центральний офіс,33492420,Україна,повернення коштів,26009000000569,current,20.00,ГУ ДКСУ,20055032,державний бюджет
ГРОМАДЯНСЬКА ПОЗИЦІЯ,"Київ, вулиця Бастіонна, 6",65,2018-09-28,15,Перерахування внесків приватних донорів до держбюджету,Перерахування внесків приватних донорів до держбюджету,139902,Центральний офіс,33492420,Україна,повернення коштів,26009000000569,current,840.00,ГУ ДКСУ,20055032,державний бюджет
ГРОМАДЯНСЬКА ПОЗИЦІЯ,"Київ, вулиця Бастіонна, 6",65,2018-09-28,19,Перерахування внесків приватних донорів до держбюджету,Перерахування внесків приватних донорів до держбюджету,139900,Центральний офіс,33492420,Україна,повернення коштів,26009000000569,current,200.00,ГУ ДКСУ,20055032,державний бюджет
ГРОМАДЯНСЬКА ПОЗИЦІЯ,"Київ, вулиця Бастіонна, 6",65,2018-09-28,20,Перерахування внесків приватних донорів до держбюджету,Перерахування внесків приватних донорів до держбюджету,139899,Центральний офіс,33492420,Україна,повернення коштів,26009000000569,current,200.00,ГУ ДКСУ,20055032,державний бюджет
ГРОМАДЯНСЬКА ПОЗИЦІЯ,"Київ, вулиця Бастіонна, 6",65,2018-09-28,18,Перерахування внесків приватних донорів до держбюджету,Перерахування внесків приватних донорів до держбюджету,139896,Центральний офіс,33492420,Україна,повернення коштів,26009000000569,current,2000.00,ГУ ДКСУ,20055032,державний бюджет
ГРОМАДЯНСЬКА ПОЗИЦІЯ,"Київ, вулиця Бастіонна, 6",67,2018-09-28,22,"Повернення коштів, що надійшли з державного бюджету","Повернення коштів, що надійшли з державного бюджету",139890,Центральний офіс,33492420,Україна,"1.3. Відомості про повернення та перерахування до Державного бюджету України грошових коштів, що надійшли помилково на рахунки політичної партії:",26009000000569,current,500.00,ГУ ДКСУ,20055032,державний бюджет
ГРОМАДЯНСЬКА ПОЗИЦІЯ,"Київ, вулиця Бастіонна, 6",67,2018-09-28,14,"Повернення коштів, що надійшли з державного бюджету","Повернення коштів, що надійшли з державного бюджету",139886,Центральний офіс,33492420,Україна,"1.3. Відомості про повернення та перерахування до Державного бюджету України грошових коштів, що надійшли помилково на рахунки політичної партії:",26009000000569,current,100.00,ГУ ДКСУ,20055032,державний бюджет
ГРОМАДЯНСЬКА ПОЗИЦІЯ,"Київ, вулиця Бастіонна, 6",67,2018-09-28,16,"Повернення коштів, що надійшли з державного бюджету","Повернення коштів, що надійшли з державного бюджету",139885,Центральний офіс,33492420,Україна,"1.3. Відомості про повернення та перерахування до Державного бюджету України грошових коштів, що надійшли помилково на рахунки політичної партії:",26009000000569,current,300.00,ГУ ДКСУ,20055032,державний бюджет
ГРОМАДЯНСЬКА ПОЗИЦІЯ,"Київ, вулиця Бастіонна, 6",67,2018-09-28,17,"Повернення коштів, що надійшли з державного бюджету","Повернення коштів, що надійшли з державного бюджету",139884,Центральний офіс,33492420,Україна,"1.3. Відомості про повернення та перерахування до Державного бюджету України грошових коштів, що надійшли помилково на рахунки політичної партії:",26009000000569,current,100.00,ГУ ДКСУ,20055032,державний бюджет
ГРОМАДЯНСЬКА ПОЗИЦІЯ,"Київ, вулиця Бастіонна, 6",67,2018-09-28,23,"Повернення коштів, що надійшли з державного бюджету","Повернення коштів, що надійшли з державного бюджету",139883,Центральний офіс,33492420,Україна,"1.3. Відомості про повернення та перерахування до Державного бюджету України грошових коштів, що надійшли помилково на рахунки політичної партії:",26009000000569,current,100.00,ГУ ДКСУ,20055032,державний бюджет
ГРОМАДЯНСЬКА ПОЗИЦІЯ,"Київ, вулиця Бастіонна, 6",67,2018-09-28,24,"Повернення коштів, що надійшли з державного бюджету","Повернення коштів, що надійшли з державного бюджету",139882,Центральний офіс,33492420,Україна,"1.3. Відомості про повернення та перерахування до Державного бюджету України грошових коштів, що надійшли помилково на рахунки політичної партії:",26009000000569,current,50.00,ГУ ДКСУ,20055032,державний бюджет
ГРОМАДЯНСЬКА ПОЗИЦІЯ,"Київ, вулиця Бастіонна, 6",67,2018-09-28,25,"Повернення коштів, що надійшли з державного бюджету","Повернення коштів, що надійшли з державного бюджету",139881,Центральний офіс,33492420,Україна,"1.3. Відомості про повернення та перерахування до Державного бюджету України грошових коштів, що надійшли помилково на рахунки політичної партії:",26009000000569,current,20.00,ГУ ДКСУ,20055032,державний бюджет
ГРОМАДЯНСЬКА ПОЗИЦІЯ,"Київ, вулиця Бастіонна, 6",67,2018-09-28,15,"Повернення коштів, що надійшли з державного бюджету","Повернення коштів, що надійшли з державного бюджету",139880,Центральний офіс,33492420,Україна,"1.3. Відомості про повернення та перерахування до Державного бюджету України грошових коштів, що надійшли помилково на рахунки політичної партії:",26009000000569,current,840.00,ГУ ДКСУ,20055032,державний бюджет
ГРОМАДЯНСЬКА ПОЗИЦІЯ,"Київ, вулиця Бастіонна, 6",67,2018-09-28,19,"Повернення коштів, що надійшли з державного бюджету","Повернення коштів, що надійшли з державного бюджету",139878,Центральний офіс,33492420,Україна,"1.3. Відомості про повернення та перерахування до Державного бюджету України грошових коштів, що надійшли помилково на рахунки політичної партії:",26009000000569,current,200.00,ГУ ДКСУ,20055032,державний бюджет
ГРОМАДЯНСЬКА ПОЗИЦІЯ,"Київ, вулиця Бастіонна, 6",67,2018-09-28,20,"Повернення коштів, що надійшли з державного бюджету","Повернення коштів, що надійшли з державного бюджету",139877,Центральний офіс,33492420,Україна,"1.3. Відомості про повернення та перерахування до Державного бюджету України грошових коштів, що надійшли помилково на рахунки політичної партії:",26009000000569,current,200.00,ГУ ДКСУ,20055032,державний бюджет
ГРОМАДЯНСЬКА ПОЗИЦІЯ,"Київ, вулиця Бастіонна, 6",67,2018-09-28,18,"Повернення коштів, що надійшли з державного бюджету","Повернення коштів, що надійшли з державного бюджету",139876,Центральний офіс,33492420,Україна,"1.3. Відомості про повернення та перерахування до Державного бюджету України грошових коштів, що надійшли помилково на рахунки політичної партії:",26009000000569,current,2000.00,ГУ ДКСУ,20055032,державний бюджет
ГРОМАДЯНСЬКА ПОЗИЦІЯ,"Івано-Франківська область, Рожнятівський район, Рожнятів, площа Єдності, 15",49,2018-09-27,89,Публікування матеріалів у друкованих ЗМІ,Реклама в друкованих ЗМІ,140117,Івано-Франківська обласна організація,36733960,Івано-Франківська область,опублікування статті,26000052516833,current,1500.00,"РГ ""Новини Підгірʼя""",02472973,юридична особа
ГРОМАДЯНСЬКА ПОЗИЦІЯ,"Київ, вулиця Михайла Грушевського, 1Д",70,2018-09-27,9RO1E53N4Y,Банківські послуги,Інші витрати,140116,Івано-Франківська обласна організація,36733960,Івано-Франківська область,Комісія банку,26000052516833,current,3.00,"ПАТ КБ ""Приватбанк""",14360570,юридична особа
ГРОМАДЯНСЬКА ПОЗИЦІЯ,"Івано-Франківська область, Івано-Франківськ, вулиця Січових стрільців, 2",49,2018-09-27,88,Публікування матеріалів у друкованих ЗМІ,Реклама в друкованих ЗМІ,140115,Івано-Франківська обласна організація,36733960,Івано-Франківська область,опублікування статті,26000052516833,current,2269.31,"РГ ""Галичина’",13644704,юридична особа
ГРОМАДЯНСЬКА ПОЗИЦІЯ,"Київ, вулиця Михайла Грушевського, 1Д",70,2018-09-27,9RO1E51FLY,Банківські послуги,Інші витрати,140114,Івано-Франківська обласна організація,36733960,Івано-Франківська область,Комісія банку,26000052516833,current,3.00,"ПАТ КБ ""Приватбанк""",14360570,юридична особа
ГРОМАДЯНСЬКА ПОЗИЦІЯ,"Івано-Франківська область, Городенківський район, Городенка, вулиця Володимира Великого, 4",49,2018-09-27,87,Публікування матеріалів у друкованих ЗМІ,Реклама в друкованих ЗМІ,140113,Івано-Франківська обласна організація,36733960,Івано-Франківська область,політична реклама,26000052516833,current,1800.00,"ПП ""Медіацентр ""Край""",20553758,юридична особа
ГРОМАДЯНСЬКА ПОЗИЦІЯ,"Київ, вулиця Миколи Лєскова, 9",70,2018-09-27,bn,Банківські послуги,Інші витрати,140067,Львівська обласна організація,37277596,Львівська область,Комісія за користування пакетом,26005314012,current,100.00,"АТ ""Райффайзен банк Аваль""",14305909,юридична особа
ГРОМАДЯНСЬКА ПОЗИЦІЯ,"Київ, вулиця Миколи Лєскова, 9",70,2018-09-27,bn,Банківські послуги,Інші витрати,140066,Львівська обласна організація,37277596,Львівська область,Комісія за надання виписки,26005314012,current,50.00,"АТ ""Райффайзен банк Аваль""",14305909,юридична особа
ГРОМАДЯНСЬКА ПОЗИЦІЯ,"Київ, вулиця Михайла Грушевського, 1Д",52,2018-09-20,144,Інша реклама (без класифікації),Реклама (без класифікації),140051,Волинська обласна організація,37204512,Волинська область,Рахунок N 152 вiд 17-09-2018. За рекламно iнформацiйнi послуги,2600805509013,current,2000.00,"РГ ""Волинь пост""",37940532,юридична особа
ГРОМАДЯНСЬКА ПОЗИЦІЯ,,48,2018-09-20,143,Публікування матеріалів у мережі Інтернет,Реклама в інтернеті,140032,Волинська обласна організація,37204512,Волинська область,Рахунок на оплату N 7 вiд 20 вересня 2018 року. Пiдготовка iнформацiйних матерiалiв для сайту та сторiнок Волинської обласної ор-ганiзацiї партiї Громадянська,2600805509013,current,7000.00,Ковальчук Оксана Олександрівна,,фізична особа
ГРОМАДЯНСЬКА ПОЗИЦІЯ,"Київ, вулиця Антоновича, 127",70,2018-09-18,503452,Банківські послуги,Інші витрати,140134,Чернігівська обласна організація,40842758,Чернігівська область,Плата за розрахункове обслуговування поточного рахунку у національній валюті за згідно Договору і тарифів Банку за період вересень 2018р. Без ПДВ,26004000013238,current,250.00,"АТ ""Укрексімбанк""",00032112,юридична особа
ГРОМАДЯНСЬКА ПОЗИЦІЯ,"Київ, вулиця Михайла Грушевського, 1Д",70,2018-09-18,9LO1D2TT6Y,Банківські послуги,Інші витрати,140112,Івано-Франківська обласна організація,36733960,Івано-Франківська область,Комісія банку,26000052516833,current,3.00,"ПАТ КБ ""Приватбанк""",14360570,юридична особа
ГРОМАДЯНСЬКА ПОЗИЦІЯ,"Івано-Франківська область, Івано-Франківськ, вулиця Січових стрільців, 2",49,2018-09-18,86,Публікування матеріалів у друкованих ЗМІ,Реклама в друкованих ЗМІ,140111,Івано-Франківська обласна організація,36733960,Івано-Франківська область,опублікування статті,26000052516833,current,1900.00,"РГ ""Галичина’",13644704,юридична особа
ГРОМАДЯНСЬКА ПОЗИЦІЯ,"Київ, вулиця Михайла Грушевського, 1Д",70,2018-09-18,9LO1D2SCPY,Банківські послуги,Інші витрати,140110,Івано-Франківська обласна організація,36733960,Івано-Франківська область,Комісія банку,26000052516833,current,3.00,"ПАТ КБ ""Приватбанк""",14360570,юридична особа
ГРОМАДЯНСЬКА ПОЗИЦІЯ,"Івано-Франківська область, Косівський район, Косів, вулиця Незалежності, 32",49,2018-09-18,85,Публікування матеріалів у друкованих ЗМІ,Реклама в друкованих ЗМІ,140109,Івано-Франківська обласна організація,36733960,Івано-Франківська область,оголошення в газеті,26000052516833,current,3400.00,"ТОВ Редакція газети ""Гуцульський край""",02472909,юридична особа
ГРОМАДЯНСЬКА ПОЗИЦІЯ,,79,2018-09-18,2,"Оренда будинків і приміщень та експлуатаційні витрати (прибирання, страхування орендованих будинків, охорона, сигналізація, ремонт, вивіз сміття, тощо)",Оренда нерухомості,140054,Київська міська організація,37615584,Київ,Оренда приміщення,26009337001200,current,6000.00,Байбуріна Наталя Вячеславівна,,фізична особа
ГРОМАДЯНСЬКА ПОЗИЦІЯ,"Київська обл., Біла Церква, Северина Наливайка, 13",69,2018-09-17,43,Організація заходів та інші організаційні послуги,Організація заходів та інші організаційні послуги,140015,Київська обласна організація,37236193,Київська область,Оплата за оренду малої конференцзали згiдно рахунку N 1521 вiд 2018-09-14 р. в т.ч. ПДВ,26009012000449,current,600.00,Київська обласна (регіональна) торгово-промислова палата,25657534,юридична особа
ГРОМАДЯНСЬКА ПОЗИЦІЯ,"Київ, вулиця Михайла Грушевського, 1Д",70,2018-09-17,9FO1CUXPHY,Банківські послуги,Інші витрати,140014,Київська обласна організація,37236193,Київська область,"Комiсiя за виконання платежiв в нацiональнiй валютi, згiдно з вiдкритою офертою банку N б/н вiд 2018-03-13 та тарифiв банку, без ПДВ.",26009012000449,current,3.00,"ПАТ КБ ""Приватбанк""",14360570,юридична особа
ГРОМАДЯНСЬКА ПОЗИЦІЯ,,56,2018-09-17,44,Виготовлення (оренда) агітаційних наметів,Виготовлення (оренда) агітаційних наметів,139982,Київська обласна організація,37236193,Київська область,Оплата за намети згiдно рахунку N912-2 вiд 2018-09-12 р.,26009012000449,current,4470.00,Черненко Оксана Володимирівна,,фізична особа
ГРОМАДЯНСЬКА ПОЗИЦІЯ,"Київ, бульвар Тараса Шевченка, 18",76,2018-09-11,141,Послуги зв’язку,Послуги зв’язку,140050,Волинська обласна організація,37204512,Волинська область,Рахунок-акт N 0733000000022371.8.2018. за телекомунiкацiйнi послуги за серпень 2018р. згiдно з договором N 55-6-05/1654,2600805509013,current,1318.91,"ПАТ ""Укртелеком""",21560766,юридична особа
ГРОМАДЯНСЬКА ПОЗИЦІЯ,"Волинська область, Луцьк, вулиця Словацького, 2",69,2018-09-11,140,Організація заходів та інші організаційні послуги,Організація заходів та інші організаційні послуги,140049,Волинська обласна організація,37204512,Волинська область,Рахунок N 2140 вiд 30-08-2018. За Оренду конференц залу,2600805509013,current,360.00,"ТОВ ""КОМПАНІЯ ГОТЕЛЬНОГО СЕРВІСУ""",41753596,юридична особа
ГРОМАДЯНСЬКА ПОЗИЦІЯ,"Київ, вулиця Михайла Грушевського, 1Д",70,2018-09-11,9BO1CF09KY,Банківські послуги,Інші витрати,140048,Волинська обласна організація,37204512,Волинська область,"Комiсiя за виконання платежiв в нацiональнiй валютi, згiдно з вiдкритою офертою банку N б/н вiд 2015-08-03 та тарифiв банку, без ПДВ.",2600805509013,current,3.00,"ПАТ КБ ""Приватбанк""",14360570,юридична особа
ГРОМАДЯНСЬКА ПОЗИЦІЯ,"Київ, вулиця Михайла Грушевського, 1Д",70,2018-09-11,9BO1CF09KX,Банківські послуги,Інші витрати,140047,Волинська обласна організація,37204512,Волинська область,"Комiсiя за викон. платежу 141 вiд 2018-09-11, 1318.91 в нац. валютi в пiсляоперацiйний час, згiдно з вiдкритою офертою банку № б/н вiд 2015-08-03 без ПДВ",2600805509013,current,2.64,"ПАТ КБ ""Приватбанк""",14360570,юридична особа
ГРОМАДЯНСЬКА ПОЗИЦІЯ,,52,2018-09-11,142,Інша реклама (без класифікації),Реклама (без класифікації),140031,Волинська обласна організація,37204512,Волинська область,Рахунок - Акт N 29 вiд 11-09-2018. За послуги дизайна та розмiщення матерiалу,2600805509013,current,3500.00,Бугайчук Антон Павлович,,фізична особа
ГРОМАДЯНСЬКА ПОЗИЦІЯ,"Івано-Франківська область, Рожнятівський район, Рожнятів, площа Єдності, 15",49,2018-09-10,84,Публікування матеріалів у друкованих ЗМІ,Реклама в друкованих ЗМІ,140108,Івано-Франківська обласна організація,36733960,Івано-Франківська область,опублікування статті,26000052516833,current,1760.00,"РГ ""Новини Підгірʼя""",02472973,юридична особа
ГРОМАДЯНСЬКА ПОЗИЦІЯ,"Київ, вулиця Михайла Грушевського, 1Д",70,2018-09-07,TZ007B3S39,Банківські послуги,Інші витрати,140013,Київська обласна організація,37236193,Київська область,Оплата комiсiї за касове обслуговування по КОО ПП ГРОМАДЯНСЬКА ПОЗИЦIЯ.,26009012000449,current,9.36,"ПАТ КБ ""Приватбанк""",14360570,юридична особа
ГРОМАДЯНСЬКА ПОЗИЦІЯ,,84,2018-09-07,42,"Заробітна плата, премії","Заробітна плата, лікарняні, вагітності, відрядження, компенсації",139981,Київська обласна організація,37236193,Київська область,Заробітна плата за серпень 2018 р.,26009012000449,current,3220.00,Побідаш Ірина Миколаївна,,фізична особа
ГРОМАДЯНСЬКА ПОЗИЦІЯ,,84,2018-09-07,42,"Заробітна плата, премії","Заробітна плата, лікарняні, вагітності, відрядження, компенсації",139980,Київська обласна організація,37236193,Київська область,Заробітна плата за серпень 2018 р.,26009012000449,current,3220.00,Присяжнюк Юлія Ігорівна,,фізична особа
ГРОМАДЯНСЬКА ПОЗИЦІЯ,"Київ, вулиця Михайла Грушевського, 1Д",70,2018-09-04,94O1BKN19Y,Банківські послуги,Інші витрати,140107,Івано-Франківська обласна організація,36733960,Івано-Франківська область,Комісія банку,26000052516833,current,3.00,"ПАТ КБ ""Приватбанк""",14360570,юридична особа
ГРОМАДЯНСЬКА ПОЗИЦІЯ,"Івано-Франківська область, Рогатинський район, Рогатин, вулиця Галицька, 67",49,2018-09-04,83,Публікування матеріалів у друкованих ЗМІ,Реклама в друкованих ЗМІ,140106,Івано-Франківська обласна організація,36733960,Івано-Франківська область,опублікування статті,26000052516833,current,3010.00,"ТОВ ""Голос Опілля""-медіа+""",20553505,юридична особа
ГРОМАДЯНСЬКА ПОЗИЦІЯ,"Київ, вулиця Михайла Грушевського, 1Д",70,2018-09-04,94O1BKH98Y,Банківські послуги,Інші витрати,140105,Івано-Франківська обласна організація,36733960,Івано-Франківська область,Комісія банку,26000052516833,current,3.00,"ПАТ КБ ""Приватбанк""",14360570,юридична особа
ГРОМАДЯНСЬКА ПОЗИЦІЯ,"Івано-Франківська область, Івано-Франківськ, вулиця Січових стрільців, 2",49,2018-09-04,82,Публікування матеріалів у друкованих ЗМІ,Реклама в друкованих ЗМІ,140104,Івано-Франківська обласна організація,36733960,Івано-Франківська область,опублікування статті,26000052516833,current,2000.00,"РГ ""Галичина’",13644704,юридична особа
